Workbook

Sheet Market Size
B6: Accumulated number of indoor automation devices (shielded applications) in the field 5 years after launch worldwide in all different frequency bands: | H6: 200000
B7: Fraction of devices sold for the European market in all bands [%]: | H7: 40
B8: Fraction of devices sold in the band 116-130GHz [%]: | H8: 100 | J8: 100%, because systems are assumed to sweep over all frequency bands
B9: Fraction of devices sold in the band 134-141GHz [%]: | H9: 100
B10: Fraction of devices sold in the band 174,8-182GHz [%]: | H10: 100
B11: Fraction of devices sold in the band 185-190GHz [%]: | H11: 100
B12: Fraction of devices sold in the band 231,5-250GHz [%]: | H12: 100 | J12: Check-SUM
J13: =H8+H9+H10+H11+H12 -> 500
B14: Accumulated number of devices in the field after 5 years in Europe in the band 116-130GHz: | H14: =H6*H7/100*H8/100 -> 80000
B15: Accumulated number of devices in the field after 5 years in Europe in the band 134-141GHz: | H15: =H6*H7/100*H9/100 -> 80000
B16: Accumulated number of devices in the field after 5 years in Europe in the band 174,8-182GHz: | H16: =H6*H7/100*H10/100 -> 80000
B17: Accumulated number of devices in the field after 5 years in Europe in the band 185-190GHz: | H17: =H6*H7/100*H11/100 -> 80000
B18: Accumulated number of devices in the field after 5 years in Europe in the band 231,5-250GHz: | H18: =H6*H7/100*H12/100 -> 80000
B20: Land area of Europe [km²] | H20: 10523000
B22: Interferer density in Europe in the band 116-130GHz [devices/km²] | H22: =H14/H20 -> 0.007602394754
B23: Interferer density in Europe in the band 134-141GHz [devices/km²] | H23: =H15/H20 -> 0.007602394754
B24: Interferer density in Europe in the band 174,8-182GHz [devices/km²] | H24: =H16/H20 -> 0.007602394754
B25: Interferer density in Europe in the band 185-190GHz [devices/km²] | H25: =H17/H20 -> 0.007602394754
B26: Interferer density in Europe in the band 231,5-250GHz [devices/km²] | H26: =H18/H20 -> 0.007602394754

Sheet System Parameter
B1: Example Interferer system parameter | G1: Frequency Sub-Band Parameter & Checks
G2: 111.8 | H2: 114.25 | I2: 116 | J2: 122.25 | K2: 123 | L2: 130 | M2: 134 | N2: 141 | O2: 148.5 | P2: 151.5 | Q2: 158.5 | R2: 164 | S2: 167 | T2: 174.5 | U2: 174.8 | V2: 182 | W2: 185 | X2: 190 | Y2: 191.8 | Z2: 200 | AA2: 209 | AB2: 226 | AC2: 231.5 | AD2: 235 | AE2: 238 | AF2: 241 | AG2: 244 | AH2: 246 | AI2: 250 | AJ2: 252 | AK2: GHz
B3: RDI-S Device Parameter | G3: 114.25 | H3: 116 | I3: 122.25 | J3: 123 | K3: 130 | L3: 134 | M3: 141 | N3: 148.5 | O3: 151.5 | P3: 158.5 | Q3: 164 | R3: 167 | S3: 174.5 | T3: 174.8 | U3: 182 | V3: 185 | W3: 190 | X3: 191.8 | Y3: 200 | Z3: 209 | AA3: 226 | AB3: 231.5 | AC3: 235 | AD3: 238 | AE3: 241 | AF3: 244 | AG3: 246 | AH3: 250 | AI3: 252 | AJ3: 275 | AK3: GHz
B4: Conducted Tx power of interferer | C4: see right | D4: dBm | G4: adjacent | H4: adjacent | I4: 9 | J4: 9 | K4: 24 | L4: 9 | M4: 24 | N4: 9 | O4: -1 | P4: 9 | Q4: 9 | R4: -1 | S4: 9 | T4: 9 | U4: 24 | V4: -1 | W4: 9 | X4: -1 | Y4: 9 | Z4: -1 | AA4: 9 | AB4: -1 | AC4: 9 | AD4: 9 | AE4: 9 | AF4: 9 | AG4: 9 | AH4: 9 | AI4: -1 | AJ4: 9 | AK4: dBm
B5: Gain of the interferer antenna in the direction of main radiation | C5: 36 | D5: dBi | I5: =$C$5 -> 36 | J5: =$C$5 -> 36 | K5: 36 | L5: 36 | M5: 36 | N5: 36 | O5: 36 | P5: 36 | Q5: 36 | R5: 36 | S5: 36 | T5: 36 | U5: 36 | V5: 36 | W5: 36 | X5: 36 | Y5: 36 | Z5: 36 | AA5: 36 | AB5: 36 | AC5: 36 | AD5: 36 | AE5: 36 | AF5: 36 | AG5: 36 | AH5: 36 | AI5: 36 | AJ5: 36 | AK5: dBi
B6: Interferer Tx signal FMCW start frequency | C6: 120 | D6: GHz | G6: =IF(AND($C6<G3,$C7>G2),"YES","NO") -> NO | H6: NO | I6: YES | J6: YES | K6: =IF(AND($C6<K3,$C7>K2),"YES","NO") -> YES | L6: =IF(AND($C6<L3,$C7>L2),"YES","NO") -> YES | M6: YES | N6: YES | O6: YES | P6: YES | Q6: YES | R6: YES | S6: YES | T6: YES | U6: YES | V6: YES | W6: YES | X6: YES | Y6: YES | Z6: YES | AA6: YES | AB6: NO | AC6: NO | AD6: NO | AE6: NO | AF6: NO | AG6: NO | AH6: NO | AI6: NO | AJ6: NO | AK6: In-Band?
B7: Interferer Tx signal FMCW stop frequency | C7: 220 | D7: GHz
B8: Bandwidth of interferer Tx signal | C8: =C7-C6 -> 100 | D8: GHz | I8: =$C8 -> 100 | J8: 100 | K8: 100 | L8: 100 | M8: 100 | N8: 100 | O8: 100 | P8: 100 | Q8: 100 | R8: 100 | S8: 100 | T8: 100 | U8: 100 | V8: 100 | W8: 100 | X8: 100 | Y8: 100 | Z8: 100 | AA8: 100 | AB8: 100 | AC8: 100 | AD8: 100 | AE8: 100 | AF8: 100 | AG8: 100 | AH8: 100 | AI8: 100 | AJ8: 100 | AK8: GHz
B10: Tx e.i.r.p. of interferer | C10: see right | D10: dBm | I10: =I4+I5 -> 45 | J10: 45 | K10: 60 | L10: 45 | M10: 60 | N10: 45 | O10: 35 | P10: 45 | Q10: 45 | R10: 35 | S10: 45 | T10: 45 | U10: 60 | V10: 35 | W10: 45 | X10: 35 | Y10: 45 | Z10: 35 | AA10: 45 | AB10: 35 | AC10: 45 | AD10: 45 | AE10: 45 | AF10: 45 | AG10: 45 | AH10: 45 | AI10: 35 | AJ10: 45 | AK10: dBm
B11: Tx e.i.r.p. spectral density of interferer | C11: see right | D11: dBm/MHz | I11: =I10-10*LOG(I8*1000) -> -5 | J11: -5 | K11: 10 | L11: -5 | M11: 10 | N11: -5 | O11: -15 | P11: -5 | Q11: -5 | R11: -15 | S11: -5 | T11: -5 | U11: 10 | V11: -15 | W11: -5 | X11: -15 | Y11: -5 | Z11: -15 | AA11: -5 | AB11: -15 | AC11: -5 | AD11: -5 | AE11: -5 | AF11: -5 | AG11: -5 | AH11: -5 | AI11: -15 | AJ11: -5 | AK11: dBm/MHz
B12: Tx e.i.r.p. spectral density of interferer | C12: see right | D12: dBW/MHz | I12: =I11-30 -> -35 | J12: -35 | K12: -20 | L12: -35 | M12: -20 | N12: -35 | O12: -45 | P12: -35 | Q12: -35 | R12: -45 | S12: -35 | T12: -35 | U12: -20 | V12: -45 | W12: -35 | X12: -45 | Y12: -35 | Z12: -45 | AA12: -35 | AB12: -45 | AC12: -35 | AD12: -35 | AE12: -35 | AF12: -35 | AG12: -35 | AH12: -35 | AI12: -45 | AJ12: -35 | AK12: dBW/MHz
B14: Mitigations
B15: DC - Duty Cycle | C15: 0 | D15: dB | G15: =$C$15 -> 0 | H15: =$C$15 -> 0 | I15: 0 | J15: 0 | K15: 0 | L15: 0 | M15: 0 | N15: 0 | O15: 0 | P15: 0 | Q15: 0 | R15: 0 | S15: 0 | T15: 0 | U15: 0 | V15: 0 | W15: 0 | X15: 0 | Y15: 0 | Z15: 0 | AA15: 0 | AB15: 0 | AC15: 0 | AD15: 0 | AE15: 0 | AF15: 0 | AG15: 0 | AH15: 0 | AI15: 0 | AJ15: 0 | AK15: dB
B16: APC - Adaptive Power Control | C16: 0 | D16: dB | G16: =$C$16 -> 0 | H16: =$C$16 -> 0 | I16: 0 | J16: 0 | K16: =$C$16 -> 0 | L16: =$C$16 -> 0 | M16: 0 | N16: 0 | O16: 0 | P16: 0 | Q16: 0 | R16: 0 | S16: 0 | T16: 0 | U16: 0 | V16: 0 | W16: 0 | X16: 0 | Y16: 0 | Z16: 0 | AA16: 0 | AB16: 0 | AC16: 0 | AD16: 0 | AE16: 0 | AF16: 0 | AG16: 0 | AH16: 0 | AI16: 0 | AJ16: 0 | AK16: dB
B17: Sum of all Mitigations (has to be negative) | C17: =SUM(C15:C16) -> 0 | D17: dB | G17: =$C$17 -> 0 | H17: =$C$17 -> 0 | I17: 0 | J17: 0 | K17: 0 | L17: 0 | M17: 0 | N17: 0 | O17: 0 | P17: 0 | Q17: 0 | R17: 0 | S17: 0 | T17: 0 | U17: 0 | V17: 0 | W17: 0 | X17: 0 | Y17: 0 | Z17: 0 | AA17: 0 | AB17: 0 | AC17: 0 | AD17: 0 | AE17: 0 | AF17: 0 | AG17: 0 | AH17: 0 | AI17: 0 | AJ17: 0 | AK17: dB
B19: Single Entry Study Attenuations
B20: Lump-sum RDI-S shielding loss | C20: 50 | D20: dB | E20: Agreed RDI-S lump-sum value, see SE24_WI71#14 | G20: =$C$20 -> 50 | H20: =$C$20 -> 50 | I20: 50 | J20: 50 | K20: 50 | L20: 50 | M20: 50 | N20: 50 | O20: 50 | P20: 50 | Q20: 50 | R20: 50 | S20: 50 | T20: 50 | U20: 50 | V20: 50 | W20: 50 | X20: 50 | Y20: 50 | Z20: 50 | AA20: 50 | AB20: 50 | AC20: 50 | AD20: 50 | AE20: 50 | AF20: 50 | AG20: 50 | AH20: 50 | AI20: 50 | AJ20: 50 | AK20: dB
B21: Dev. / Applic. dep. additional shielding | C21: 0 | D21: dB | E21: Optional, needs to be assured by HEN | G21: =$C$21 -> 0 | H21: =$C$21 -> 0 | I21: 0 | J21: 0 | K21: 0 | L21: 0 | M21: 0 | N21: 0 | O21: 0 | P21: 0 | Q21: 0 | R21: 0 | S21: 0 | T21: 0 | U21: 0 | V21: 0 | W21: 0 | X21: 0 | Y21: 0 | Z21: 0 | AA21: 0 | AB21: 0 | AC21: 0 | AD21: 0 | AE21: 0 | AF21: 0 | AG21: 0 | AH21: 0 | AI21: 0 | AJ21: 0 | AK21: dB
B22: Sum of shielding & reflexion attenuation (positive) | C22: =C20+C21 -> 50 | D22: dB | G22: =$C$22 -> 50 | H22: =$C$22 -> 50 | I22: 50 | J22: 50 | K22: 50 | L22: 50 | M22: 50 | N22: 50 | O22: 50 | P22: 50 | Q22: 50 | R22: 50 | S22: 50 | T22: 50 | U22: 50 | V22: 50 | W22: 50 | X22: 50 | Y22: 50 | Z22: 50 | AA22: 50 | AB22: 50 | AC22: 50 | AD22: 50 | AE22: 50 | AF22: 50 | AG22: 50 | AH22: 50 | AI22: 50 | AJ22: 50 | AK22: dB
B24: Specials
B25: Atmospheric loss Zenith (ITU Fig 6, Earth-space) | C25: see right | D25: dB | G25: 1 | H25: 1 | I25: 2 | J25: 2 | K25: 1.5 | L25: 1.5 | M25: 1.5 | N25: 1.8 | O25: 2 | P25: 2 | Q25: 2.4 | R25: 3 | S25: 4 | T25: 8 | U25: 8 | V25: 13 | W25: 10 | X25: 10 | Y25: 5 | Z25: 5 | AA25: 4.5 | AB25: 4.5 | AC25: 5 | AD25: 5 | AE25: 5 | AF25: 5 | AG25: 5 | AH25: 5.5 | AI25: 5.5 | AJ25: 5.5 | AK25: dB
B26: Atmospheric loss Terrestrial (ITU Fig 5 for RAS) | C26: see right | D26: dB/km | G26: 0.13 | H26: 0.22 | I26: 0.31 | J26: 0.24 | K26: 0.11 | L26: 0.1 | M26: 0.1 | N26: 0.1 | O26: 0.12 | P26: 0.12 | Q26: 0.15 | R26: 0.18 | S26: 0.21 | T26: 0.46 | U26: 0.49 | V26: 3.55 | W26: 0.79 | X26: 0.58 | Y26: 0.3 | Z26: 0.25 | AA26: 0.25 | AB26: 0.26 | AC26: 0.27 | AD26: 0.27 | AE26: 0.28 | AF26: 0.29 | AG26: 0.29 | AH26: 0.3 | AI26: 0.31 | AJ26: 0.31 | AK26: dB/km
B27: Interferer density in Europe in the band (from Market size) | C27: see right | D27: devices/km² | G27: ='Market Size'!H22 -> 0.007602394754 | H27: ='Market Size'!H23 -> 0.007602394754 | I27: ='Market Size'!H24 -> 0.007602394754 | J27: ='Market Size'!H25 -> 0.007602394754 | K27: ='Market Size'!$H$26 -> 0.007602394754 | L27: ='Market Size'!$H$26 -> 0.007602394754 | M27: ='Market Size'!$H$26 -> 0.007602394754 | N27: ='Market Size'!$H$26 -> 0.007602394754 | O27: ='Market Size'!$H$26 -> 0.007602394754 | P27: ='Market Size'!$H$26 -> 0.007602394754 | Q27: ='Market Size'!$H$26 -> 0.007602394754 | R27: ='Market Size'!$H$26 -> 0.007602394754 | S27: ='Market Size'!$H$26 -> 0.007602394754 | T27: ='Market Size'!$H$26 -> 0.007602394754 | U27: ='Market Size'!$H$26 -> 0.007602394754 | V27: ='Market Size'!$H$26 -> 0.007602394754 | W27: ='Market Size'!$H$26 -> 0.007602394754 | X27: ='Market Size'!$H$26 -> 0.007602394754 | Y27: ='Market Size'!$H$26 -> 0.007602394754 | Z27: ='Market Size'!$H$26 -> 0.007602394754 | AA27: ='Market Size'!$H$26 -> 0.007602394754 | AB27: ='Market Size'!$H$26 -> 0.007602394754 | AC27: ='Market Size'!$H$26 -> 0.007602394754 | AD27: ='Market Size'!$H$26 -> 0.007602394754 | AE27: ='Market Size'!$H$26 -> 0.007602394754 | AF27: ='Market Size'!$H$26 -> 0.007602394754 | AG27: ='Market Size'!$H$26 -> 0.007602394754 | AH27: ='Market Size'!$H$26 -> 0.007602394754 | AI27: ='Market Size'!$H$26 -> 0.007602394754 | AJ27: ='Market Size'!$H$26 -> 0.007602394754 | AK27: devices/km²
B28: Aggregation: Industrial area device density factor | C28: 75 | G28: =$C$28 -> 75 | H28: =$C$28 -> 75 | I28: 75 | J28: 75 | K28: 75 | L28: 75 | M28: 75 | N28: 75 | O28: 75 | P28: 75 | Q28: 75 | R28: 75 | S28: 75 | T28: 75 | U28: 75 | V28: 75 | W28: 75 | X28: 75 | Y28: 75 | Z28: 75 | AA28: 75 | AB28: 75 | AC28: 75 | AD28: 75 | AE28: 75 | AF28: 75 | AG28: 75 | AH28: 75 | AI28: 75 | AJ28: 75 | AK28: devices/km²
B29: Resulting devices used for EESS calculation | C29: see right | D29: devices/km² | G29: =G27*G28 -> 0.5701796066 | H29: =H27*H28 -> 0.5701796066 | I29: =I27*I28 -> 0.5701796066 | J29: 0.5701796066 | K29: 0.5701796066 | L29: 0.5701796066 | M29: 0.5701796066 | N29: 0.5701796066 | O29: 0.5701796066 | P29: 0.5701796066 | Q29: 0.5701796066 | R29: 0.5701796066 | S29: 0.5701796066 | T29: 0.5701796066 | U29: 0.5701796066 | V29: 0.5701796066 | W29: 0.5701796066 | X29: 0.5701796066 | Y29: 0.5701796066 | Z29: 0.5701796066 | AA29: 0.5701796066 | AB29: 0.5701796066 | AC29: 0.5701796066 | AD29: 0.5701796066 | AE29: 0.5701796066 | AF29: 0.5701796066 | AG29: 0.5701796066 | AH29: 0.5701796066 | AI29: 0.5701796066 | AJ29: =AJ27*AJ28 -> 0.5701796066 | AK29: devices/km²
D30: EIRP desity (dBm/MHz) at sensor main beam | G30: OOB | H30: OOB | I30: =I4+I5-10*LOG10(I8*1000) -> -5 | J30: =J4+J5-10*LOG10(J8*1000) -> -5 | K30: 10 | L30: -5 | M30: 10 | N30: -5 | O30: -15 | P30: -5 | Q30: -5 | R30: -15 | S30: -5 | T30: -5 | U30: 10 | V30: -15 | W30: -5 | X30: -15 | Y30: -5 | Z30: -15 | AA30: -5 | AB30: -15 | AC30: -5 | AD30: -5 | AE30: -5 | AF30: -5 | AG30: -5 | AH30: -5 | AI30: -15 | AJ30: -5 | AK30: dBm/MHz
D31: EIRP desity (dBm/MHz) outside shielded enclosure | G31: OOB | H31: OOB | I31: =I4+I5-10*LOG10(I8*1000)-I22 -> -55 | J31: =J4+J5-10*LOG10(J8*1000)-J22 -> -55 | K31: -40 | L31: -55 | M31: -40 | N31: -55 | O31: -65 | P31: -55 | Q31: -55 | R31: -65 | S31: -55 | T31: -55 | U31: -40 | V31: -65 | W31: -55 | X31: -65 | Y31: -55 | Z31: -65 | AA31: -55 | AB31: -65 | AC31: -55 | AD31: -55 | AE31: -55 | AF31: -55 | AG31: -55 | AH31: -55 | AI31: -65 | AJ31: -55 | AK31: dBm/MHz
D32: Max. peak EIRP (dBm) at sensor main beam | I32: =I4+I5 -> 45 | J32: =J4+J5 -> 45 | K32: 60 | L32: 45 | M32: 60 | N32: 45 | O32: 35 | P32: 45 | Q32: 45 | R32: 35 | S32: 45 | T32: 45 | U32: 60 | V32: 35 | W32: 45 | X32: 35 | Y32: 45 | Z32: 35 | AA32: 45 | AB32: 35 | AC32: 45 | AD32: 45 | AE32: 45 | AF32: 45 | AG32: 45 | AH32: 45 | AI32: 35 | AJ32: 45 | AK32: dBm/MHz
D33: Max. peak EIRP leakage outside shielded enclosure | I33: =I32-I22 -> -5 | J33: =J32-J22 -> -5 | K33: 10 | L33: -5 | M33: 10 | N33: -5 | O33: -15 | P33: -5 | Q33: -5 | R33: -15 | S33: -5 | T33: -5 | U33: 10 | V33: -15 | W33: -5 | X33: -15 | Y33: -5 | Z33: -15 | AA33: -5 | AB33: -15 | AC33: -5 | AD33: -5 | AE33: -5 | AF33: -5 | AG33: -5 | AH33: -5 | AI33: -15 | AJ33: -5 | AK33: dBm/MHz
F35: Affected Services Overview & MCL Result Overview | G35: 111,8-114,25 | H35: 114,25-116 | I35: 116-122,25 | J35: 122,25-123 | K35: 123-130 | L35: 130-134 | M35: 134-141 | N35: 141-148,5 | O35: 148,5-151,5 | P35: 151,5-158,5 | Q35: 158,5-164 | R35: 164-167 | S35: 167-174,5 | T35: 174,5-174,8 | U35: 174,8-182 | V35: 182-185 | W35: 185-190 | X35: 190-191,8 | Y35: 191,8-200 | Z35: 200-209 | AA35: 209-226 | AB35: 226-231,5 | AC35: 231,5-235 | AD35: 235-238 | AE35: 238-241 | AF35: 241-244 | AG35: 244-246 | AH35: 246-250 | AI35: 250-252 | AJ35: 252-275 | AK35: GHz
B36: EESS Aggregate Study Attenuations (average values) | F36: RR FN 5.340
B37: BEL acc. ITU-R P.2109-1 (@100 GHz, "omni"-antenna,70/30) | C37: see "EESS Shielding Table" | F37: Passive/EESS | U37: lower | W37: upper
B38: Earth-Space Clutter acc. ITU-R P.2108 sect. 3-3 | C38: see "EESS Shielding Table" | F38: Passive/EESS Margin | H38: =MIN(EESS!C39:D39) -> 30.72073133 | O38: =MIN('EESS 5.340 bands'!E39:F39) -> 49.9436907 | R38: =MIN('EESS 5.340 bands'!G39:I39) -> 50.90280624 | U38: =MIN(EESS!E39:L39) -> 26.32840527 | W38: =MIN(EESS!M39:T39) -> 41.76053371 | Z38: =MIN('EESS 5.340 bands'!Z39:AG39) -> 48.8145393 | AB38: =MIN('EESS 5.340 bands'!AH39:AO39) -> 52.28789511 | AD38: =MIN(EESS!U39:AB39) -> 43.07729596 | AE38: =MIN(EESS!AC39:AE39) -> 43.86846629 | AI38: =MIN('EESS 5.340 bands'!AP39:AW39) -> 54.09414749 | AK38: dB
B39: Aggregate antenna gain | C39: 10 | D39: dBi | F39: Passive/EESS 5.340 Marg. | H39: =MIN('EESS 5.340 bands'!C39:D39) -> 40.42406592 | V39: =MIN('EESS 5.340 bands'!J39:Q39) -> 51.57322964 | X39: =MIN('EESS 5.340 bands'!R39:Y39) -> 51.91662684 | AK39: dB
B40: BEL high gain ant. correction acc. ITU-R P.2109-1 | C40: 0 | D40: dB | F40: Passive/EESS Aggr. Margin | H40: =MIN(EESS!C84:D84) -> 12.31598664 | O40: =MIN('EESS 5.340 bands'!E86:F86) -> 28.17088346 | R40: =MIN('EESS 5.340 bands'!G86:I86) -> 31.18990657 | U40: =MIN(EESS!E84:L84) -> 14.30412349 | W40: =MIN(EESS!M84:T84) -> 29.73625193 | Z40: =MIN('EESS 5.340 bands'!Z86:AG86) -> 31.69009275 | AB40: =MIN('EESS 5.340 bands'!AH86:AO86) -> 35.16344856 | AD40: =MIN(EESS!U84:AB84) -> 25.95284939 | AE40: =MIN(EESS!AC84:AE84) -> 30.45358642 | AI40: =MIN('EESS 5.340 bands'!AP86:AW86) -> 36.96970094
B41: Reflection/ Transm. loss by target | C41: 0 | D41: dB | F41: Passive/EESS 5.340 Aggr. Margin | H41: =MIN('EESS 5.340 bands'!C86:D86) -> 22.01932123 | V41: =MIN('EESS 5.340 bands'!J86:Q86) -> 39.54894788 | X41: =MIN('EESS 5.340 bands'!R86:Y86) -> 39.89234507
B42: RDI-S avg. Inherent device shielding | C42: 0 | D42: dB | F42: RAS | K42: lower | N42: upper
F43: RAS separation distance | G43: =MAX(RAS!C36:D36) -> 0.9097454754 | K43: =MAX(RAS!E36:F36) -> 13.18082336 | N43: =MAX(RAS!G36:H36) -> 2.532670061 | R43: =MAX(RAS!I36:J36) -> 0.6314411986 | V43: =MAX('RAS 5.340 bands'!I36:J36) -> 0.4794987789 | X43: =MAX(RAS!K36:L36) -> 0.4318951085 | AD43: =MAX(RAS!M36:N36) -> 1.200885522 | AF43: =MAX(RAS!O36:P36) -> 1.033953188 | AK43: km
F44: RAS IR RR FN 5.340 | H44: =MAX('RAS 5.340 bands'!C36:D36) -> 0.9003665597 | O44: =MAX('RAS 5.340 bands'!E36:F36) -> 0.7066645276 | R44: =MAX('RAS 5.340 bands'!G36:H36) -> 0.6382666683 | X44: =MAX('RAS 5.340 bands'!K36:L36) -> 0.5408227044 | Z44: =MAX('RAS 5.340 bands'!M36:N36) -> 0.5060302741 | AB44: =MAX('RAS 5.340 bands'!O36:P36) -> 0.406759625 | AI44: =MAX('RAS 5.340 bands'!Q36:R36) -> 0.3707816644 | AK44: km
F45: FS
B46: Yellow boxes can safely be adjusted | F46: FS separation distance scenario 1 | G46: =MAX(FS!C42:D42) -> 0.01120987465 | L46: =MAX(FS!E42:F42) -> 0.02406926244 | N46: =MAX(FS!G42:H42) -> 0.02194238319 | P46: =MAX(FS!I42:J42) -> 0.02012900837 | S46: =MAX(FS!K42:L42) -> 0.01856871784 | AK46: km
F47: FS separation distance scenario 2 | G47: =MAX(FS!C86:D86) -> 0.001187958285 | L47: =MAX(FS!E86:F86) -> 0.002554700112 | N47: =MAX(FS!G86:H86) -> 0.002329509144 | P47: =MAX(FS!I86:J86) -> 0.002137478972 | S47: =MAX(FS!K86:L86) -> 0.001974428057
F48: Amateur
F49: Amateur separation distance | J49: =MAX(Amateur!C39:F39) -> 0.01204193546 | M49: =MAX(Amateur!G39:J39) -> 0.06008876287 | AF49: =MAX(Amateur!K39:N39) -> 0.004254121241 | AK49: km
B50: Duty Cycle Calculator (non-automatic update)
B51: FMCW Ramp Time | C51: 4 | D51: ms
B52: Measurement Rate | C52: 250 | D52: Hz
B53: Time Between Measurements | C53: =1/C52 -> 0.004 | D53: s
B54: DC Mitigation Value --> has to be entered manually above | C54: =10*LOG(1000/C51/C52) -> 0 | D54: dB

Sheet EESS
A1: Compatibility analysis between radiodetermination systems for industry automation in shielded environments and EESS
C3: Band of EESS: 114,25-122,25 GHz | E3: Band of EESS: 174,8-191,8 GHz (lower) | M3: Band of EESS: 174,8-191,8 GHz (upper) | U3: Band of EESS: 235-238 GHz | AC3: Band of EESS: 239 GHz
A4: Single-entry study | C4: MWI | D4: Planned EUMETSAT radiometer (ECC Report 190) | E4: MHS (nadir) | F4: MHS (outer) | G4: MWI | H4: MWS (nadir) | I4: MWS (outer) | J4: ICI | K4: AWS (nadir) | L4: AWS (outer) | M4: MHS (nadir) | N4: MHS (outer) | O4: MWI | P4: MWS (nadir) | Q4: MWS (outer) | R4: ICI | S4: AWS (nadir) | T4: AWS (outer) | U4: MHS (nadir) | V4: MHS (outer) | W4: MWI | X4: MWS (nadir) | Y4: MWS (outer) | Z4: ICI | AA4: AWS (nadir) | AB4: AWS (outer) | AC4: ICI | AD4: AWS (nadir) | AE4: AWS (outer)
A5: Sensor type | C5: Conical scan | D5: Conical scan | E5: Nadir scan | F5: Nadir scan | G5: Conical scan | H5: Nadir scan | I5: Nadir scan | J5: Conical scan | K5: Nadir scan | L5: Nadir scan | M5: Nadir scan | N5: Nadir scan | O5: Conical scan | P5: Nadir scan | Q5: Nadir scan | R5: Conical scan | S5: Nadir scan | T5: Nadir scan | U5: Nadir scan | V5: Nadir scan | W5: Conical scan | X5: Nadir scan | Y5: Nadir scan | Z5: Conical scan | AA5: Nadir scan | AB5: Nadir scan | AC5: Conical scan | AD5: Nadir scan | AE5: Nadir scan
A6: EESS: | B6: Units
A7: Assumed centre frequency of EESS | B7: GHz | C7: 119.125 | D7: 119.125 | E7: 178.4 | F7: 178.4 | G7: 178.4 | H7: 178.4 | I7: 178.4 | J7: 178.4 | K7: 178.4 | L7: 178.4 | M7: 187.5 | N7: 187.5 | O7: 187.5 | P7: 187.5 | Q7: 187.5 | R7: 187.5 | S7: 187.5 | T7: 187.5 | U7: =(235+238)/2 -> 236.5 | V7: =(235+238)/2 -> 236.5 | W7: 236.5 | X7: 236.5 | Y7: 236.5 | Z7: 236.5 | AA7: 236.5 | AB7: 236.5 | AC7: 239 | AD7: 239 | AE7: 239
A8: Wavelength of EESS | B8: m | C8: =2.99792458/C7/10 -> 0.002516620844 | D8: 0.002516620844 | E8: 0.001680450998 | F8: 0.001680450998 | G8: 0.001680450998 | H8: 0.001680450998 | I8: 0.001680450998 | J8: 0.001680450998 | K8: 0.001680450998 | L8: 0.001680450998 | M8: 0.001598893109 | N8: 0.001598893109 | O8: 0.001598893109 | P8: 0.001598893109 | Q8: 0.001598893109 | R8: 0.001598893109 | S8: =2.99792458/S7/10 -> 0.001598893109 | T8: 0.001598893109 | U8: 0.001267621387 | V8: 0.001267621387 | W8: 0.001267621387 | X8: 0.001267621387 | Y8: 0.001267621387 | Z8: 0.001267621387 | AA8: =2.99792458/AA7/10 -> 0.001267621387 | AB8: 0.001267621387 | AC8: 0.001254361749 | AD8: =2.99792458/AD7/10 -> 0.001254361749 | AE8: 0.001254361749
A9: Reference bandwidth | B9: MHz | C9: 200 | D9: 200 | E9: 200 | F9: 200 | G9: 200 | H9: 200 | I9: 200 | J9: 200 | K9: 200 | L9: 200 | M9: 200 | N9: 200 | O9: 200 | P9: 200 | Q9: 200 | R9: 200 | S9: 200 | T9: 200 | U9: 200 | V9: 200 | W9: 200 | X9: 200 | Y9: 200 | Z9: 200 | AA9: 200 | AB9: 200 | AC9: 200 | AD9: 200 | AE9: 200
A10: Orbit altitude | B10: km | C10: 830 | D10: 800 | E10: 822 | F10: 822 | G10: 830 | H10: 830 | I10: 830 | J10: 830 | K10: 600 | L10: 600 | M10: 822 | N10: 822 | O10: 830 | P10: 830 | Q10: 830 | R10: 830 | S10: 600 | T10: 600 | U10: 822 | V10: 822 | W10: 830 | X10: 830 | Y10: 830 | Z10: 830 | AA10: 600 | AB10: 600 | AC10: 830 | AD10: 600 | AE10: 600
A11: Angle of incidence at Earth's surface (from zenith) | B11: deg | C11: 53.3 | D11: 53 | E11: 0 | F11: 59 | G11: 53.3 | H11: 0 | I11: 58.5 | J11: 53.3 | K11: 0 | L11: 55.7 | M11: 0 | N11: 59 | O11: 53.3 | P11: 0 | Q11: 58.5 | R11: 53.3 | S11: 0 | T11: 55.7 | U11: 0 | V11: 59 | W11: 53.3 | X11: 0 | Y11: 58.5 | Z11: 53.3 | AA11: 0 | AB11: 55.7 | AC11: 53.3 | AD11: 0 | AE11: 55.7
A12: Elevation angle at ground | B12: deg | C12: =90-C11 -> 36.7 | D12: =90-D11 -> 37 | E12: =90-E11 -> 90 | F12: 31 | G12: 36.7 | H12: 90 | I12: 31.5 | J12: 36.7 | K12: 90 | L12: 34.3 | M12: 90 | N12: 31 | O12: 36.7 | P12: 90 | Q12: 31.5 | R12: 36.7 | S12: =90-S11 -> 90 | T12: 34.3 | U12: 90 | V12: 31 | W12: 36.7 | X12: 90 | Y12: 31.5 | Z12: 36.7 | AA12: =90-AA11 -> 90 | AB12: 34.3 | AC12: 36.7 | AD12: =90-AD11 -> 90 | AE12: 34.3
A13: Off-nadir angle | B13: deg | C13: =(ASIN(SIN(C11*PI()/180)/(1+C10/6371)))*180/PI()+0.00000001 -> 45.18299423 | D13: =(ASIN(SIN(D11*PI()/180)/(1+D10/6371)))*180/PI()+0.00000001 -> 45.19744971 | E13: 1e-08 | F13: 49.39479043 | G13: 45.18299423 | H13: 1e-08 | I13: 48.96977181 | J13: 45.18299423 | K13: 1e-08 | L13: 49.02495908 | M13: 1e-08 | N13: 49.39479043 | O13: 45.18299423 | P13: 1e-08 | Q13: 48.96977181 | R13: 45.18299423 | S13: 1e-08 | T13: 49.02495908 | U13: 1e-08 | V13: 49.39479043 | W13: 45.18299423 | X13: 1e-08 | Y13: 48.96977181 | Z13: 45.18299423 | AA13: 1e-08 | AB13: 49.02495908 | AC13: 45.18299423 | AD13: 1e-08 | AE13: 49.02495908
A14: Slant path distance | B14: km | C14: =6371*SIN((ASIN(((6371+C10)/6371)*SIN(C13*PI()/180))*180/PI()-C13)*PI()/180)/SIN(C13*PI()/180) -> 1268.117481 | D14: =6371*SIN((ASIN(((6371+D10)/6371)*SIN(D13*PI()/180))*180/PI()-D13)*PI()/180)/SIN(D13*PI()/180) -> 1218.99489 | E14: 822 | F14: 1400.207928 | G14: 1268.117481 | H14: 830 | I14: 1398.309283 | J14: 1268.117481 | K14: 600 | L14: 980.8707785 | M14: 822 | N14: 1400.207928 | O14: 1268.117481 | P14: 830 | Q14: 1398.309283 | R14: 1268.117481 | S14: 600 | T14: 980.8707785 | U14: 822 | V14: 1400.207928 | W14: 1268.117481 | X14: 830 | Y14: 1398.309283 | Z14: 1268.117481 | AA14: 600 | AB14: 980.8707785 | AC14: 1268.117481 | AD14: 600 | AE14: 980.8707785
A15: EESS antenna gain | B15: dBi | C15: 55.5 | D15: 55 | E15: 44.8 | F15: 44.8 | G15: 56.9 | H15: 43 | I15: 43 | J15: 52 | K15: 50 | L15: 50 | M15: 44.8 | N15: 44.8 | O15: 56.9 | P15: 43 | Q15: 43 | R15: 52 | S15: 50 | T15: 50 | U15: 44.8 | V15: 44.8 | W15: 56.9 | X15: 43 | Y15: 43 | Z15: 52 | AA15: 50 | AB15: 50 | AC15: 52 | AD15: 50 | AE15: 50
A16: Size of EESS FOV on Earth's surface | B16: km² | C16: 82 | D16: 82 | E16: 201 | F16: 1103 | G16: 61 | H16: 315 | I16: 1762 | J16: 164 | K16: 28 | L16: 141 | M16: 201 | N16: 1103 | O16: 61 | P16: 315 | Q16: 1762 | R16: 164 | S16: 28 | T16: 141 | U16: 201 | V16: 1103 | W16: 61 | X16: 315 | Y16: 1762 | Z16: 164 | AA16: 28 | AB16: 141 | AC16: 164 | AD16: 28 | AE16: 141
A17: EESS interference criterion in the reference bandwidth (ITU-R RS.2017-0) | B17: dBW | C17: -166 | D17: -166 | E17: -163 | F17: -163 | G17: -163 | H17: -163 | I17: -163 | J17: -163 | K17: -163 | L17: -163 | M17: -163 | N17: -163 | O17: -163 | P17: -163 | Q17: -163 | R17: -163 | S17: -163 | T17: -163 | U17: -160 | V17: -160 | W17: -160 | X17: -160 | Y17: -160 | Z17: -160 | AA17: -160 | AB17: -160 | AC17: -160 | AD17: -160 | AE17: -160
A18: Apportionment factor | B18: dB | C18: 12 | D18: 12 | E18: 12 | F18: 12 | G18: 12 | H18: 12 | I18: 12 | J18: 12 | K18: 12 | L18: 12 | M18: 12 | N18: 12 | O18: 12 | P18: 12 | Q18: 12 | R18: 12 | S18: 12 | T18: 12 | U18: 12 | V18: 12 | W18: 12 | X18: 12 | Y18: 12 | Z18: 12 | AA18: 12 | AB18: 12 | AC18: 12 | AD18: 12 | AE18: 12
A20: Radiodetermination system (interferer):
A21: Conducted Tx power of interferer | B21: dBm | C21: ='System Parameter'!$I4 -> 9 | D21: ='System Parameter'!$I4 -> 9 | E21: ='System Parameter'!$U4 -> 24 | F21: ='System Parameter'!$U4 -> 24 | G21: ='System Parameter'!$U4 -> 24 | H21: ='System Parameter'!$U4 -> 24 | I21: ='System Parameter'!$U4 -> 24 | J21: ='System Parameter'!$U4 -> 24 | K21: ='System Parameter'!$U4 -> 24 | L21: ='System Parameter'!$U4 -> 24 | M21: ='System Parameter'!$W4 -> 9 | N21: ='System Parameter'!$W4 -> 9 | O21: ='System Parameter'!$W4 -> 9 | P21: ='System Parameter'!$W4 -> 9 | Q21: ='System Parameter'!$W4 -> 9 | R21: ='System Parameter'!$W4 -> 9 | S21: ='System Parameter'!$W4 -> 9 | T21: ='System Parameter'!$W4 -> 9 | U21: ='System Parameter'!$AD4 -> 9 | V21: ='System Parameter'!$AD4 -> 9 | W21: ='System Parameter'!$AD4 -> 9 | X21: ='System Parameter'!$AD4 -> 9 | Y21: ='System Parameter'!$AD4 -> 9 | Z21: ='System Parameter'!$AD4 -> 9 | AA21: ='System Parameter'!$AD4 -> 9 | AB21: ='System Parameter'!$AD4 -> 9 | AC21: ='System Parameter'!$AE4 -> 9 | AD21: ='System Parameter'!$AE4 -> 9 | AE21: ='System Parameter'!$AE4 -> 9
A22: Out-of-band unwanted emissions attenuation (if EESS victim is located in an adjacent band) | B22: dB | C22: 0 | D22: 0 | E22: 0 | F22: 0 | G22: 0 | H22: 0 | I22: 0 | J22: 0 | K22: 0 | L22: 0 | M22: 0 | N22: 0 | O22: 0 | P22: 0 | Q22: 0 | R22: 0 | S22: 0 | T22: 0 | U22: 0 | V22: 0 | W22: 0 | X22: 0 | Y22: 0 | Z22: 0 | AA22: 0 | AB22: 0 | AC22: 0 | AD22: 0 | AE22: 0
A23: Tx e.i.r.p. of interferer | B23: dBm | C23: =C21-C22+C28 -> 45 | D23: 45 | E23: 60 | F23: 60 | G23: 60 | H23: 60 | I23: 60 | J23: 60 | K23: 60 | L23: 60 | M23: 45 | N23: 45 | O23: 45 | P23: 45 | Q23: 45 | R23: 45 | S23: =S21-S22+S28 -> 45 | T23: 45 | U23: 45 | V23: 45 | W23: 45 | X23: 45 | Y23: 45 | Z23: 45 | AA23: =AA21-AA22+AA28 -> 45 | AB23: 45 | AC23: 45 | AD23: =AD21-AD22+AD28 -> 45 | AE23: 45
A24: Bandwidth of interferer Tx signal | B24: GHz | C24: ='System Parameter'!I8 -> 100 | D24: ='System Parameter'!I8 -> 100 | E24: ='System Parameter'!$U8 -> 100 | F24: ='System Parameter'!$U8 -> 100 | G24: ='System Parameter'!$U8 -> 100 | H24: ='System Parameter'!$U8 -> 100 | I24: ='System Parameter'!$U8 -> 100 | J24: ='System Parameter'!$U8 -> 100 | K24: ='System Parameter'!$U8 -> 100 | L24: ='System Parameter'!$U8 -> 100 | M24: ='System Parameter'!$W8 -> 100 | N24: ='System Parameter'!$W8 -> 100 | O24: ='System Parameter'!$W8 -> 100 | P24: ='System Parameter'!$W8 -> 100 | Q24: ='System Parameter'!$W8 -> 100 | R24: ='System Parameter'!$W8 -> 100 | S24: ='System Parameter'!$W8 -> 100 | T24: ='System Parameter'!$W8 -> 100 | U24: ='System Parameter'!$AD8 -> 100 | V24: ='System Parameter'!$AD8 -> 100 | W24: ='System Parameter'!$AD8 -> 100 | X24: ='System Parameter'!$AD8 -> 100 | Y24: ='System Parameter'!$AD8 -> 100 | Z24: ='System Parameter'!$AD8 -> 100 | AA24: ='System Parameter'!$AD8 -> 100 | AB24: ='System Parameter'!$AD8 -> 100 | AC24: ='System Parameter'!$AE8 -> 100 | AD24: ='System Parameter'!$AE8 -> 100 | AE24: ='System Parameter'!$AE8 -> 100
A25: Tx e.i.r.p. spectral density of interferer | B25: dBm/MHz | C25: =C23-10*LOG(C24*1000) -> -5 | D25: -5 | E25: 10 | F25: 10 | G25: 10 | H25: 10 | I25: 10 | J25: 10 | K25: 10 | L25: 10 | M25: -5 | N25: -5 | O25: -5 | P25: -5 | Q25: -5 | R25: -5 | S25: =S23-10*LOG(S24*1000) -> -5 | T25: -5 | U25: -5 | V25: -5 | W25: -5 | X25: -5 | Y25: -5 | Z25: -5 | AA25: =AA23-10*LOG(AA24*1000) -> -5 | AB25: -5 | AC25: -5 | AD25: =AD23-10*LOG(AD24*1000) -> -5 | AE25: -5
A26: Tx e.i.r.p. spectral density of interferer | B26: dBW/MHz | C26: =C25-30 -> -35 | D26: -35 | E26: -20 | F26: -20 | G26: -20 | H26: -20 | I26: -20 | J26: -20 | K26: -20 | L26: -20 | M26: -35 | N26: -35 | O26: -35 | P26: -35 | Q26: -35 | R26: -35 | S26: =S25-30 -> -35 | T26: -35 | U26: -35 | V26: -35 | W26: -35 | X26: -35 | Y26: -35 | Z26: -35 | AA26: =AA25-30 -> -35 | AB26: -35 | AC26: -35 | AD26: =AD25-30 -> -35 | AE26: -35
A27: Mitigation technique (e.g. duty cycle, adaptive power control) | B27: dB | C27: ='System Parameter'!H17 -> 0 | D27: ='System Parameter'!H17 -> 0 | E27: ='System Parameter'!$U17 -> 0 | F27: ='System Parameter'!$U17 -> 0 | G27: ='System Parameter'!$U17 -> 0 | H27: ='System Parameter'!$U17 -> 0 | I27: ='System Parameter'!$U17 -> 0 | J27: ='System Parameter'!$U17 -> 0 | K27: ='System Parameter'!$U17 -> 0 | L27: ='System Parameter'!$U17 -> 0 | M27: ='System Parameter'!$W17 -> 0 | N27: ='System Parameter'!$W17 -> 0 | O27: ='System Parameter'!$W17 -> 0 | P27: ='System Parameter'!$W17 -> 0 | Q27: ='System Parameter'!$W17 -> 0 | R27: ='System Parameter'!$W17 -> 0 | S27: ='System Parameter'!$W17 -> 0 | T27: ='System Parameter'!$W17 -> 0 | U27: ='System Parameter'!$AD17 -> 0 | V27: ='System Parameter'!$AD17 -> 0 | W27: ='System Parameter'!$AD17 -> 0 | X27: ='System Parameter'!$AD17 -> 0 | Y27: ='System Parameter'!$AD17 -> 0 | Z27: ='System Parameter'!$AD17 -> 0 | AA27: ='System Parameter'!$AD17 -> 0 | AB27: ='System Parameter'!$AD17 -> 0 | AC27: ='System Parameter'!$AE17 -> 0 | AD27: ='System Parameter'!$AE17 -> 0 | AE27: ='System Parameter'!$AE17 -> 0
A28: Gain of the interferer antenna in direction of main radiation | B28: dBi | C28: ='System Parameter'!I5 -> 36 | D28: ='System Parameter'!I5 -> 36 | E28: ='System Parameter'!$U5 -> 36 | F28: ='System Parameter'!$U5 -> 36 | G28: ='System Parameter'!$U5 -> 36 | H28: ='System Parameter'!$U5 -> 36 | I28: ='System Parameter'!$U5 -> 36 | J28: ='System Parameter'!$U5 -> 36 | K28: ='System Parameter'!$U5 -> 36 | L28: ='System Parameter'!$U5 -> 36 | M28: ='System Parameter'!$W5 -> 36 | N28: ='System Parameter'!$W5 -> 36 | O28: ='System Parameter'!$W5 -> 36 | P28: ='System Parameter'!$W5 -> 36 | Q28: ='System Parameter'!$W5 -> 36 | R28: ='System Parameter'!$W5 -> 36 | S28: ='System Parameter'!$W5 -> 36 | T28: ='System Parameter'!$W5 -> 36 | U28: ='System Parameter'!$AD5 -> 36 | V28: ='System Parameter'!$AD5 -> 36 | W28: ='System Parameter'!$AD5 -> 36 | X28: ='System Parameter'!$AD5 -> 36 | Y28: ='System Parameter'!$AD5 -> 36 | Z28: ='System Parameter'!$AD5 -> 36 | AA28: ='System Parameter'!$AD5 -> 36 | AB28: ='System Parameter'!$AD5 -> 36 | AC28: ='System Parameter'!$AE5 -> 36 | AD28: ='System Parameter'!$AE5 -> 36 | AE28: ='System Parameter'!$AE5 -> 36
A30: Free space loss between interferer and EESS | B30: dB | C30: =20*LOG10(4*PI()*C14*1000/C8) -> 196.0310313 | D30: =20*LOG10(4*PI()*D14*1000/D8) -> 195.6878792 | E30: =20*LOG10(4*PI()*E14*1000/E8) -> 195.7731166 | F30: 200.3995309 | G30: 199.53887 | H30: 195.8572421 | I30: 200.387745 | J30: 199.53887 | K30: 193.0387052 | L30: 197.3079162 | M30: 196.205245 | N30: 200.8316593 | O30: 199.9709985 | P30: 196.2893705 | Q30: 200.8198735 | R30: 199.9709985 | S30: =20*LOG10(4*PI()*S14*1000/S8) -> 193.4708337 | T30: 197.7400446 | U30: 198.2218425 | V30: 202.8482568 | W30: 201.9875959 | X30: 198.305968 | Y30: 202.8364709 | Z30: 201.9875959 | AA30: =20*LOG10(4*PI()*AA14*1000/AA8) -> 195.4874311 | AB30: 199.7566421 | AC30: 202.078931 | AD30: =20*LOG10(4*PI()*AD14*1000/AD8) -> 195.5787662 | AE30: 199.8479772
A31: Direct e.i.r.p. spectral density at the EESS antenna | B31: dBW/MHz | C31: =C26-C30+C27 -> -231.0310313 | D31: -230.6878792 | E31: -215.7731166 | F31: -220.3995309 | G31: -219.53887 | H31: -215.8572421 | I31: -220.387745 | J31: -219.53887 | K31: -213.0387052 | L31: -217.3079162 | M31: -231.205245 | N31: -235.8316593 | O31: -234.9709985 | P31: -231.2893705 | Q31: -235.8198735 | R31: -234.9709985 | S31: =S26-S30+S27 -> -228.4708337 | T31: -232.7400446 | U31: -233.2218425 | V31: -237.8482568 | W31: -236.9875959 | X31: -233.305968 | Y31: -237.8364709 | Z31: -236.9875959 | AA31: =AA26-AA30+AA27 -> -230.4874311 | AB31: -234.7566421 | AC31: -237.078931 | AD31: =AD26-AD30+AD27 -> -230.5787662 | AE31: -234.8479772
A32: Atmospheric loss (according to contribution SE24(20)063_rev1 and SE24(20)WI71#9-03) | B32: dB | C32: 3.2 | D32: 3.2 | E32: 8.3 | F32: 16 | G32: 13.8 | H32: 8.3 | I32: 15.8 | J32: 13.8 | K32: 8.3 | L32: 14.7 | M32: 8.3 | N32: 16 | O32: 13.8 | P32: 8.3 | Q32: 15.8 | R32: 13.8 | S32: 8.3 | T32: 14.7 | U32: ='System Parameter'!$AD25 -> 5 | V32: ='System Parameter'!$AD25 -> 5 | W32: ='System Parameter'!$AD25 -> 5 | X32: ='System Parameter'!$AD25 -> 5 | Y32: ='System Parameter'!$AD25 -> 5 | Z32: ='System Parameter'!$AD25 -> 5 | AA32: ='System Parameter'!$AD25 -> 5 | AB32: ='System Parameter'!$AD25 -> 5 | AC32: 8.8 | AD32: 5.3 | AE32: 9.3
A33: Polarisation mismatch loss | B33: dB | C33: 3 | D33: 3 | E33: 3 | F33: 3 | G33: 3 | H33: 3 | I33: 3 | J33: 3 | K33: 3 | L33: 3 | M33: 3 | N33: 3 | O33: 3 | P33: 3 | Q33: 3 | R33: 3 | S33: 3 | T33: 3 | U33: 3 | V33: 3 | W33: 3 | X33: 3 | Y33: 3 | Z33: 3 | AA33: 3 | AB33: 3 | AC33: 3 | AD33: 3 | AE33: 3
A34: Indoor-outdoor attenuation (according to clause 2.3 in the Report) | B34: dB | C34: ='System Parameter'!$H22 -> 50 | D34: ='System Parameter'!$H22 -> 50 | E34: ='System Parameter'!$U22 -> 50 | F34: ='System Parameter'!$U22 -> 50 | G34: ='System Parameter'!$U22 -> 50 | H34: ='System Parameter'!$U22 -> 50 | I34: ='System Parameter'!$U22 -> 50 | J34: ='System Parameter'!$U22 -> 50 | K34: ='System Parameter'!$U22 -> 50 | L34: ='System Parameter'!$U22 -> 50 | M34: ='System Parameter'!$W22 -> 50 | N34: ='System Parameter'!$W22 -> 50 | O34: ='System Parameter'!$W22 -> 50 | P34: ='System Parameter'!$W22 -> 50 | Q34: ='System Parameter'!$W22 -> 50 | R34: ='System Parameter'!$W22 -> 50 | S34: ='System Parameter'!$W22 -> 50 | T34: ='System Parameter'!$W22 -> 50 | U34: ='System Parameter'!$W22 -> 50 | V34: ='System Parameter'!$W22 -> 50 | W34: ='System Parameter'!$W22 -> 50 | X34: ='System Parameter'!$W22 -> 50 | Y34: ='System Parameter'!$W22 -> 50 | Z34: ='System Parameter'!$W22 -> 50 | AA34: ='System Parameter'!$W22 -> 50 | AB34: ='System Parameter'!$W22 -> 50 | AC34: ='System Parameter'!$W22 -> 50 | AD34: ='System Parameter'!$W22 -> 50 | AE34: ='System Parameter'!$W22 -> 50
A35: Power spectral density at the EESS receiver in a 1 MHz bandwidth | B35: dBW/MHz | C35: =C31+C15-C32-C33-C34 -> -231.7310313 | D35: =D31+D15-D32-D33-D34 -> -231.8878792 | E35: -232.2731166 | F35: -244.5995309 | G35: -229.43887 | H35: -234.1572421 | I35: -246.187745 | J35: -234.33887 | K35: -224.3387052 | L35: -235.0079162 | M35: -247.705245 | N35: -260.0316593 | O35: -244.8709985 | P35: -249.5893705 | Q35: -261.6198735 | R35: -249.7709985 | S35: -239.7708337 | T35: -250.4400446 | U35: -246.4218425 | V35: -251.0482568 | W35: -238.0875959 | X35: -248.305968 | Y35: -252.8364709 | Z35: -242.9875959 | AA35: -238.4874311 | AB35: -242.7566421 | AC35: -246.878931 | AD35: -238.8787662 | AE35: -247.1479772
A36: Corresponding power at the EESS receiver in the reference bandwidth for a single interferer | B36: dBW | C36: =C35+10*LOG10(C9) -> -208.7207313 | D36: =D35+10*LOG10(D9) -> -208.8775792 | E36: =E35+10*LOG10(E9) -> -209.2628166 | F36: -221.5892309 | G36: -206.4285701 | H36: -211.1469421 | I36: -223.1774451 | J36: -211.3285701 | K36: -201.3284053 | L36: -211.9976162 | M36: -224.6949451 | N36: -237.0213594 | O36: -221.8606985 | P36: -226.5790706 | Q36: -238.6095735 | R36: -226.7606985 | S36: =S35+10*LOG10(S9) -> -216.7605337 | T36: -227.4297446 | U36: -223.4115425 | V36: -228.0379568 | W36: -215.077296 | X36: -225.295668 | Y36: -229.826171 | Z36: -219.977296 | AA36: =AA35+10*LOG10(AA9) -> -215.4771312 | AB36: -219.7463421 | AC36: -223.8686311 | AD36: =AD35+10*LOG10(AD9) -> -215.8684663 | AE36: -224.1376772
A37: Number of interferers in EESS FOV on Earth's surface | C37: 1 | D37: 1 | E37: 1 | F37: 1 | G37: 1 | H37: 1 | I37: 1 | J37: 1 | K37: 1 | L37: 1 | M37: 1 | N37: 1 | O37: 1 | P37: 1 | Q37: 1 | R37: 1 | S37: 1 | T37: 1 | U37: 1 | V37: 1 | W37: 1 | X37: 1 | Y37: 1 | Z37: 1 | AA37: 1 | AB37: 1 | AC37: 1 | AD37: 1 | AE37: 1
A38: Corresponding received power at the EESS in the reference bandwidth within the EESS's FOV | B38: dBW | C38: =C36+10*LOG10(C37) -> -208.7207313 | D38: =D36+10*LOG10(D37) -> -208.8775792 | E38: =E36+10*LOG10(E37) -> -209.2628166 | F38: -221.5892309 | G38: -206.4285701 | H38: -211.1469421 | I38: -223.1774451 | J38: -211.3285701 | K38: -201.3284053 | L38: -211.9976162 | M38: -224.6949451 | N38: -237.0213594 | O38: -221.8606985 | P38: -226.5790706 | Q38: -238.6095735 | R38: -226.7606985 | S38: =S36+10*LOG10(S37) -> -216.7605337 | T38: -227.4297446 | U38: -223.4115425 | V38: -228.0379568 | W38: -215.077296 | X38: -225.295668 | Y38: -229.826171 | Z38: -219.977296 | AA38: =AA36+10*LOG10(AA37) -> -215.4771312 | AB38: -219.7463421 | AC38: -223.8686311 | AD38: =AD36+10*LOG10(AD37) -> -215.8684663 | AE38: -224.1376772
A39: Margin with reference to ITU-R RS.2017-0 | B39: dB | C39: =C17-C18-C38 -> 30.72073133 | D39: =D17-D18-D38 -> 30.87757924 | E39: =E17-E18-E38 -> 34.26281662 | F39: 46.58923091 | G39: 31.42857006 | H39: 36.14694211 | I39: 48.17744509 | J39: 36.32857006 | K39: 26.32840527 | L39: 36.9976162 | M39: 49.69494506 | N39: 62.02135935 | O39: 46.8606985 | P39: 51.57907055 | Q39: 63.60957353 | R39: 51.7606985 | S39: =S17-S18-S38 -> 41.76053371 | T39: 52.42974464 | U39: 51.41154252 | V39: 56.03795681 | W39: 43.07729596 | X39: 53.29566801 | Y39: 57.82617099 | Z39: 47.97729596 | AA39: =AA17-AA18-AA38 -> 43.47713117 | AB39: 47.7463421 | AC39: 51.86863107 | AD39: =AD17-AD18-AD38 -> 43.86846629 | AE39: 52.13767721
C46: Band of EESS: 114,25-122,25 GHz | E46: Band of EESS: 174,8-191,8 GHz (lower) | M46: Band of EESS: 174,8-191,8 GHz (upper) | U46: Band of EESS: 235-238 GHz | AC46: Band of EESS: 239 GHz
A47: Aggregated interference study | C47: MWI | D47: Planned EUMETSAT radiometer (ECC Report 190) | E47: MHS (nadir) | F47: MHS (outer) | G47: MWI | H47: MWS (nadir) | I47: MWS (outer) | J47: ICI | K47: AWS (nadir) | L47: AWS (outer) | M47: MHS (nadir) | N47: MHS (outer) | O47: MWI | P47: MWS (nadir) | Q47: MWS (outer) | R47: ICI | S47: AWS (nadir) | T47: AWS (outer) | U47: MHS (nadir) | V47: MHS (outer) | W47: MWI | X47: MWS (nadir) | Y47: MWS (outer) | Z47: ICI | AA47: AWS (nadir) | AB47: AWS (outer) | AC47: ICI | AD47: AWS (nadir) | AE47: AWS (outer)
A48: Sensor type | C48: Conical scan | D48: Conical scan | E48: Nadir scan | F48: Nadir scan | G48: Conical scan | H48: Nadir scan | I48: Nadir scan | J48: Conical scan | K48: Nadir scan | L48: Nadir scan | M48: Nadir scan | N48: Nadir scan | O48: Conical scan | P48: Nadir scan | Q48: Nadir scan | R48: Conical scan | S48: Nadir scan | T48: Nadir scan | U48: Nadir scan | V48: Nadir scan | W48: Conical scan | X48: Nadir scan | Y48: Nadir scan | Z48: Conical scan | AA48: Nadir scan | AB48: Nadir scan | AC48: Conical scan | AD48: Nadir scan | AE48: Nadir scan
A49: EESS: | B49: Units
A50: Assumed centre frequency of EESS | B50: GHz | C50: 119.125 | D50: 119.125 | E50: 178.4 | F50: 178.4 | G50: 178.4 | H50: 178.4 | I50: 178.4 | J50: 178.4 | K50: 178.4 | L50: 178.4 | M50: 187.5 | N50: 187.5 | O50: 187.5 | P50: 187.5 | Q50: 187.5 | R50: 187.5 | S50: 187.5 | T50: 187.5 | U50: =(235+238)/2 -> 236.5 | V50: =(235+238)/2 -> 236.5 | W50: 236.5 | X50: 236.5 | Y50: 236.5 | Z50: 236.5 | AA50: 236.5 | AB50: 236.5 | AC50: 239 | AD50: 239 | AE50: 239
A51: Wavelength of EESS | B51: m | C51: =2.99792458/C50/10 -> 0.002516620844 | D51: 0.002516620844 | E51: 0.001680450998 | F51: 0.001680450998 | G51: 0.001680450998 | H51: 0.001680450998 | I51: 0.001680450998 | J51: 0.001680450998 | K51: 0.001680450998 | L51: 0.001680450998 | M51: 0.001598893109 | N51: 0.001598893109 | O51: 0.001598893109 | P51: 0.001598893109 | Q51: 0.001598893109 | R51: 0.001598893109 | S51: 0.001598893109 | T51: 0.001598893109 | U51: =2.99792458/U50/10 -> 0.001267621387 | V51: 0.001267621387 | W51: 0.001267621387 | X51: 0.001267621387 | Y51: 0.001267621387 | Z51: 0.001267621387 | AA51: 0.001267621387 | AB51: 0.001267621387 | AC51: =2.99792458/AC50/10 -> 0.001254361749 | AD51: 0.001254361749 | AE51: 0.001254361749
A52: Reference bandwidth | B52: MHz | C52: 200 | D52: 200 | E52: 200 | F52: 200 | G52: 200 | H52: 200 | I52: 200 | J52: 200 | K52: 200 | L52: 200 | M52: 200 | N52: 200 | O52: 200 | P52: 200 | Q52: 200 | R52: 200 | S52: 200 | T52: 200 | U52: 200 | V52: 200 | W52: 200 | X52: 200 | Y52: 200 | Z52: 200 | AA52: 200 | AB52: 200 | AC52: 200 | AD52: 200 | AE52: 200
A53: Orbit altitude | B53: km | C53: 830 | D53: 800 | E53: 822 | F53: 822 | G53: 830 | H53: 830 | I53: 830 | J53: 830 | K53: 600 | L53: 600 | M53: 822 | N53: 822 | O53: 830 | P53: 830 | Q53: 830 | R53: 830 | S53: 600 | T53: 600 | U53: 822 | V53: 822 | W53: 830 | X53: 830 | Y53: 830 | Z53: 830 | AA53: 600 | AB53: 600 | AC53: 830 | AD53: 600 | AE53: 600
A54: Angle of incidence at Earth's surface (from zenith) | B54: deg | C54: 53.3 | D54: 53 | E54: 0 | F54: 59 | G54: 53.3 | H54: 0 | I54: 58.5 | J54: 53.3 | K54: 0 | L54: 55.7 | M54: 0 | N54: 59 | O54: 53.3 | P54: 0 | Q54: 58.5 | R54: 53.3 | S54: 0 | T54: 55.7 | U54: 0 | V54: 59 | W54: 53.3 | X54: 0 | Y54: 58.5 | Z54: 53.3 | AA54: 0 | AB54: 55.7 | AC54: 53.3 | AD54: 0 | AE54: 55.7
A55: Elevation angle at ground | B55: deg | C55: =90-C54 -> 36.7 | D55: =90-D54 -> 37 | E55: =90-E54 -> 90 | F55: 31 | G55: 36.7 | H55: 90 | I55: 31.5 | J55: 36.7 | K55: 90 | L55: 34.3 | M55: 90 | N55: 31 | O55: 36.7 | P55: 90 | Q55: 31.5 | R55: 36.7 | S55: 90 | T55: 34.3 | U55: =90-U54 -> 90 | V55: 31 | W55: 36.7 | X55: 90 | Y55: 31.5 | Z55: 36.7 | AA55: 90 | AB55: 34.3 | AC55: =90-AC54 -> 36.7 | AD55: 90 | AE55: 34.3
A56: Off-nadir angle | B56: deg | C56: =(ASIN(SIN(C54*PI()/180)/(1+C53/6371)))*180/PI()+0.00000001 -> 45.18299423 | D56: =(ASIN(SIN(D54*PI()/180)/(1+D53/6371)))*180/PI()+0.00000001 -> 45.19744971 | E56: 1e-08 | F56: 49.39479043 | G56: 45.18299423 | H56: 1e-08 | I56: 48.96977181 | J56: 45.18299423 | K56: 1e-08 | L56: 49.02495908 | M56: 1e-08 | N56: 49.39479043 | O56: 45.18299423 | P56: 1e-08 | Q56: 48.96977181 | R56: 45.18299423 | S56: 1e-08 | T56: 49.02495908 | U56: 1e-08 | V56: 49.39479043 | W56: 45.18299423 | X56: 1e-08 | Y56: 48.96977181 | Z56: 45.18299423 | AA56: 1e-08 | AB56: 49.02495908 | AC56: 45.18299423 | AD56: 1e-08 | AE56: 49.02495908
A57: Slant path distance | B57: km | C57: =6371*SIN((ASIN(((6371+C53)/6371)*SIN(C56*PI()/180))*180/PI()-C56)*PI()/180)/SIN(C56*PI()/180) -> 1268.117481 | D57: =6371*SIN((D54-D56)*PI()/180)/SIN(D56*PI()/180) -> 1218.994888 | E57: 822 | F57: =6371*SIN((F54-F56)*PI()/180)/SIN(F56*PI()/180) -> 1400.207926 | G57: =6371*SIN((G54-G56)*PI()/180)/SIN(G56*PI()/180) -> 1268.117479 | H57: 830 | I57: =6371*SIN((I54-I56)*PI()/180)/SIN(I56*PI()/180) -> 1398.309281 | J57: =6371*SIN((J54-J56)*PI()/180)/SIN(J56*PI()/180) -> 1268.117479 | K57: 600 | L57: =6371*SIN((L54-L56)*PI()/180)/SIN(L56*PI()/180) -> 980.8707767 | M57: 822 | N57: =6371*SIN((N54-N56)*PI()/180)/SIN(N56*PI()/180) -> 1400.207926 | O57: =6371*SIN((O54-O56)*PI()/180)/SIN(O56*PI()/180) -> 1268.117479 | P57: 830 | Q57: =6371*SIN((Q54-Q56)*PI()/180)/SIN(Q56*PI()/180) -> 1398.309281 | R57: =6371*SIN((R54-R56)*PI()/180)/SIN(R56*PI()/180) -> 1268.117479 | S57: 600 | T57: =6371*SIN((T54-T56)*PI()/180)/SIN(T56*PI()/180) -> 980.8707767 | U57: 822 | V57: =6371*SIN((V54-V56)*PI()/180)/SIN(V56*PI()/180) -> 1400.207926 | W57: =6371*SIN((W54-W56)*PI()/180)/SIN(W56*PI()/180) -> 1268.117479 | X57: 830 | Y57: =6371*SIN((Y54-Y56)*PI()/180)/SIN(Y56*PI()/180) -> 1398.309281 | Z57: =6371*SIN((Z54-Z56)*PI()/180)/SIN(Z56*PI()/180) -> 1268.117479 | AA57: 600 | AB57: =6371*SIN((AB54-AB56)*PI()/180)/SIN(AB56*PI()/180) -> 980.8707767 | AC57: =6371*SIN((AC54-AC56)*PI()/180)/SIN(AC56*PI()/180) -> 1268.117479 | AD57: 600 | AE57: =6371*SIN((AE54-AE56)*PI()/180)/SIN(AE56*PI()/180) -> 980.8707767
A58: EESS antenna gain | B58: dBi | C58: 55.5 | D58: 55 | E58: 44.8 | F58: 44.8 | G58: 56.9 | H58: 43 | I58: 43 | J58: 52 | K58: 50 | L58: 50 | M58: 44.8 | N58: 44.8 | O58: 56.9 | P58: 43 | Q58: 43 | R58: 52 | S58: 50 | T58: 50 | U58: 44.8 | V58: 44.8 | W58: 56.9 | X58: 43 | Y58: 43 | Z58: 52 | AA58: 50 | AB58: 50 | AC58: 52 | AD58: 50 | AE58: 50
A59: Size of EESS FOV on Earth's surface | B59: km² | C59: 82 | D59: 82 | E59: 201 | F59: 1103 | G59: 61 | H59: 315 | I59: 1762 | J59: 164 | K59: 28 | L59: 141 | M59: 201 | N59: 1103 | O59: 61 | P59: 315 | Q59: 1762 | R59: 164 | S59: 28 | T59: 141 | U59: 201 | V59: 1103 | W59: 61 | X59: 315 | Y59: 1762 | Z59: 164 | AA59: 28 | AB59: 141 | AC59: 164 | AD59: 28 | AE59: 141
A60: EESS interference criterion in the reference bandwidth (ITU-R RS.2017-0) | B60: dBW | C60: -166 | D60: -166 | E60: -163 | F60: -163 | G60: -163 | H60: -163 | I60: -163 | J60: -163 | K60: -163 | L60: -163 | M60: -163 | N60: -163 | O60: -163 | P60: -163 | Q60: -163 | R60: -163 | S60: -163 | T60: -163 | U60: -160 | V60: -160 | W60: -160 | X60: -160 | Y60: -160 | Z60: -160 | AA60: -160 | AB60: -160 | AC60: -160 | AD60: -160 | AE60: -160
A61: Apportionment factor | B61: dB | C61: 12 | D61: 12 | E61: 12 | F61: 12 | G61: 12 | H61: 12 | I61: 12 | J61: 12 | K61: 12 | L61: 12 | M61: 12 | N61: 12 | O61: 12 | P61: 12 | Q61: 12 | R61: 12 | S61: 12 | T61: 12 | U61: 12 | V61: 12 | W61: 12 | X61: 12 | Y61: 12 | Z61: 12 | AA61: 12 | AB61: 12 | AC61: 12 | AD61: 12 | AE61: 12
A63: Radiodetermination system (interferer):
A64: Conducted Tx power of interferer | B64: dBm | C64: ='System Parameter'!$I4 -> 9 | D64: ='System Parameter'!$I4 -> 9 | E64: ='System Parameter'!$U4 -> 24 | F64: ='System Parameter'!$U4 -> 24 | G64: ='System Parameter'!$U4 -> 24 | H64: ='System Parameter'!$U4 -> 24 | I64: ='System Parameter'!$U4 -> 24 | J64: ='System Parameter'!$U4 -> 24 | K64: ='System Parameter'!$U4 -> 24 | L64: ='System Parameter'!$U4 -> 24 | M64: ='System Parameter'!$W4 -> 9 | N64: ='System Parameter'!$W4 -> 9 | O64: ='System Parameter'!$W4 -> 9 | P64: ='System Parameter'!$W4 -> 9 | Q64: ='System Parameter'!$W4 -> 9 | R64: ='System Parameter'!$W4 -> 9 | S64: ='System Parameter'!$W4 -> 9 | T64: ='System Parameter'!$W4 -> 9 | U64: ='System Parameter'!$AD4 -> 9 | V64: ='System Parameter'!$AD4 -> 9 | W64: ='System Parameter'!$AD4 -> 9 | X64: ='System Parameter'!$AD4 -> 9 | Y64: ='System Parameter'!$AD4 -> 9 | Z64: ='System Parameter'!$AD4 -> 9 | AA64: ='System Parameter'!$AD4 -> 9 | AB64: ='System Parameter'!$AD4 -> 9 | AC64: ='System Parameter'!$AE4 -> 9 | AD64: ='System Parameter'!$AE4 -> 9 | AE64: ='System Parameter'!$AE4 -> 9
A65: Out-of-band unwanted emissions attenuation (if EESS victim is located in an adjacent band) | B65: dB | C65: 0 | D65: 0 | E65: 0 | F65: 0 | G65: 0 | H65: 0 | I65: 0 | J65: 0 | K65: 0 | L65: 0 | M65: 0 | N65: 0 | O65: 0 | P65: 0 | Q65: 0 | R65: 0 | S65: 0 | T65: 0 | U65: 0 | V65: 0 | W65: 0 | X65: 0 | Y65: 0 | Z65: 0 | AA65: 0 | AB65: 0 | AC65: 0 | AD65: 0 | AE65: 0
A66: Tx e.i.r.p. of interferer | B66: dBm | C66: =C64-C65+C71 -> 19 | D66: 19 | E66: 34 | F66: 34 | G66: 34 | H66: 34 | I66: 34 | J66: 34 | K66: 34 | L66: 34 | M66: 19 | N66: 19 | O66: 19 | P66: 19 | Q66: 19 | R66: 19 | S66: 19 | T66: 19 | U66: =U64-U65+U71 -> 19 | V66: 19 | W66: 19 | X66: 19 | Y66: 19 | Z66: 19 | AA66: 19 | AB66: 19 | AC66: =AC64-AC65+AC71 -> 19 | AD66: 19 | AE66: 19
A67: Bandwidth of interferer Tx signal | B67: GHz | C67: ='System Parameter'!I8 -> 100 | D67: ='System Parameter'!I8 -> 100 | E67: ='System Parameter'!$U8 -> 100 | F67: ='System Parameter'!$U8 -> 100 | G67: ='System Parameter'!$U8 -> 100 | H67: ='System Parameter'!$U8 -> 100 | I67: ='System Parameter'!$U8 -> 100 | J67: ='System Parameter'!$U8 -> 100 | K67: ='System Parameter'!$U8 -> 100 | L67: ='System Parameter'!$U8 -> 100 | M67: ='System Parameter'!$W8 -> 100 | N67: ='System Parameter'!$W8 -> 100 | O67: ='System Parameter'!$W8 -> 100 | P67: ='System Parameter'!$W8 -> 100 | Q67: ='System Parameter'!$W8 -> 100 | R67: ='System Parameter'!$W8 -> 100 | S67: ='System Parameter'!$W8 -> 100 | T67: ='System Parameter'!$W8 -> 100 | U67: ='System Parameter'!$AD8 -> 100 | V67: ='System Parameter'!$AD8 -> 100 | W67: ='System Parameter'!$AD8 -> 100 | X67: ='System Parameter'!$AD8 -> 100 | Y67: ='System Parameter'!$AD8 -> 100 | Z67: ='System Parameter'!$AD8 -> 100 | AA67: ='System Parameter'!$AD8 -> 100 | AB67: ='System Parameter'!$AD8 -> 100 | AC67: ='System Parameter'!$AE8 -> 100 | AD67: ='System Parameter'!$AE8 -> 100 | AE67: ='System Parameter'!$AE8 -> 100
A68: Tx e.i.r.p. spectral density of interferer | B68: dBm/MHz | C68: =C66-10*LOG(C67*1000) -> -31 | D68: -31 | E68: -16 | F68: -16 | G68: -16 | H68: -16 | I68: -16 | J68: -16 | K68: -16 | L68: -16 | M68: -31 | N68: -31 | O68: -31 | P68: -31 | Q68: -31 | R68: -31 | S68: -31 | T68: -31 | U68: =U66-10*LOG(U67*1000) -> -31 | V68: -31 | W68: -31 | X68: -31 | Y68: -31 | Z68: -31 | AA68: -31 | AB68: -31 | AC68: =AC66-10*LOG(AC67*1000) -> -31 | AD68: -31 | AE68: -31
A69: Tx e.i.r.p. spectral density of interferer | B69: dBW/MHz | C69: =C68-30 -> -61 | D69: -61 | E69: -46 | F69: -46 | G69: -46 | H69: -46 | I69: -46 | J69: -46 | K69: -46 | L69: -46 | M69: -61 | N69: -61 | O69: -61 | P69: -61 | Q69: -61 | R69: -61 | S69: -61 | T69: -61 | U69: =U68-30 -> -61 | V69: -61 | W69: -61 | X69: -61 | Y69: -61 | Z69: -61 | AA69: -61 | AB69: -61 | AC69: =AC68-30 -> -61 | AD69: -61 | AE69: -61
A70: Mitigation technique (e.g. duty cycle, adaptive power control) | B70: dB | C70: ='System Parameter'!H60 -> 0 | D70: ='System Parameter'!H60 -> 0 | E70: ='System Parameter'!$U60 -> 0 | F70: ='System Parameter'!$U60 -> 0 | G70: ='System Parameter'!$U60 -> 0 | H70: ='System Parameter'!$U60 -> 0 | I70: ='System Parameter'!$U60 -> 0 | J70: ='System Parameter'!$U60 -> 0 | K70: ='System Parameter'!$U60 -> 0 | L70: ='System Parameter'!$U60 -> 0 | M70: ='System Parameter'!$W60 -> 0 | N70: ='System Parameter'!$W60 -> 0 | O70: ='System Parameter'!$W60 -> 0 | P70: ='System Parameter'!$W60 -> 0 | Q70: ='System Parameter'!$W60 -> 0 | R70: ='System Parameter'!$W60 -> 0 | S70: ='System Parameter'!$W60 -> 0 | T70: ='System Parameter'!$W60 -> 0 | U70: ='System Parameter'!$AD60 -> 0 | V70: ='System Parameter'!$AD60 -> 0 | W70: ='System Parameter'!$AD60 -> 0 | X70: ='System Parameter'!$AD60 -> 0 | Y70: ='System Parameter'!$AD60 -> 0 | Z70: ='System Parameter'!$AD60 -> 0 | AA70: ='System Parameter'!$AD60 -> 0 | AB70: ='System Parameter'!$AD60 -> 0 | AC70: ='System Parameter'!$AE60 -> 0 | AD70: ='System Parameter'!$AE60 -> 0 | AE70: ='System Parameter'!$AE60 -> 0
A71: Average gain of the interferer antenna in the direction of the victim EESS system | B71: dBi | C71: ='System Parameter'!$C$39 -> 10 | D71: ='System Parameter'!$C$39 -> 10 | E71: ='System Parameter'!$C$39 -> 10 | F71: ='System Parameter'!$C$39 -> 10 | G71: ='System Parameter'!$C$39 -> 10 | H71: ='System Parameter'!$C$39 -> 10 | I71: ='System Parameter'!$C$39 -> 10 | J71: ='System Parameter'!$C$39 -> 10 | K71: ='System Parameter'!$C$39 -> 10 | L71: ='System Parameter'!$C$39 -> 10 | M71: ='System Parameter'!$C$39 -> 10 | N71: ='System Parameter'!$C$39 -> 10 | O71: ='System Parameter'!$C$39 -> 10 | P71: ='System Parameter'!$C$39 -> 10 | Q71: ='System Parameter'!$C$39 -> 10 | R71: ='System Parameter'!$C$39 -> 10 | S71: ='System Parameter'!$C$39 -> 10 | T71: ='System Parameter'!$C$39 -> 10 | U71: ='System Parameter'!$C$39 -> 10 | V71: ='System Parameter'!$C$39 -> 10 | W71: ='System Parameter'!$C$39 -> 10 | X71: ='System Parameter'!$C$39 -> 10 | Y71: ='System Parameter'!$C$39 -> 10 | Z71: ='System Parameter'!$C$39 -> 10 | AA71: ='System Parameter'!$C$39 -> 10 | AB71: ='System Parameter'!$C$39 -> 10 | AC71: ='System Parameter'!$C$39 -> 10 | AD71: ='System Parameter'!$C$39 -> 10 | AE71: ='System Parameter'!$C$39 -> 10
A73: Free space loss between interferer and EESS | B73: dB | C73: =20*LOG10(4*PI()*C57*1000/C51) -> 196.0310313 | D73: =20*LOG10(4*PI()*D57*1000/D51) -> 195.6878792 | E73: =20*LOG10(4*PI()*E57*1000/E51) -> 195.7731166 | F73: 200.3995309 | G73: 199.53887 | H73: 195.8572421 | I73: 200.387745 | J73: 199.53887 | K73: 193.0387052 | L73: 197.3079161 | M73: 196.205245 | N73: 200.8316593 | O73: 199.9709984 | P73: 196.2893705 | Q73: 200.8198735 | R73: 199.9709984 | S73: 193.4708337 | T73: 197.7400446 | U73: =20*LOG10(4*PI()*U57*1000/U51) -> 198.2218425 | V73: 202.8482568 | W73: 201.9875959 | X73: 198.305968 | Y73: 202.8364709 | Z73: 201.9875959 | AA73: 195.4874311 | AB73: 199.756642 | AC73: =20*LOG10(4*PI()*AC57*1000/AC51) -> 202.078931 | AD73: 195.5787662 | AE73: 199.8479772
A74: Direct e.i.r.p. spectral density at the EESS antenna | B74: dBW/MHz | C74: =C69-C73+C70 -> -257.0310313 | D74: -256.6878792 | E74: -241.7731166 | F74: -246.3995309 | G74: -245.53887 | H74: -241.8572421 | I74: -246.387745 | J74: -245.53887 | K74: -239.0387052 | L74: -243.3079161 | M74: -257.205245 | N74: -261.8316593 | O74: -260.9709984 | P74: -257.2893705 | Q74: -261.8198735 | R74: -260.9709984 | S74: -254.4708337 | T74: -258.7400446 | U74: =U69-U73+U70 -> -259.2218425 | V74: -263.8482568 | W74: -262.9875959 | X74: -259.305968 | Y74: -263.8364709 | Z74: -262.9875959 | AA74: -256.4874311 | AB74: -260.756642 | AC74: =AC69-AC73+AC70 -> -263.078931 | AD74: -256.5787662 | AE74: -260.8479772
A75: Atmospheric loss (according to contribution SE24(20)063_rev1 and SE24(20)WI71#9-03) | B75: dB | C75: 3.2 | D75: 3.2 | E75: 8.3 | F75: 16 | G75: 13.8 | H75: 8.3 | I75: 15.8 | J75: 13.8 | K75: 8.3 | L75: 14.7 | M75: 8.3 | N75: 16 | O75: 13.8 | P75: 8.3 | Q75: 15.8 | R75: 13.8 | S75: 8.3 | T75: 14.7 | U75: ='System Parameter'!$AD$25 -> 5 | V75: ='System Parameter'!$AD$25 -> 5 | W75: ='System Parameter'!$AD$25 -> 5 | X75: ='System Parameter'!$AD$25 -> 5 | Y75: ='System Parameter'!$AD$25 -> 5 | Z75: ='System Parameter'!$AD$25 -> 5 | AA75: ='System Parameter'!$AD$25 -> 5 | AB75: ='System Parameter'!$AD$25 -> 5 | AC75: 8.8 | AD75: 5.3 | AE75: 9.3
A76: Polarisation mismatch loss | B76: dB | C76: 3 | D76: 3 | E76: 3 | F76: 3 | G76: 3 | H76: 3 | I76: 3 | J76: 3 | K76: 3 | L76: 3 | M76: 3 | N76: 3 | O76: 3 | P76: 3 | Q76: 3 | R76: 3 | S76: 3 | T76: 3 | U76: 3 | V76: 3 | W76: 3 | X76: 3 | Y76: 3 | Z76: 3 | AA76: 3 | AB76: 3 | AC76: 3 | AD76: 3 | AE76: 3
A77: Indoor-outdoor attenuation (according to clause 2.3 in the Report) | B77: dB | C77: =VLOOKUP(C55,'EESS Shielding Table'!data_1,9) -> 22.31623389 | D77: =VLOOKUP(D55,'EESS Shielding Table'!data_1,9) -> 22.31318879 | E77: =VLOOKUP(E55,'EESS Shielding Table'!data_1,9) -> 26.61562776 | F77: =VLOOKUP(F55,'EESS Shielding Table'!data_1,9) -> 22.52212379 | G77: =VLOOKUP(G55,'EESS Shielding Table'!data_1,9) -> 22.31623389 | H77: =VLOOKUP(H55,'EESS Shielding Table'!data_1,9) -> 26.61562776 | I77: =VLOOKUP(I55,'EESS Shielding Table'!data_1,9) -> 22.52212379 | J77: =VLOOKUP(J55,'EESS Shielding Table'!data_1,9) -> 22.31623389 | K77: =VLOOKUP(K55,'EESS Shielding Table'!data_1,9) -> 26.61562776 | L77: =VLOOKUP(L55,'EESS Shielding Table'!data_1,9) -> 22.41623389 | M77: =VLOOKUP(M55,'EESS Shielding Table'!data_1,9) -> 26.61562776 | N77: =VLOOKUP(N55,'EESS Shielding Table'!data_1,9) -> 22.52212379 | O77: =VLOOKUP(O55,'EESS Shielding Table'!data_1,9) -> 22.31623389 | P77: =VLOOKUP(P55,'EESS Shielding Table'!data_1,9) -> 26.61562776 | Q77: =VLOOKUP(Q55,'EESS Shielding Table'!data_1,9) -> 22.52212379 | R77: =VLOOKUP(R55,'EESS Shielding Table'!data_1,9) -> 22.31623389 | S77: =VLOOKUP(S55,'EESS Shielding Table'!data_1,9) -> 26.61562776 | T77: =VLOOKUP(T55,'EESS Shielding Table'!data_1,9) -> 22.41623389 | U77: =VLOOKUP(U55,'EESS Shielding Table'!data_1,9) -> 26.61562776 | V77: =VLOOKUP(V55,'EESS Shielding Table'!data_1,9) -> 22.52212379 | W77: =VLOOKUP(W55,'EESS Shielding Table'!data_1,9) -> 22.31623389 | X77: =VLOOKUP(X55,'EESS Shielding Table'!data_1,9) -> 26.61562776 | Y77: =VLOOKUP(Y55,'EESS Shielding Table'!data_1,9) -> 22.52212379 | Z77: =VLOOKUP(Z55,'EESS Shielding Table'!data_1,9) -> 22.31623389 | AA77: =VLOOKUP(AA55,'EESS Shielding Table'!data_1,9) -> 26.61562776 | AB77: =VLOOKUP(AB55,'EESS Shielding Table'!data_1,9) -> 22.41623389 | AC77: =VLOOKUP(AC55,'EESS Shielding Table'!data_1,9) -> 22.31623389 | AD77: =VLOOKUP(AD55,'EESS Shielding Table'!data_1,9) -> 26.61562776 | AE77: =VLOOKUP(AE55,'EESS Shielding Table'!data_1,9) -> 22.41623389
A78: Power spectral density at the EESS receiver in a 1 MHz bandwidth | B78: dBW/MHz | C78: =C74+C58-C75-C76-C77 -> -230.0472652 | D78: =D74+D58-D75-D76-D77 -> -230.201068 | E78: -234.8887443 | F78: -243.1216546 | G78: -227.7551039 | H78: -236.7728698 | I78: -244.7098688 | J78: -232.6551039 | K78: -226.954333 | L78: -233.42415 | M78: -250.3208728 | N78: -258.5537831 | O78: -243.1872323 | P78: -252.2049983 | Q78: -260.1419973 | R78: -248.0872323 | S78: -242.3864614 | T78: -248.8562785 | U78: -249.0374702 | V78: -249.5703805 | W78: -236.4038298 | X78: -250.9215957 | Y78: -251.3585947 | Z78: -241.3038298 | AA78: -241.1030589 | AB78: -241.1728759 | AC78: -245.1951649 | AD78: -241.494394 | AE78: -245.564211
A79: Corresponding power at the EESS receiver in the reference bandwidth for a single interferer | B79: dBW | C79: =C78+10*LOG10(C52) -> -207.0369652 | D79: -207.190768 | E79: -211.8784444 | F79: -220.1113547 | G79: -204.7448039 | H79: -213.7625699 | I79: -221.6995689 | J79: -209.6448039 | K79: -203.944033 | L79: -210.4138501 | M79: -227.3105728 | N79: -235.5434831 | O79: -220.1769324 | P79: -229.1946983 | Q79: -237.1316973 | R79: -225.0769324 | S79: -219.3761615 | T79: -225.8459785 | U79: =U78+10*LOG10(U52) -> -226.0271703 | V79: -226.5600806 | W79: -213.3935298 | X79: -227.9112958 | Y79: -228.3482948 | Z79: -218.2935298 | AA79: -218.0927589 | AB79: -218.162576 | AC79: =AC78+10*LOG10(AC52) -> -222.184865 | AD79: -218.484094 | AE79: -222.5539111
A80: Number of RDI-S devices per square kilometre with uniform distribution over Europe | B80: 1/km² | C80: ='Market Size'!H22 -> 0.007602394754 | D80: ='Market Size'!H22 -> 0.007602394754 | E80: ='Market Size'!H24 -> 0.007602394754 | F80: ='Market Size'!H24 -> 0.007602394754 | G80: ='Market Size'!H24 -> 0.007602394754 | H80: ='Market Size'!H24 -> 0.007602394754 | I80: ='Market Size'!H24 -> 0.007602394754 | J80: ='Market Size'!H24 -> 0.007602394754 | K80: ='Market Size'!H24 -> 0.007602394754 | L80: ='Market Size'!H24 -> 0.007602394754 | M80: ='Market Size'!H25 -> 0.007602394754 | N80: ='Market Size'!H25 -> 0.007602394754 | O80: ='Market Size'!H25 -> 0.007602394754 | P80: ='Market Size'!H25 -> 0.007602394754 | Q80: ='Market Size'!H25 -> 0.007602394754 | R80: ='Market Size'!H25 -> 0.007602394754 | S80: ='Market Size'!H25 -> 0.007602394754 | T80: ='Market Size'!H25 -> 0.007602394754 | U80: ='Market Size'!$H25 -> 0.007602394754 | V80: ='Market Size'!$H25 -> 0.007602394754 | W80: ='Market Size'!$H25 -> 0.007602394754 | X80: ='Market Size'!$H25 -> 0.007602394754 | Y80: ='Market Size'!$H25 -> 0.007602394754 | Z80: ='Market Size'!$H25 -> 0.007602394754 | AA80: ='Market Size'!$H25 -> 0.007602394754 | AB80: ='Market Size'!$H25 -> 0.007602394754 | AC80: ='Market Size'!$H25 -> 0.007602394754 | AD80: ='Market Size'!$H25 -> 0.007602394754 | AE80: ='Market Size'!$H25 -> 0.007602394754
A81: Aggregate RDI-S device density (uniform distribution weighted with factor 75; acc. to contribution SE24(20)117) | B81: 1/km² | C81: ='System Parameter'!H29 -> 0.5701796066 | D81: ='System Parameter'!H29 -> 0.5701796066 | E81: ='System Parameter'!$U$29 -> 0.5701796066 | F81: ='System Parameter'!$U$29 -> 0.5701796066 | G81: ='System Parameter'!$U$29 -> 0.5701796066 | H81: ='System Parameter'!$U$29 -> 0.5701796066 | I81: ='System Parameter'!$U$29 -> 0.5701796066 | J81: ='System Parameter'!$U$29 -> 0.5701796066 | K81: ='System Parameter'!$U$29 -> 0.5701796066 | L81: ='System Parameter'!$U$29 -> 0.5701796066 | M81: ='System Parameter'!$W$29 -> 0.5701796066 | N81: ='System Parameter'!$W$29 -> 0.5701796066 | O81: ='System Parameter'!$W$29 -> 0.5701796066 | P81: ='System Parameter'!$W$29 -> 0.5701796066 | Q81: ='System Parameter'!$W$29 -> 0.5701796066 | R81: ='System Parameter'!$W$29 -> 0.5701796066 | S81: ='System Parameter'!$W$29 -> 0.5701796066 | T81: ='System Parameter'!$W$29 -> 0.5701796066 | U81: ='System Parameter'!$AD$29 -> 0.5701796066 | V81: ='System Parameter'!$AD$29 -> 0.5701796066 | W81: ='System Parameter'!$AD$29 -> 0.5701796066 | X81: ='System Parameter'!$AD$29 -> 0.5701796066 | Y81: ='System Parameter'!$AD$29 -> 0.5701796066 | Z81: ='System Parameter'!$AD$29 -> 0.5701796066 | AA81: ='System Parameter'!$AD$29 -> 0.5701796066 | AB81: ='System Parameter'!$AD$29 -> 0.5701796066 | AC81: ='System Parameter'!$AE$29 -> 0.5701796066 | AD81: ='System Parameter'!$AE$29 -> 0.5701796066 | AE81: ='System Parameter'!$AE$29 -> 0.5701796066
A82: Number of aggregate RDI-S devices in the IFOV and active in the reference BW of the satellite | C82: =ROUNDUP(C81*C59,0) -> 47 | D82: =ROUNDUP(D81*D59,0) -> 47 | E82: 115 | F82: 629 | G82: 35 | H82: 180 | I82: 1005 | J82: 94 | K82: 16 | L82: 81 | M82: 115 | N82: 629 | O82: 35 | P82: 180 | Q82: 1005 | R82: 94 | S82: 16 | T82: 81 | U82: 115 | V82: 629 | W82: 35 | X82: 180 | Y82: 1005 | Z82: 94 | AA82: 16 | AB82: 81 | AC82: 94 | AD82: 16 | AE82: 81
A83: Corresponding received power at the EESS in the reference bandwidth within the EESS's FOV | B83: dBW | C83: =C79+10*LOG10(C82) -> -190.3159866 | D83: -190.4697894 | E83: -191.271466 | F83: -192.1248482 | G83: -189.3041235 | H83: -191.2098448 | I83: -191.6779082 | J83: -189.9135254 | K83: -191.9028332 | L83: -191.3289999 | M83: -206.7035944 | N83: -207.5569767 | O83: -204.7362519 | P83: -206.6419733 | Q83: -207.1100367 | R83: -205.3456538 | S83: -207.3349616 | T83: -206.7611283 | U83: -205.4201919 | V83: -198.5735741 | W83: -197.9528494 | X83: -205.3585707 | Y83: -198.3266341 | Z83: -198.5622513 | AA83: -206.0515591 | AB83: -199.0777258 | AC83: -202.4535864 | AD83: -206.4428942 | AE83: -203.4690609
A84: Margin with reference to ITU-R RS.2017-0 | B84: dB | C84: =C60-C61-C83 -> 12.31598664 | D84: 12.46978944 | E84: 16.27146597 | F84: 17.12484823 | G84: 14.30412349 | H84: 16.20984482 | I84: 16.67790824 | J84: 14.9135254 | K84: 16.9028332 | L84: 16.32899989 | M84: 31.70359441 | N84: 32.55697667 | O84: 29.73625193 | P84: 31.64197326 | Q84: 32.11003668 | R84: 30.34565384 | S84: 32.33496164 | T84: 31.76112833 | U84: 33.42019187 | V84: 26.57357413 | W84: 25.95284939 | X84: 33.35857072 | Y84: 26.32663414 | Z84: 26.5622513 | AA84: 34.0515591 | AB84: 27.07772579 | AC84: 30.45358642 | AD84: 34.44289422 | AE84: 31.4690609

Sheet EESS 5.340 bands
A1: Compatibility analysis between radiodetermination systems for industry automation in shielded environments and EESS in protected bands ( protected by article 5.340 in the Radio Regulations)
C2: Protected bands assigned to EESS
C3: 114,25-116 GHz | E3: 148,5-151,5 GHz | G3: 164-167 GHz | J3: 182-185 GHz | R3: 190-191,8 GHz | Z3: 200-209 GHz | AH3: 226-231,5 GHz | AP3: 250-252 GHz
A4: Single-entry study | C4: MWI | D4: Planned EUMETSAT radiometer (ECC Report 190) | E4: Syst. N1 (nadir) | F4: Syst. N1 (outer) | G4: Syst. P1 | H4: Syst. P2 (nadir) | I4: Syst. P2 (outer) | J4: MHS (nadir) | K4: MHS (outer) | L4: MWI | M4: MWS (nadir) | N4: MWS (outer) | O4: ICI | P4: AWS (nadir) | Q4: AWS (outer) | R4: MHS (nadir) | S4: MHS (outer) | T4: MWI | U4: MWS (nadir) | V4: MWS (outer) | W4: ICI | X4: AWS (nadir) | Y4: AWS (outer) | Z4: MHS (nadir) | AA4: MHS (outer) | AB4: MWI | AC4: MWS (nadir) | AD4: MWS (outer) | AE4: ICI | AF4: AWS (nadir) | AG4: AWS (outer) | AH4: MHS (nadir) | AI4: MHS (outer) | AJ4: MWI | AK4: MWS (nadir) | AL4: MWS (outer) | AM4: ICI | AN4: AWS (nadir) | AO4: AWS (outer) | AP4: MHS (nadir) | AQ4: MHS (outer) | AR4: MWI | AS4: MWS (nadir) | AT4: MWS (outer) | AU4: ICI | AV4: AWS (nadir) | AW4: AWS (outer)
A5: Sensor type | C5: Conical scan | D5: Conical scan | E5: Nadir | F5: Nadir | G5: Conical scan | H5: Nadir | I5: Nadir | J5: Nadir scan | K5: Nadir scan | L5: Conical scan | M5: Nadir scan | N5: Nadir scan | O5: Conical scan | P5: Nadir scan | Q5: Nadir scan | R5: Nadir scan | S5: Nadir scan | T5: Conical scan | U5: Nadir scan | V5: Nadir scan | W5: Conical scan | X5: Nadir scan | Y5: Nadir scan | Z5: Nadir scan | AA5: Nadir scan | AB5: Conical scan | AC5: Nadir scan | AD5: Nadir scan | AE5: Conical scan | AF5: Nadir scan | AG5: Nadir scan | AH5: Nadir scan | AI5: Nadir scan | AJ5: Conical scan | AK5: Nadir scan | AL5: Nadir scan | AM5: Conical scan | AN5: Nadir scan | AO5: Nadir scan | AP5: Nadir scan | AQ5: Nadir scan | AR5: Conical scan | AS5: Nadir scan | AT5: Nadir scan | AU5: Conical scan | AV5: Nadir scan | AW5: Nadir scan
A6: EESS: | B6: Units
A7: Assumed centre frequency of EESS | B7: GHz | C7: 115.125 | D7: 115.125 | E7: 150 | F7: 150 | G7: 165.5 | H7: 165.5 | I7: 165.5 | J7: 183.5 | K7: 183.5 | L7: 183.5 | M7: 183.5 | N7: 183.5 | O7: 183.5 | P7: 183.5 | Q7: 183.5 | R7: 190.9 | S7: 190.9 | T7: 190.9 | U7: 190.9 | V7: 190.9 | W7: 190.9 | X7: 190.9 | Y7: 190.9 | Z7: 204.5 | AA7: 204.5 | AB7: 204.5 | AC7: 204.5 | AD7: 204.5 | AE7: 204.5 | AF7: 204.5 | AG7: 204.5 | AH7: 228.75 | AI7: 228.75 | AJ7: 228.75 | AK7: 228.75 | AL7: 228.75 | AM7: 228.75 | AN7: 228.75 | AO7: 228.75 | AP7: 251 | AQ7: 251 | AR7: 251 | AS7: 251 | AT7: 251 | AU7: 251 | AV7: 251 | AW7: 251
A8: Wavelength of EESS | B8: m | C8: =2.99792458/C7/10 -> 0.002604060439 | D8: 0.002604060439 | E8: 0.001998616387 | F8: 0.001998616387 | G8: =2.99792458/G7/10 -> 0.001811434792 | H8: =2.99792458/H7/10 -> 0.001811434792 | I8: 0.001811434792 | J8: 0.001633746365 | K8: 0.001633746365 | L8: 0.001633746365 | M8: 0.001633746365 | N8: 0.001633746365 | O8: 0.001633746365 | P8: 0.001633746365 | Q8: 0.001633746365 | R8: 0.001570416228 | S8: 0.001570416228 | T8: 0.001570416228 | U8: 0.001570416228 | V8: 0.001570416228 | W8: 0.001570416228 | X8: 0.001570416228 | Y8: 0.001570416228 | Z8: =2.99792458/Z7/10 -> 0.00146597779 | AA8: 0.00146597779 | AB8: 0.00146597779 | AC8: 0.00146597779 | AD8: 0.00146597779 | AE8: 0.00146597779 | AF8: 0.00146597779 | AG8: 0.00146597779 | AH8: =2.99792458/AH7/10 -> 0.001310568122 | AI8: 0.001310568122 | AJ8: 0.001310568122 | AK8: 0.001310568122 | AL8: 0.001310568122 | AM8: 0.001310568122 | AN8: 0.001310568122 | AO8: 0.001310568122 | AP8: 0.001194392263 | AQ8: 0.001194392263 | AR8: 0.001194392263 | AS8: 0.001194392263 | AT8: 0.001194392263 | AU8: 0.001194392263 | AV8: 0.001194392263 | AW8: 0.001194392263
A9: Reference bandwidth | B9: MHz | C9: 200 | D9: 200 | E9: 500 | F9: 500 | G9: 200 | H9: 200 | I9: 200 | J9: 200 | K9: 200 | L9: 200 | M9: 200 | N9: 200 | O9: 200 | P9: 200 | Q9: 200 | R9: 200 | S9: 200 | T9: 200 | U9: 200 | V9: 200 | W9: 200 | X9: 200 | Y9: 200 | Z9: 200 | AA9: 200 | AB9: 200 | AC9: 200 | AD9: 200 | AE9: 200 | AF9: 200 | AG9: 200 | AH9: 200 | AI9: 200 | AJ9: 200 | AK9: 200 | AL9: 200 | AM9: 200 | AN9: 200 | AO9: 200 | AP9: 200 | AQ9: 200 | AR9: 200 | AS9: 200 | AT9: 200 | AU9: 200 | AV9: 200 | AW9: 200
A10: Orbit altitude | B10: km | C10: 830 | D10: 800 | E10: 705 | F10: 705 | G10: 828 | H10: 824 | I10: 824 | J10: 822 | K10: 822 | L10: 830 | M10: 830 | N10: 830 | O10: 830 | P10: 600 | Q10: 600 | R10: 822 | S10: 822 | T10: 830 | U10: 830 | V10: 830 | W10: 830 | X10: 600 | Y10: 600 | Z10: 822 | AA10: 822 | AB10: 830 | AC10: 830 | AD10: 830 | AE10: 830 | AF10: 600 | AG10: 600 | AH10: 822 | AI10: 822 | AJ10: 830 | AK10: 830 | AL10: 830 | AM10: 830 | AN10: 600 | AO10: 600 | AP10: 822 | AQ10: 822 | AR10: 830 | AS10: 830 | AT10: 830 | AU10: 830 | AV10: 600 | AW10: 600
A11: Angle of incidence at Earth's surface (from zenith) | B11: deg | C11: 53.3 | D11: 53 | E11: 0 | F11: 56.9 | G11: 55.5 | H11: 0 | I11: 64 | J11: 0 | K11: 59 | L11: 53.3 | M11: 0 | N11: 58.5 | O11: 53.3 | P11: 0 | Q11: 55.7 | R11: 0 | S11: 59 | T11: 53.3 | U11: 0 | V11: 58.5 | W11: 53.3 | X11: 0 | Y11: 55.7 | Z11: 0 | AA11: 59 | AB11: 53.3 | AC11: 0 | AD11: 58.5 | AE11: 53.3 | AF11: 0 | AG11: 55.7 | AH11: 0 | AI11: 59 | AJ11: 53.3 | AK11: 0 | AL11: 58.5 | AM11: 53.3 | AN11: 0 | AO11: 55.7 | AP11: 0 | AQ11: 59 | AR11: 53.3 | AS11: 0 | AT11: 58.5 | AU11: 53.3 | AV11: 0 | AW11: 55.7
A12: Elevation angle at ground | B12: deg | C12: =90-C11 -> 36.7 | D12: =90-D11 -> 37 | E12: 90 | F12: 33.1 | G12: 34.5 | H12: 90 | I12: 26 | J12: 90 | K12: 31 | L12: 36.7 | M12: 90 | N12: 31.5 | O12: 36.7 | P12: 90 | Q12: 34.3 | R12: 90 | S12: 31 | T12: 36.7 | U12: 90 | V12: 31.5 | W12: 36.7 | X12: 90 | Y12: 34.3 | Z12: 90 | AA12: 31 | AB12: 36.7 | AC12: 90 | AD12: 31.5 | AE12: 36.7 | AF12: 90 | AG12: 34.3 | AH12: 90 | AI12: 31 | AJ12: 36.7 | AK12: 90 | AL12: 31.5 | AM12: 36.7 | AN12: 90 | AO12: 34.3 | AP12: 90 | AQ12: 31 | AR12: 36.7 | AS12: 90 | AT12: 31.5 | AU12: 36.7 | AV12: 90 | AW12: 34.3
A13: Off-nadir angle | B13: deg | C13: =(ASIN(SIN(C11*PI()/180)/(1+C10/6371)))*180/PI()+0.00000001 -> 45.18299423 | D13: =(ASIN(SIN(D11*PI()/180)/(1+D10/6371)))*180/PI()+0.00000001 -> 45.19744971 | E13: 1e-08 | F13: 48.96028579 | G13: 46.83096782 | H13: 1e-08 | I13: 52.73661527 | J13: 1e-08 | K13: 49.39479043 | L13: 45.18299423 | M13: 1e-08 | N13: 48.96977181 | O13: 45.18299423 | P13: 1e-08 | Q13: 49.02495908 | R13: 1e-08 | S13: 49.39479043 | T13: 45.18299423 | U13: 1e-08 | V13: 48.96977181 | W13: 45.18299423 | X13: 1e-08 | Y13: 49.02495908 | Z13: 1e-08 | AA13: 49.39479043 | AB13: 45.18299423 | AC13: 1e-08 | AD13: 48.96977181 | AE13: 45.18299423 | AF13: 1e-08 | AG13: 49.02495908 | AH13: 1e-08 | AI13: 49.39479043 | AJ13: 45.18299423 | AK13: 1e-08 | AL13: 48.96977181 | AM13: 45.18299423 | AN13: 1e-08 | AO13: 49.02495908 | AP13: 1e-08 | AQ13: 49.39479043 | AR13: 45.18299423 | AS13: 1e-08 | AT13: 48.96977181 | AU13: 45.18299423 | AV13: 1e-08 | AW13: 49.02495908
A14: Slant path distance | B14: km | C14: =6371*SIN((ASIN(((6371+C10)/6371)*SIN(C13*PI()/180))*180/PI()-C13)*PI()/180)/SIN(C13*PI()/180) -> 1268.117481 | D14: =6371*SIN((ASIN(((6371+D10)/6371)*SIN(D13*PI()/180))*180/PI()-D13)*PI()/180)/SIN(D13*PI()/180) -> 1218.99489 | E14: =6371*SIN((ASIN(((6371+E10)/6371)*SIN(E13*PI()/180))*180/PI()-E13)*PI()/180)/SIN(E13*PI()/180) -> 705 | F14: 1166.758594 | G14: 1316.643352 | H14: 824 | I14: 1563.565476 | J14: 822 | K14: 1400.207928 | L14: 1268.117481 | M14: 830 | N14: 1398.309283 | O14: 1268.117481 | P14: 600 | Q14: 980.8707785 | R14: 822 | S14: 1400.207928 | T14: 1268.117481 | U14: 830 | V14: 1398.309283 | W14: 1268.117481 | X14: 600 | Y14: 980.8707785 | Z14: 822 | AA14: 1400.207928 | AB14: 1268.117481 | AC14: 830 | AD14: 1398.309283 | AE14: 1268.117481 | AF14: 600 | AG14: 980.8707785 | AH14: 822 | AI14: 1400.207928 | AJ14: 1268.117481 | AK14: 830 | AL14: 1398.309283 | AM14: 1268.117481 | AN14: 600 | AO14: 980.8707785 | AP14: 822 | AQ14: 1400.207928 | AR14: 1268.117481 | AS14: 830 | AT14: 1398.309283 | AU14: 1268.117481 | AV14: 600 | AW14: 980.8707785
A15: EESS antenna gain | B15: dBi | C15: 55.5 | D15: 55 | E15: 45 | F15: 45 | G15: 54 | H15: 43.9 | I15: 43.9 | J15: 44.8 | K15: 44.8 | L15: 56.9 | M15: 43 | N15: 43 | O15: 52 | P15: 50 | Q15: 50 | R15: 44.8 | S15: 44.8 | T15: 56.9 | U15: 43 | V15: 43 | W15: 52 | X15: 50 | Y15: 50 | Z15: 44.8 | AA15: 44.8 | AB15: 56.9 | AC15: 43 | AD15: 43 | AE15: 52 | AF15: 50 | AG15: 50 | AH15: 44.8 | AI15: 44.8 | AJ15: 56.9 | AK15: 43 | AL15: 43 | AM15: 52 | AN15: 50 | AO15: 50 | AP15: 44.8 | AQ15: 44.8 | AR15: 56.9 | AS15: 43 | AT15: 43 | AU15: 52 | AV15: 50 | AW15: 50
A16: Size of EESS FOV on Earth's surface | B16: km² | C16: 82 | D16: 82 | E16: 154 | F16: 759 | G16: 113 | H16: 254 | I16: 2083 | J16: 201 | K16: 1103 | L16: 61 | M16: 315 | N16: 1762 | O16: 164 | P16: 28 | Q16: 141 | R16: 201 | S16: 1103 | T16: 61 | U16: 315 | V16: 1762 | W16: 164 | X16: 28 | Y16: 141 | Z16: 201 | AA16: 1103 | AB16: 61 | AC16: 315 | AD16: 1762 | AE16: 164 | AF16: 28 | AG16: 141 | AH16: 201 | AI16: 1103 | AJ16: 61 | AK16: 315 | AL16: 1762 | AM16: 164 | AN16: 28 | AO16: 141 | AP16: 201 | AQ16: 1103 | AR16: 61 | AS16: 315 | AT16: 1762 | AU16: 164 | AV16: 28 | AW16: 141
A17: EESS interference criterion in the reference bandwidth (ITU-R RS.2017-0) | B17: dBW | C17: -166 | D17: -166 | E17: -159 | F17: -159 | G17: -163 | H17: -163 | I17: -163 | J17: -163 | K17: -163 | L17: -163 | M17: -163 | N17: -163 | O17: -163 | P17: -163 | Q17: -163 | R17: -163 | S17: -163 | T17: -163 | U17: -163 | V17: -163 | W17: -163 | X17: -163 | Y17: -163 | Z17: -163 | AA17: -163 | AB17: -163 | AC17: -163 | AD17: -163 | AE17: -163 | AF17: -163 | AG17: -163 | AH17: -160 | AI17: -160 | AJ17: -160 | AK17: -160 | AL17: -160 | AM17: -160 | AN17: -160 | AO17: -160 | AP17: -160 | AQ17: -160 | AR17: -160 | AS17: -160 | AT17: -160 | AU17: -160 | AV17: -160 | AW17: -160
A18: Apportionment factor | B18: dB | C18: 12 | D18: 12 | E18: 12 | F18: 12 | G18: 12 | H18: 12 | I18: 12 | J18: 12 | K18: 12 | L18: 12 | M18: 12 | N18: 12 | O18: 12 | P18: 12 | Q18: 12 | R18: 12 | S18: 12 | T18: 12 | U18: 12 | V18: 12 | W18: 12 | X18: 12 | Y18: 12 | Z18: 12 | AA18: 12 | AB18: 12 | AC18: 12 | AD18: 12 | AE18: 12 | AF18: 12 | AG18: 12 | AH18: 12 | AI18: 12 | AJ18: 12 | AK18: 12 | AL18: 12 | AM18: 12 | AN18: 12 | AO18: 12 | AP18: 12 | AQ18: 12 | AR18: 12 | AS18: 12 | AT18: 12 | AU18: 12 | AV18: 12 | AW18: 12
A20: Radiodetermination system (interferer):
A21: Conducted Tx power of interferer | B21: dBm | C21: ='System Parameter'!$I4 -> 9 | D21: ='System Parameter'!$I4 -> 9 | E21: ='System Parameter'!$O4 -> -1 | F21: ='System Parameter'!$O4 -> -1 | G21: ='System Parameter'!R4 -> -1 | H21: ='System Parameter'!$R4 -> -1 | I21: ='System Parameter'!$R4 -> -1 | J21: ='System Parameter'!$V4 -> -1 | K21: ='System Parameter'!$V4 -> -1 | L21: ='System Parameter'!$V4 -> -1 | M21: ='System Parameter'!$V4 -> -1 | N21: ='System Parameter'!$V4 -> -1 | O21: ='System Parameter'!$V4 -> -1 | P21: ='System Parameter'!$V4 -> -1 | Q21: ='System Parameter'!$V4 -> -1 | R21: ='System Parameter'!$X4 -> -1 | S21: ='System Parameter'!$X4 -> -1 | T21: ='System Parameter'!$X4 -> -1 | U21: ='System Parameter'!$X4 -> -1 | V21: ='System Parameter'!$X4 -> -1 | W21: ='System Parameter'!$X4 -> -1 | X21: ='System Parameter'!$X4 -> -1 | Y21: ='System Parameter'!$X4 -> -1 | Z21: ='System Parameter'!$Z4 -> -1 | AA21: ='System Parameter'!$Z4 -> -1 | AB21: ='System Parameter'!$Z4 -> -1 | AC21: ='System Parameter'!$Z4 -> -1 | AD21: ='System Parameter'!$Z4 -> -1 | AE21: ='System Parameter'!$Z4 -> -1 | AF21: ='System Parameter'!$Z4 -> -1 | AG21: ='System Parameter'!$Z4 -> -1 | AH21: ='System Parameter'!$AB4 -> -1 | AI21: ='System Parameter'!$AB4 -> -1 | AJ21: ='System Parameter'!$AB4 -> -1 | AK21: ='System Parameter'!$AB4 -> -1 | AL21: ='System Parameter'!$AB4 -> -1 | AM21: ='System Parameter'!$AB4 -> -1 | AN21: ='System Parameter'!$AB4 -> -1 | AO21: ='System Parameter'!$AB4 -> -1 | AP21: ='System Parameter'!$AI4 -> -1 | AQ21: ='System Parameter'!$AI4 -> -1 | AR21: ='System Parameter'!$AI4 -> -1 | AS21: ='System Parameter'!$AI4 -> -1 | AT21: ='System Parameter'!$AI4 -> -1 | AU21: ='System Parameter'!$AI4 -> -1 | AV21: ='System Parameter'!$AI4 -> -1 | AW21: ='System Parameter'!$AI4 -> -1
A22: Out-of-band unwanted emissions attenuation (if EESS victim is located in an adjacent band) | B22: dB | C22: 10 | D22: 10 | E22: 0 | F22: 0 | G22: 0 | H22: 0 | I22: 0 | J22: 0 | K22: 0 | L22: 0 | M22: 0 | N22: 0 | O22: 0 | P22: 0 | Q22: 0 | R22: 0 | S22: 0 | T22: 0 | U22: 0 | V22: 0 | W22: 0 | X22: 0 | Y22: 0 | Z22: 0 | AA22: 0 | AB22: 0 | AC22: 0 | AD22: 0 | AE22: 0 | AF22: 0 | AG22: 0 | AH22: 0 | AI22: 0 | AJ22: 0 | AK22: 0 | AL22: 0 | AM22: 0 | AN22: 0 | AO22: 0 | AP22: 0 | AQ22: 0 | AR22: 0 | AS22: 0 | AT22: 0 | AU22: 0 | AV22: 0 | AW22: 0
A23: Tx e.i.r.p. of interferer | B23: dBm | C23: =C21-C22+C28 -> 35 | D23: 35 | E23: 35 | F23: 35 | G23: =G21-G22+G28 -> 35 | H23: =H21-H22+H28 -> 35 | I23: 35 | J23: 35 | K23: 35 | L23: 35 | M23: 35 | N23: 35 | O23: 35 | P23: 35 | Q23: 35 | R23: 35 | S23: 35 | T23: 35 | U23: 35 | V23: 35 | W23: 35 | X23: 35 | Y23: 35 | Z23: =Z21-Z22+Z28 -> 35 | AA23: 35 | AB23: 35 | AC23: 35 | AD23: 35 | AE23: 35 | AF23: 35 | AG23: 35 | AH23: =AH21-AH22+AH28 -> 35 | AI23: 35 | AJ23: 35 | AK23: 35 | AL23: 35 | AM23: 35 | AN23: 35 | AO23: 35 | AP23: 35 | AQ23: 35 | AR23: 35 | AS23: 35 | AT23: 35 | AU23: 35 | AV23: 35 | AW23: 35
A24: Bandwidth of interferer Tx signal | B24: GHz | C24: ='System Parameter'!I8 -> 100 | D24: ='System Parameter'!I8 -> 100 | E24: ='System Parameter'!$O8 -> 100 | F24: ='System Parameter'!$O8 -> 100 | G24: ='System Parameter'!R8 -> 100 | H24: ='System Parameter'!$R8 -> 100 | I24: ='System Parameter'!$R8 -> 100 | J24: ='System Parameter'!$V8 -> 100 | K24: ='System Parameter'!$V8 -> 100 | L24: ='System Parameter'!$V8 -> 100 | M24: ='System Parameter'!$V8 -> 100 | N24: ='System Parameter'!$V8 -> 100 | O24: ='System Parameter'!$V8 -> 100 | P24: ='System Parameter'!$V8 -> 100 | Q24: ='System Parameter'!$V8 -> 100 | R24: ='System Parameter'!$X8 -> 100 | S24: ='System Parameter'!$X8 -> 100 | T24: ='System Parameter'!$X8 -> 100 | U24: ='System Parameter'!$X8 -> 100 | V24: ='System Parameter'!$X8 -> 100 | W24: ='System Parameter'!$X8 -> 100 | X24: ='System Parameter'!$X8 -> 100 | Y24: ='System Parameter'!$X8 -> 100 | Z24: ='System Parameter'!$Z8 -> 100 | AA24: ='System Parameter'!$Z8 -> 100 | AB24: ='System Parameter'!$Z8 -> 100 | AC24: ='System Parameter'!$Z8 -> 100 | AD24: ='System Parameter'!$Z8 -> 100 | AE24: ='System Parameter'!$Z8 -> 100 | AF24: ='System Parameter'!$Z8 -> 100 | AG24: ='System Parameter'!$Z8 -> 100 | AH24: ='System Parameter'!$AB8 -> 100 | AI24: ='System Parameter'!$AB8 -> 100 | AJ24: ='System Parameter'!$AB8 -> 100 | AK24: ='System Parameter'!$AB8 -> 100 | AL24: ='System Parameter'!$AB8 -> 100 | AM24: ='System Parameter'!$AB8 -> 100 | AN24: ='System Parameter'!$AB8 -> 100 | AO24: ='System Parameter'!$AB8 -> 100 | AP24: ='System Parameter'!$AI8 -> 100 | AQ24: ='System Parameter'!$AI8 -> 100 | AR24: ='System Parameter'!$AI8 -> 100 | AS24: ='System Parameter'!$AI8 -> 100 | AT24: ='System Parameter'!$AI8 -> 100 | AU24: ='System Parameter'!$AI8 -> 100 | AV24: ='System Parameter'!$AI8 -> 100 | AW24: ='System Parameter'!$AI8 -> 100
A25: Tx e.i.r.p. spectral density of interferer | B25: dBm/MHz | C25: =C23-10*LOG(C24*1000) -> -15 | D25: -15 | E25: -15 | F25: -15 | G25: =G23-10*LOG(G24*1000) -> -15 | H25: =H23-10*LOG(H24*1000) -> -15 | I25: -15 | J25: -15 | K25: -15 | L25: -15 | M25: -15 | N25: -15 | O25: -15 | P25: -15 | Q25: -15 | R25: -15 | S25: -15 | T25: -15 | U25: -15 | V25: -15 | W25: -15 | X25: -15 | Y25: -15 | Z25: =Z23-10*LOG(Z24*1000) -> -15 | AA25: -15 | AB25: -15 | AC25: -15 | AD25: -15 | AE25: -15 | AF25: -15 | AG25: -15 | AH25: =AH23-10*LOG(AH24*1000) -> -15 | AI25: -15 | AJ25: -15 | AK25: -15 | AL25: -15 | AM25: -15 | AN25: -15 | AO25: -15 | AP25: -15 | AQ25: -15 | AR25: -15 | AS25: -15 | AT25: -15 | AU25: -15 | AV25: -15 | AW25: -15
A26: Tx e.i.r.p. spectral density of interferer | B26: dBW/MHz | C26: =C25-30 -> -45 | D26: -45 | E26: -45 | F26: -45 | G26: =G25-30 -> -45 | H26: =H25-30 -> -45 | I26: -45 | J26: -45 | K26: -45 | L26: -45 | M26: -45 | N26: -45 | O26: -45 | P26: -45 | Q26: -45 | R26: -45 | S26: -45 | T26: -45 | U26: -45 | V26: -45 | W26: -45 | X26: -45 | Y26: -45 | Z26: =Z25-30 -> -45 | AA26: -45 | AB26: -45 | AC26: -45 | AD26: -45 | AE26: -45 | AF26: -45 | AG26: -45 | AH26: =AH25-30 -> -45 | AI26: -45 | AJ26: -45 | AK26: -45 | AL26: -45 | AM26: -45 | AN26: -45 | AO26: -45 | AP26: -45 | AQ26: -45 | AR26: -45 | AS26: -45 | AT26: -45 | AU26: -45 | AV26: -45 | AW26: -45
A27: Mitigation technique (e.g. duty cycle, adaptive power control) | B27: dB | C27: ='System Parameter'!H17 -> 0 | D27: ='System Parameter'!H17 -> 0 | E27: ='System Parameter'!$U17 -> 0 | F27: ='System Parameter'!$U17 -> 0 | G27: ='System Parameter'!R17 -> 0 | H27: ='System Parameter'!$R17 -> 0 | I27: ='System Parameter'!$R17 -> 0 | J27: ='System Parameter'!$V17 -> 0 | K27: ='System Parameter'!$V17 -> 0 | L27: ='System Parameter'!$V17 -> 0 | M27: ='System Parameter'!$V17 -> 0 | N27: ='System Parameter'!$V17 -> 0 | O27: ='System Parameter'!$V17 -> 0 | P27: ='System Parameter'!$V17 -> 0 | Q27: ='System Parameter'!$V17 -> 0 | R27: ='System Parameter'!$X17 -> 0 | S27: ='System Parameter'!$X17 -> 0 | T27: ='System Parameter'!$X17 -> 0 | U27: ='System Parameter'!$X17 -> 0 | V27: ='System Parameter'!$X17 -> 0 | W27: ='System Parameter'!$X17 -> 0 | X27: ='System Parameter'!$X17 -> 0 | Y27: ='System Parameter'!$X17 -> 0 | Z27: ='System Parameter'!$Z17 -> 0 | AA27: ='System Parameter'!$Z17 -> 0 | AB27: ='System Parameter'!$Z17 -> 0 | AC27: ='System Parameter'!$Z17 -> 0 | AD27: ='System Parameter'!$Z17 -> 0 | AE27: ='System Parameter'!$Z17 -> 0 | AF27: ='System Parameter'!$Z17 -> 0 | AG27: ='System Parameter'!$Z17 -> 0 | AH27: ='System Parameter'!$AB17 -> 0 | AI27: ='System Parameter'!$AB17 -> 0 | AJ27: ='System Parameter'!$AB17 -> 0 | AK27: ='System Parameter'!$AB17 -> 0 | AL27: ='System Parameter'!$AB17 -> 0 | AM27: ='System Parameter'!$AB17 -> 0 | AN27: ='System Parameter'!$AB17 -> 0 | AO27: ='System Parameter'!$AB17 -> 0 | AP27: ='System Parameter'!$AI17 -> 0 | AQ27: ='System Parameter'!$AI17 -> 0 | AR27: ='System Parameter'!$AI17 -> 0 | AS27: ='System Parameter'!$AI17 -> 0 | AT27: ='System Parameter'!$AI17 -> 0 | AU27: ='System Parameter'!$AI17 -> 0 | AV27: ='System Parameter'!$AI17 -> 0 | AW27: ='System Parameter'!$AI17 -> 0
A28: Gain of the interferer antenna in direction of main radiation | B28: dBi | C28: ='System Parameter'!I5 -> 36 | D28: ='System Parameter'!I5 -> 36 | E28: ='System Parameter'!$O5 -> 36 | F28: ='System Parameter'!$O5 -> 36 | G28: ='System Parameter'!R5 -> 36 | H28: ='System Parameter'!$R5 -> 36 | I28: ='System Parameter'!$R5 -> 36 | J28: ='System Parameter'!$V5 -> 36 | K28: ='System Parameter'!$V5 -> 36 | L28: ='System Parameter'!$V5 -> 36 | M28: ='System Parameter'!$V5 -> 36 | N28: ='System Parameter'!$V5 -> 36 | O28: ='System Parameter'!$V5 -> 36 | P28: ='System Parameter'!$V5 -> 36 | Q28: ='System Parameter'!$V5 -> 36 | R28: ='System Parameter'!$X5 -> 36 | S28: ='System Parameter'!$X5 -> 36 | T28: ='System Parameter'!$X5 -> 36 | U28: ='System Parameter'!$X5 -> 36 | V28: ='System Parameter'!$X5 -> 36 | W28: ='System Parameter'!$X5 -> 36 | X28: ='System Parameter'!$X5 -> 36 | Y28: ='System Parameter'!$X5 -> 36 | Z28: ='System Parameter'!$Z5 -> 36 | AA28: ='System Parameter'!$Z5 -> 36 | AB28: ='System Parameter'!$Z5 -> 36 | AC28: ='System Parameter'!$Z5 -> 36 | AD28: ='System Parameter'!$Z5 -> 36 | AE28: ='System Parameter'!$Z5 -> 36 | AF28: ='System Parameter'!$Z5 -> 36 | AG28: ='System Parameter'!$Z5 -> 36 | AH28: ='System Parameter'!$AB5 -> 36 | AI28: ='System Parameter'!$AB5 -> 36 | AJ28: ='System Parameter'!$AB5 -> 36 | AK28: ='System Parameter'!$AB5 -> 36 | AL28: ='System Parameter'!$AB5 -> 36 | AM28: ='System Parameter'!$AB5 -> 36 | AN28: ='System Parameter'!$AB5 -> 36 | AO28: ='System Parameter'!$AB5 -> 36 | AP28: ='System Parameter'!$AI5 -> 36 | AQ28: ='System Parameter'!$AI5 -> 36 | AR28: ='System Parameter'!$AI5 -> 36 | AS28: ='System Parameter'!$AI5 -> 36 | AT28: ='System Parameter'!$AI5 -> 36 | AU28: ='System Parameter'!$AI5 -> 36 | AV28: ='System Parameter'!$AI5 -> 36 | AW28: ='System Parameter'!$AI5 -> 36
A30: Free space loss between interferer and EESS | B30: dB | C30: =20*LOG10(4*PI()*C14*1000/C8) -> 195.7343659 | D30: =20*LOG10(4*PI()*D14*1000/D8) -> 195.3912138 | E30: =20*LOG10(4*PI()*E14*1000/E8) -> 192.9333907 | F30: 197.3092286 | G30: =20*LOG10(4*PI()*G14*1000/G8) -> 199.2131062 | H30: =20*LOG10(4*PI()*H14*1000/H8) -> 195.1422874 | I30: 200.7060646 | J30: 196.0179409 | K30: 200.6443552 | L30: 199.7836944 | M30: 196.1020664 | N30: 200.6325694 | O30: 199.7836944 | P30: 193.2835296 | Q30: 197.5527405 | R30: 196.3613381 | S30: 200.9877524 | T30: 200.1270916 | U30: 196.4454636 | V30: 200.9759666 | W30: 200.1270916 | X30: 193.6269268 | Y30: 197.8961377 | Z30: =20*LOG10(4*PI()*Z14*1000/Z8) -> 196.9590858 | AA30: 201.5855001 | AB30: 200.7248393 | AC30: 197.0432113 | AD30: 201.5737143 | AE30: 200.7248393 | AF30: 194.2246745 | AG30: 198.4938854 | AH30: =20*LOG10(4*PI()*AH14*1000/AH8) -> 197.9324416 | AI30: 202.5588559 | AJ30: 201.6981951 | AK30: 198.0165671 | AL30: 202.5470701 | AM30: 201.6981951 | AN30: 195.1980303 | AO30: 199.4672412 | AP30: 198.738694 | AQ30: 203.3651083 | AR30: 202.5044474 | AS30: 198.8228195 | AT30: 203.3533225 | AU30: 202.5044474 | AV30: 196.0042827 | AW30: 200.2734936
A31: Direct e.i.r.p. spectral density at the EESS antenna | B31: dBW/MHz | C31: =C26-C30+C27 -> -240.7343659 | D31: -240.3912138 | E31: -237.9333907 | F31: -242.3092286 | G31: =G26-G30+G27 -> -244.2131062 | H31: =H26-H30+H27 -> -240.1422874 | I31: -245.7060646 | J31: -241.0179409 | K31: -245.6443552 | L31: -244.7836944 | M31: -241.1020664 | N31: -245.6325694 | O31: -244.7836944 | P31: -238.2835296 | Q31: -242.5527405 | R31: -241.3613381 | S31: -245.9877524 | T31: -245.1270916 | U31: -241.4454636 | V31: -245.9759666 | W31: -245.1270916 | X31: -238.6269268 | Y31: -242.8961377 | Z31: =Z26-Z30+Z27 -> -241.9590858 | AA31: -246.5855001 | AB31: -245.7248393 | AC31: -242.0432113 | AD31: -246.5737143 | AE31: -245.7248393 | AF31: -239.2246745 | AG31: -243.4938854 | AH31: =AH26-AH30+AH27 -> -242.9324416 | AI31: -247.5588559 | AJ31: -246.6981951 | AK31: -243.0165671 | AL31: -247.5470701 | AM31: -246.6981951 | AN31: -240.1980303 | AO31: -244.4672412 | AP31: -243.738694 | AQ31: -248.3651083 | AR31: -247.5044474 | AS31: -243.8228195 | AT31: -248.3533225 | AU31: -247.5044474 | AV31: -241.0042827 | AW31: -245.2734936
A32: Atmospheric loss (according to contribution SE24(20)063_rev1 and SE24(20)WI71#9-03) | B32: dB | C32: 3.2 | D32: 3.2 | E32: 2 | F32: 3.8 | G32: 5.7 | H32: 3.2 | I32: 7.4 | J32: 8.3 | K32: 16 | L32: 13.8 | M32: 8.3 | N32: 15.8 | O32: 13.8 | P32: 8.3 | Q32: 14.7 | R32: 8.3 | S32: 16 | T32: 13.8 | U32: 8.3 | V32: 15.8 | W32: 13.8 | X32: 8.3 | Y32: 14.7 | Z32: ='System Parameter'!$Z25 -> 5 | AA32: ='System Parameter'!$Z25 -> 5 | AB32: ='System Parameter'!$Z25 -> 5 | AC32: ='System Parameter'!$Z25 -> 5 | AD32: ='System Parameter'!$Z25 -> 5 | AE32: ='System Parameter'!$Z25 -> 5 | AF32: ='System Parameter'!$Z25 -> 5 | AG32: ='System Parameter'!$Z25 -> 5 | AH32: ='System Parameter'!$AB25 -> 4.5 | AI32: ='System Parameter'!$AB25 -> 4.5 | AJ32: ='System Parameter'!$AB25 -> 4.5 | AK32: ='System Parameter'!$AB25 -> 4.5 | AL32: ='System Parameter'!$AB25 -> 4.5 | AM32: ='System Parameter'!$AB25 -> 4.5 | AN32: 4.8 | AO32: 8.5 | AP32: ='System Parameter'!$AI25 -> 5.5 | AQ32: ='System Parameter'!$AI25 -> 5.5 | AR32: ='System Parameter'!$AI25 -> 5.5 | AS32: ='System Parameter'!$AI25 -> 5.5 | AT32: ='System Parameter'!$AI25 -> 5.5 | AU32: ='System Parameter'!$AI25 -> 5.5 | AV32: ='System Parameter'!$AI25 -> 5.5 | AW32: ='System Parameter'!$AI25 -> 5.5
A33: Polarisation mismatch loss | B33: dB | C33: 3 | D33: 3 | E33: 3 | F33: 3 | G33: 3 | H33: 3 | I33: 3 | J33: 3 | K33: 3 | L33: 3 | M33: 3 | N33: 3 | O33: 3 | P33: 3 | Q33: 3 | R33: 3 | S33: 3 | T33: 3 | U33: 3 | V33: 3 | W33: 3 | X33: 3 | Y33: 3 | Z33: 3 | AA33: 3 | AB33: 3 | AC33: 3 | AD33: 3 | AE33: 3 | AF33: 3 | AG33: 3 | AH33: 3 | AI33: 3 | AJ33: 3 | AK33: 3 | AL33: 3 | AM33: 3 | AN33: 3 | AO33: 3 | AP33: 3 | AQ33: 3 | AR33: 3 | AS33: 3 | AT33: 3 | AU33: 3 | AV33: 3 | AW33: 3
A34: Indoor-outdoor attenuation (according to clause 2.3 in the Report) | B34: dB | C34: ='System Parameter'!$H22 -> 50 | D34: ='System Parameter'!$H22 -> 50 | E34: ='System Parameter'!$U22 -> 50 | F34: ='System Parameter'!$U22 -> 50 | G34: ='System Parameter'!$R22 -> 50 | H34: ='System Parameter'!$R22 -> 50 | I34: ='System Parameter'!$R22 -> 50 | J34: ='System Parameter'!$V22 -> 50 | K34: ='System Parameter'!$V22 -> 50 | L34: ='System Parameter'!$V22 -> 50 | M34: ='System Parameter'!$V22 -> 50 | N34: ='System Parameter'!$V22 -> 50 | O34: ='System Parameter'!$V22 -> 50 | P34: ='System Parameter'!$V22 -> 50 | Q34: ='System Parameter'!$V22 -> 50 | R34: ='System Parameter'!$X22 -> 50 | S34: ='System Parameter'!$X22 -> 50 | T34: ='System Parameter'!$X22 -> 50 | U34: ='System Parameter'!$X22 -> 50 | V34: ='System Parameter'!$X22 -> 50 | W34: ='System Parameter'!$X22 -> 50 | X34: ='System Parameter'!$X22 -> 50 | Y34: ='System Parameter'!$X22 -> 50 | Z34: ='System Parameter'!$Z22 -> 50 | AA34: ='System Parameter'!$Z22 -> 50 | AB34: ='System Parameter'!$Z22 -> 50 | AC34: ='System Parameter'!$Z22 -> 50 | AD34: ='System Parameter'!$Z22 -> 50 | AE34: ='System Parameter'!$Z22 -> 50 | AF34: ='System Parameter'!$Z22 -> 50 | AG34: ='System Parameter'!$Z22 -> 50 | AH34: ='System Parameter'!$AB22 -> 50 | AI34: ='System Parameter'!$AB22 -> 50 | AJ34: ='System Parameter'!$AB22 -> 50 | AK34: ='System Parameter'!$AB22 -> 50 | AL34: ='System Parameter'!$AB22 -> 50 | AM34: ='System Parameter'!$AB22 -> 50 | AN34: ='System Parameter'!$AB22 -> 50 | AO34: ='System Parameter'!$AB22 -> 50 | AP34: ='System Parameter'!$AI22 -> 50 | AQ34: ='System Parameter'!$AI22 -> 50 | AR34: ='System Parameter'!$AI22 -> 50 | AS34: ='System Parameter'!$AI22 -> 50 | AT34: ='System Parameter'!$AI22 -> 50 | AU34: ='System Parameter'!$AI22 -> 50 | AV34: ='System Parameter'!$AI22 -> 50 | AW34: ='System Parameter'!$AI22 -> 50
A35: Power spectral density at the EESS receiver in a 1 MHz bandwidth | B35: dBW/MHz | C35: =C31+C15-C32-C33-C34 -> -241.4343659 | D35: =D31+D15-D32-D33-D34 -> -241.5912138 | E35: -247.9333907 | F35: -254.1092286 | G35: -248.9131062 | H35: -252.4422874 | I35: -262.2060646 | J35: -257.5179409 | K35: -269.8443552 | L35: -254.6836944 | M35: -259.4020664 | N35: -271.4325694 | O35: -259.5836944 | P35: -249.5835296 | Q35: -260.2527405 | R35: -257.8613381 | S35: -270.1877524 | T35: -255.0270916 | U35: -259.7454636 | V35: -271.7759666 | W35: -259.9270916 | X35: -249.9269268 | Y35: -260.5961377 | Z35: -255.1590858 | AA35: -259.7855001 | AB35: -246.8248393 | AC35: -257.0432113 | AD35: -261.5737143 | AE35: -251.7248393 | AF35: -247.2246745 | AG35: -251.4938854 | AH35: -255.6324416 | AI35: -260.2588559 | AJ35: -247.2981951 | AK35: -257.5165671 | AL35: -262.0470701 | AM35: -252.1981951 | AN35: -247.9980303 | AO35: -255.9672412 | AP35: -257.438694 | AQ35: -262.0651083 | AR35: -249.1044474 | AS35: -259.3228195 | AT35: -263.8533225 | AU35: -254.0044474 | AV35: -249.5042827 | AW35: -253.7734936
A36: Corresponding power at the EESS receiver in the reference bandwidth for a single interferer | B36: dBW | C36: =C35+10*LOG10(C9) -> -218.4240659 | D36: =D35+10*LOG10(D9) -> -218.5809138 | E36: =E35+10*LOG10(E9) -> -220.9436907 | F36: -227.1195285 | G36: =G35+10*LOG10(G9) -> -225.9028062 | H36: =H35+10*LOG10(H9) -> -229.4319875 | I36: -239.1957647 | J36: -234.507641 | K36: -246.8340553 | L36: -231.6733944 | M36: -236.3917665 | N36: -248.4222695 | O36: -236.5733944 | P36: -226.5732296 | Q36: -237.2424406 | R36: -234.8510382 | S36: -247.1774525 | T36: -232.0167916 | U36: -236.7351637 | V36: -248.7656667 | W36: -236.9167916 | X36: -226.9166268 | Y36: -237.5858378 | Z36: =Z35+10*LOG10(Z9) -> -232.1487859 | AA36: -236.7752002 | AB36: -223.8145393 | AC36: -234.0329114 | AD36: -238.5634143 | AE36: -228.7145393 | AF36: -224.2143745 | AG36: -228.4835854 | AH36: =AH35+10*LOG10(AH9) -> -232.6221417 | AI36: -237.248556 | AJ36: -224.2878951 | AK36: -234.5062672 | AL36: -239.0367701 | AM36: -229.1878951 | AN36: -224.9877303 | AO36: -232.9569413 | AP36: -234.428394 | AQ36: -239.0548083 | AR36: -226.0941475 | AS36: -236.3125195 | AT36: -240.8430225 | AU36: -230.9941475 | AV36: -226.4939827 | AW36: -230.7631936
A37: Number of interferers in EESS FOV on Earth's surface | C37: 1 | D37: 1 | E37: 1 | F37: 1 | G37: 1 | H37: 1 | I37: 1 | J37: 1 | K37: 1 | L37: 1 | M37: 1 | N37: 1 | O37: 1 | P37: 1 | Q37: 1 | R37: 1 | S37: 1 | T37: 1 | U37: 1 | V37: 1 | W37: 1 | X37: 1 | Y37: 1 | Z37: 1 | AA37: 1 | AB37: 1 | AC37: 1 | AD37: 1 | AE37: 1 | AF37: 1 | AG37: 1 | AH37: 1 | AI37: 1 | AJ37: 1 | AK37: 1 | AL37: 1 | AM37: 1 | AN37: 1 | AO37: 1 | AP37: 1 | AQ37: 1 | AR37: 1 | AS37: 1 | AT37: 1 | AU37: 1 | AV37: 1 | AW37: 1
A38: Corresponding received power at the EESS in the reference bandwidth within the EESS's FOV | B38: dBW | C38: =C36+10*LOG10(C37) -> -218.4240659 | D38: =D36+10*LOG10(D37) -> -218.5809138 | E38: =E36+10*LOG10(E37) -> -220.9436907 | F38: -227.1195285 | G38: =G36+10*LOG10(G37) -> -225.9028062 | H38: =H36+10*LOG10(H37) -> -229.4319875 | I38: -239.1957647 | J38: -234.507641 | K38: -246.8340553 | L38: -231.6733944 | M38: -236.3917665 | N38: -248.4222695 | O38: -236.5733944 | P38: -226.5732296 | Q38: -237.2424406 | R38: -234.8510382 | S38: -247.1774525 | T38: -232.0167916 | U38: -236.7351637 | V38: -248.7656667 | W38: -236.9167916 | X38: -226.9166268 | Y38: -237.5858378 | Z38: =Z36+10*LOG10(Z37) -> -232.1487859 | AA38: -236.7752002 | AB38: -223.8145393 | AC38: -234.0329114 | AD38: -238.5634143 | AE38: -228.7145393 | AF38: -224.2143745 | AG38: -228.4835854 | AH38: =AH36+10*LOG10(AH37) -> -232.6221417 | AI38: -237.248556 | AJ38: -224.2878951 | AK38: -234.5062672 | AL38: -239.0367701 | AM38: -229.1878951 | AN38: -224.9877303 | AO38: -232.9569413 | AP38: -234.428394 | AQ38: -239.0548083 | AR38: -226.0941475 | AS38: -236.3125195 | AT38: -240.8430225 | AU38: -230.9941475 | AV38: -226.4939827 | AW38: -230.7631936
A39: Margin with reference to ITU-R RS.2017-0 | B39: dB | C39: =C17-C18-C38 -> 40.42406592 | D39: =D17-D18-D38 -> 40.58091383 | E39: =E17-E18-E38 -> 49.9436907 | F39: 56.11952853 | G39: =G17-G18-G38 -> 50.90280624 | H39: =H17-H18-H38 -> 54.43198746 | I39: 64.19576468 | J39: 59.50764099 | K39: 71.83405528 | L39: 56.67339443 | M39: 61.39176648 | N39: 73.42226946 | O39: 61.57339443 | P39: 51.57322964 | Q39: 62.24244057 | R39: 59.85103818 | S39: 72.17745248 | T39: 57.01679162 | U39: 61.73516368 | V39: 73.76566665 | W39: 61.91679162 | X39: 51.91662684 | Y39: 62.58583776 | Z39: =Z17-Z18-Z38 -> 57.14878586 | AA39: 61.77520016 | AB39: 48.8145393 | AC39: 59.03291136 | AD39: 63.56341433 | AE39: 53.7145393 | AF39: 49.21437452 | AG39: 53.48358544 | AH39: =AH17-AH18-AH38 -> 60.62214167 | AI39: 65.24855597 | AJ39: 52.28789511 | AK39: 62.50626717 | AL39: 67.03677014 | AM39: 57.18789511 | AN39: 52.98773033 | AO39: 60.95694125 | AP39: 62.42839405 | AQ39: 67.05480834 | AR39: 54.09414749 | AS39: 64.31251954 | AT39: 68.84302251 | AU39: 58.99414749 | AV39: 54.4939827 | AW39: 58.76319363
C47: Protected bands assigned to EESS
C48: 114,25-116 GHz | E48: 148,5-151,5 GHz | G48: 164-167 GHz | J48: 182-185 GHz | R48: 190-191,8 GHz | Z48: 200-209 GHz | AH48: 226-231,5 GHz | AP48: 250-252 GHz
A49: Aggregated interference study | C49: MWI | D49: Planned EUMETSAT radiometer (ECC Report 190) | E49: Syst. N1 (nadir) | F49: Syst. N1 (outer) | G49: Syst. P1 | H49: Syst. P2 (nadir) | I49: Syst. P2 (outer) | J49: MHS (nadir) | K49: MHS (outer) | L49: MWI | M49: MWS (nadir) | N49: MWS (outer) | O49: ICI | P49: AWS (nadir) | Q49: AWS (outer) | R49: MHS (nadir) | S49: MHS (outer) | T49: MWI | U49: MWS (nadir) | V49: MWS (outer) | W49: ICI | X49: AWS (nadir) | Y49: AWS (outer) | Z49: MHS (nadir) | AA49: MHS (outer) | AB49: MWI | AC49: MWS (nadir) | AD49: MWS (outer) | AE49: ICI | AF49: AWS (nadir) | AG49: AWS (outer) | AH49: MHS (nadir) | AI49: MHS (outer) | AJ49: MWI | AK49: MWS (nadir) | AL49: MWS (outer) | AM49: ICI | AN49: AWS (nadir) | AO49: AWS (outer) | AP49: MHS (nadir) | AQ49: MHS (outer) | AR49: MWI | AS49: MWS (nadir) | AT49: MWS (outer) | AU49: ICI | AV49: AWS (nadir) | AW49: AWS (outer)
A50: Sensor type | C50: Conical scan | D50: Conical scan | E50: Nadir | F50: Nadir | G50: Conical scan | H50: Nadir | I50: Nadir | J50: Nadir scan | K50: Nadir scan | L50: Conical scan | M50: Nadir scan | N50: Nadir scan | O50: Conical scan | P50: Nadir scan | Q50: Nadir scan | R50: Nadir scan | S50: Nadir scan | T50: Conical scan | U50: Nadir scan | V50: Nadir scan | W50: Conical scan | X50: Nadir scan | Y50: Nadir scan | Z50: Nadir scan | AA50: Nadir scan | AB50: Conical scan | AC50: Nadir scan | AD50: Nadir scan | AE50: Conical scan | AF50: Nadir scan | AG50: Nadir scan | AH50: Nadir scan | AI50: Nadir scan | AJ50: Conical scan | AK50: Nadir scan | AL50: Nadir scan | AM50: Conical scan | AN50: Nadir scan | AO50: Nadir scan | AP50: Nadir scan | AQ50: Nadir scan | AR50: Conical scan | AS50: Nadir scan | AT50: Nadir scan | AU50: Conical scan | AV50: Nadir scan | AW50: Nadir scan
A51: EESS: | B51: Units
A52: Assumed centre frequency of EESS | B52: GHz | C52: 115.125 | D52: 115.125 | E52: 150 | F52: 150 | G52: 165.5 | H52: 165.5 | I52: 165.5 | J52: 183.5 | K52: 183.5 | L52: 183.5 | M52: 183.5 | N52: 183.5 | O52: 183.5 | P52: 183.5 | Q52: 183.5 | R52: 190.9 | S52: 190.9 | T52: 190.9 | U52: 190.9 | V52: 190.9 | W52: 190.9 | X52: 190.9 | Y52: 190.9 | Z52: 204.5 | AA52: 204.5 | AB52: 204.5 | AC52: 204.5 | AD52: 204.5 | AE52: 204.5 | AF52: 204.5 | AG52: 204.5 | AH52: 228.75 | AI52: 228.75 | AJ52: 228.75 | AK52: 228.75 | AL52: 228.75 | AM52: 228.75 | AN52: 228.75 | AO52: 228.75 | AP52: 251 | AQ52: 251 | AR52: 251 | AS52: 251 | AT52: 251 | AU52: 251 | AV52: 251 | AW52: 251
A53: Wavelength of EESS | B53: m | C53: =2.99792458/C52/10 -> 0.002604060439 | D53: 0.002604060439 | E53: 0.001998616387 | F53: 0.001998616387 | G53: 0.001811434792 | H53: 0.001811434792 | I53: 0.001811434792 | J53: 0.001633746365 | K53: 0.001633746365 | L53: 0.001633746365 | M53: 0.001633746365 | N53: 0.001633746365 | O53: 0.001633746365 | P53: 0.001633746365 | Q53: 0.001633746365 | R53: 0.001570416228 | S53: 0.001570416228 | T53: 0.001570416228 | U53: 0.001570416228 | V53: 0.001570416228 | W53: 0.001570416228 | X53: 0.001570416228 | Y53: 0.001570416228 | Z53: =2.99792458/Z52/10 -> 0.00146597779 | AA53: 0.00146597779 | AB53: 0.00146597779 | AC53: 0.00146597779 | AD53: 0.00146597779 | AE53: 0.00146597779 | AF53: 0.00146597779 | AG53: 0.00146597779 | AH53: =2.99792458/AH52/10 -> 0.001310568122 | AI53: 0.001310568122 | AJ53: 0.001310568122 | AK53: 0.001310568122 | AL53: 0.001310568122 | AM53: 0.001310568122 | AN53: 0.001310568122 | AO53: 0.001310568122 | AP53: 0.001194392263 | AQ53: 0.001194392263 | AR53: 0.001194392263 | AS53: 0.001194392263 | AT53: 0.001194392263 | AU53: 0.001194392263 | AV53: 0.001194392263 | AW53: 0.001194392263
A54: Reference bandwidth | B54: MHz | C54: 200 | D54: 200 | E54: 500 | F54: 500 | G54: 200 | H54: 200 | I54: 200 | J54: 200 | K54: 200 | L54: 200 | M54: 200 | N54: 200 | O54: 200 | P54: 200 | Q54: 200 | R54: 200 | S54: 200 | T54: 200 | U54: 200 | V54: 200 | W54: 200 | X54: 200 | Y54: 200 | Z54: 200 | AA54: 200 | AB54: 200 | AC54: 200 | AD54: 200 | AE54: 200 | AF54: 200 | AG54: 200 | AH54: 200 | AI54: 200 | AJ54: 200 | AK54: 200 | AL54: 200 | AM54: 200 | AN54: 200 | AO54: 200 | AP54: 200 | AQ54: 200 | AR54: 200 | AS54: 200 | AT54: 200 | AU54: 200 | AV54: 200 | AW54: 200
A55: Orbit altitude | B55: km | C55: 830 | D55: 800 | E55: 705 | F55: 705 | G55: 828 | H55: 824 | I55: 824 | J55: 822 | K55: 822 | L55: 830 | M55: 830 | N55: 830 | O55: 830 | P55: 600 | Q55: 600 | R55: 822 | S55: 822 | T55: 830 | U55: 830 | V55: 830 | W55: 830 | X55: 600 | Y55: 600 | Z55: 822 | AA55: 822 | AB55: 830 | AC55: 830 | AD55: 830 | AE55: 830 | AF55: 600 | AG55: 600 | AH55: 822 | AI55: 822 | AJ55: 830 | AK55: 830 | AL55: 830 | AM55: 830 | AN55: 600 | AO55: 600 | AP55: 822 | AQ55: 822 | AR55: 830 | AS55: 830 | AT55: 830 | AU55: 830 | AV55: 600 | AW55: 600
A56: Angle of incidence at Earth's surface (from zenith) | B56: deg | C56: 53.3 | D56: 53 | E56: 0 | F56: 56.9 | G56: 55.5 | H56: 0 | I56: 64 | J56: 0 | K56: 59 | L56: 53.3 | M56: 0 | N56: 58.5 | O56: 53.3 | P56: 0 | Q56: 55.7 | R56: 0 | S56: 59 | T56: 53.3 | U56: 0 | V56: 58.5 | W56: 53.3 | X56: 0 | Y56: 55.7 | Z56: 0 | AA56: 59 | AB56: 53.3 | AC56: 0 | AD56: 58.5 | AE56: 53.3 | AF56: 0 | AG56: 55.7 | AH56: 0 | AI56: 59 | AJ56: 53.3 | AK56: 0 | AL56: 58.5 | AM56: 53.3 | AN56: 0 | AO56: 55.7 | AP56: 0 | AQ56: 59 | AR56: 53.3 | AS56: 0 | AT56: 58.5 | AU56: 53.3 | AV56: 0 | AW56: 55.7
A57: Elevation angle at ground | B57: deg | C57: =90-C56 -> 36.7 | D57: =90-D56 -> 37 | E57: =90-E56 -> 90 | F57: 33.1 | G57: =90-G56 -> 34.5 | H57: =90-H56 -> 90 | I57: 26 | J57: 90 | K57: 31 | L57: 36.7 | M57: 90 | N57: 31.5 | O57: 36.7 | P57: 90 | Q57: 34.3 | R57: 90 | S57: 31 | T57: 36.7 | U57: 90 | V57: 31.5 | W57: 36.7 | X57: 90 | Y57: 34.3 | Z57: =90-Z56 -> 90 | AA57: 31 | AB57: 36.7 | AC57: 90 | AD57: 31.5 | AE57: 36.7 | AF57: 90 | AG57: 34.3 | AH57: =90-AH56 -> 90 | AI57: 31 | AJ57: 36.7 | AK57: 90 | AL57: 31.5 | AM57: 36.7 | AN57: 90 | AO57: 34.3 | AP57: 90 | AQ57: 31 | AR57: 36.7 | AS57: 90 | AT57: 31.5 | AU57: 36.7 | AV57: 90 | AW57: 34.3
A58: Off-nadir angle | B58: deg | C58: =(ASIN(SIN(C56*PI()/180)/(1+C55/6371)))*180/PI()+0.00000001 -> 45.18299423 | D58: 45.19744971 | E58: =(ASIN(SIN(E56*PI()/180)/(1+E55/6371)))*180/PI()+0.00000001 -> 1e-08 | F58: =(ASIN(SIN(F56*PI()/180)/(1+F55/6371)))*180/PI()+0.00000001 -> 48.96028579 | G58: 46.83096782 | H58: 1e-08 | I58: 52.73661527 | J58: 1e-08 | K58: 49.39479043 | L58: 45.18299423 | M58: 1e-08 | N58: 48.96977181 | O58: 45.18299423 | P58: 1e-08 | Q58: 49.02495908 | R58: 1e-08 | S58: 49.39479043 | T58: 45.18299423 | U58: 1e-08 | V58: 48.96977181 | W58: 45.18299423 | X58: 1e-08 | Y58: 49.02495908 | Z58: 1e-08 | AA58: 49.39479043 | AB58: 45.18299423 | AC58: 1e-08 | AD58: 48.96977181 | AE58: 45.18299423 | AF58: 1e-08 | AG58: 49.02495908 | AH58: 1e-08 | AI58: 49.39479043 | AJ58: 45.18299423 | AK58: 1e-08 | AL58: 48.96977181 | AM58: 45.18299423 | AN58: 1e-08 | AO58: 49.02495908 | AP58: 1e-08 | AQ58: 49.39479043 | AR58: 45.18299423 | AS58: 1e-08 | AT58: 48.96977181 | AU58: 45.18299423 | AV58: 1e-08 | AW58: 49.02495908
A59: Slant path distance | B59: km | C59: =6371*SIN((ASIN(((6371+C55)/6371)*SIN(C58*PI()/180))*180/PI()-C58)*PI()/180)/SIN(C58*PI()/180) -> 1268.117481 | D59: 1218.99489 | E59: 705 | F59: 1166.758594 | G59: 1316.643352 | H59: 824 | I59: 1563.565476 | J59: 822 | K59: 1400.207928 | L59: 1268.117481 | M59: 830 | N59: 1398.309283 | O59: 1268.117481 | P59: 600 | Q59: 980.8707785 | R59: 822 | S59: 1400.207928 | T59: 1268.117481 | U59: 830 | V59: 1398.309283 | W59: 1268.117481 | X59: 600 | Y59: 980.8707785 | Z59: 822 | AA59: 1400.207928 | AB59: 1268.117481 | AC59: 830 | AD59: 1398.309283 | AE59: 1268.117481 | AF59: 600 | AG59: 980.8707785 | AH59: 822 | AI59: 1400.207928 | AJ59: 1268.117481 | AK59: 830 | AL59: 1398.309283 | AM59: 1268.117481 | AN59: 600 | AO59: 980.8707785 | AP59: 822 | AQ59: 1400.207928 | AR59: 1268.117481 | AS59: 830 | AT59: 1398.309283 | AU59: 1268.117481 | AV59: 600 | AW59: 980.8707785
A60: EESS antenna gain | B60: dBi | C60: 55.5 | D60: 55 | E60: 45 | F60: 45 | G60: 54 | H60: 43.9 | I60: 43.9 | J60: 44.8 | K60: 44.8 | L60: 56.9 | M60: 43 | N60: 43 | O60: 52 | P60: 50 | Q60: 50 | R60: 44.8 | S60: 44.8 | T60: 56.9 | U60: 43 | V60: 43 | W60: 52 | X60: 50 | Y60: 50 | Z60: 44.8 | AA60: 44.8 | AB60: 56.9 | AC60: 43 | AD60: 43 | AE60: 52 | AF60: 50 | AG60: 50 | AH60: 44.8 | AI60: 44.8 | AJ60: 56.9 | AK60: 43 | AL60: 43 | AM60: 52 | AN60: 50 | AO60: 50 | AP60: 44.8 | AQ60: 44.8 | AR60: 56.9 | AS60: 43 | AT60: 43 | AU60: 52 | AV60: 50 | AW60: 50
A61: Size of EESS FOV on Earth's surface | B61: km² | C61: 82 | D61: 82 | E61: 154 | F61: 759 | G61: 113 | H61: 254 | I61: 2083 | J61: 201 | K61: 1103 | L61: 61 | M61: 315 | N61: 1762 | O61: 164 | P61: 28 | Q61: 141 | R61: 201 | S61: 1103 | T61: 61 | U61: 315 | V61: 1762 | W61: 164 | X61: 28 | Y61: 141 | Z61: 201 | AA61: 1103 | AB61: 61 | AC61: 315 | AD61: 1762 | AE61: 164 | AF61: 28 | AG61: 141 | AH61: 201 | AI61: 1103 | AJ61: 61 | AK61: 315 | AL61: 1762 | AM61: 164 | AN61: 28 | AO61: 141 | AP61: 201 | AQ61: 1103 | AR61: 61 | AS61: 315 | AT61: 1762 | AU61: 164 | AV61: 28 | AW61: 141
A62: EESS interference criterion in the reference bandwidth (ITU-R RS.2017-0) | B62: dBW | C62: -166 | D62: -166 | E62: -159 | F62: -159 | G62: -163 | H62: -163 | I62: -163 | J62: -163 | K62: -163 | L62: -163 | M62: -163 | N62: -163 | O62: -163 | P62: -163 | Q62: -163 | R62: -163 | S62: -163 | T62: -163 | U62: -163 | V62: -163 | W62: -163 | X62: -163 | Y62: -163 | Z62: -163 | AA62: -163 | AB62: -163 | AC62: -163 | AD62: -163 | AE62: -163 | AF62: -163 | AG62: -163 | AH62: -160 | AI62: -160 | AJ62: -160 | AK62: -160 | AL62: -160 | AM62: -160 | AN62: -160 | AO62: -160 | AP62: -160 | AQ62: -160 | AR62: -160 | AS62: -160 | AT62: -160 | AU62: -160 | AV62: -160 | AW62: -160
A63: Apportionment factor | B63: dB | C63: 12 | D63: 12 | E63: 12 | F63: 12 | G63: 12 | H63: 12 | I63: 12 | J63: 12 | K63: 12 | L63: 12 | M63: 12 | N63: 12 | O63: 12 | P63: 12 | Q63: 12 | R63: 12 | S63: 12 | T63: 12 | U63: 12 | V63: 12 | W63: 12 | X63: 12 | Y63: 12 | Z63: 12 | AA63: 12 | AB63: 12 | AC63: 12 | AD63: 12 | AE63: 12 | AF63: 12 | AG63: 12 | AH63: 12 | AI63: 12 | AJ63: 12 | AK63: 12 | AL63: 12 | AM63: 12 | AN63: 12 | AO63: 12 | AP63: 12 | AQ63: 12 | AR63: 12 | AS63: 12 | AT63: 12 | AU63: 12 | AV63: 12 | AW63: 12
A65: Radiodetermination system (interferer):
A66: Conducted Tx power of interferer | B66: dBm | C66: ='System Parameter'!$I4 -> 9 | D66: ='System Parameter'!$I4 -> 9 | E66: ='System Parameter'!$O4 -> -1 | F66: ='System Parameter'!$O4 -> -1 | G66: ='System Parameter'!R4 -> -1 | H66: ='System Parameter'!$R4 -> -1 | I66: ='System Parameter'!$R4 -> -1 | J66: ='System Parameter'!$V4 -> -1 | K66: ='System Parameter'!$V4 -> -1 | L66: ='System Parameter'!$V4 -> -1 | M66: ='System Parameter'!$V4 -> -1 | N66: ='System Parameter'!$V4 -> -1 | O66: ='System Parameter'!$V4 -> -1 | P66: ='System Parameter'!$V4 -> -1 | Q66: ='System Parameter'!$V4 -> -1 | R66: ='System Parameter'!$X4 -> -1 | S66: ='System Parameter'!$X4 -> -1 | T66: ='System Parameter'!$X4 -> -1 | U66: ='System Parameter'!$X4 -> -1 | V66: ='System Parameter'!$X4 -> -1 | W66: ='System Parameter'!$X4 -> -1 | X66: ='System Parameter'!$X4 -> -1 | Y66: ='System Parameter'!$X4 -> -1 | Z66: ='System Parameter'!$Z4 -> -1 | AA66: ='System Parameter'!$Z4 -> -1 | AB66: ='System Parameter'!$Z4 -> -1 | AC66: ='System Parameter'!$Z4 -> -1 | AD66: ='System Parameter'!$Z4 -> -1 | AE66: ='System Parameter'!$Z4 -> -1 | AF66: ='System Parameter'!$Z4 -> -1 | AG66: ='System Parameter'!$Z4 -> -1 | AH66: ='System Parameter'!$AB4 -> -1 | AI66: ='System Parameter'!$AB4 -> -1 | AJ66: ='System Parameter'!$AB4 -> -1 | AK66: ='System Parameter'!$AB4 -> -1 | AL66: ='System Parameter'!$AB4 -> -1 | AM66: ='System Parameter'!$AB4 -> -1 | AN66: ='System Parameter'!$AB4 -> -1 | AO66: ='System Parameter'!$AB4 -> -1 | AP66: ='System Parameter'!$AI4 -> -1 | AQ66: ='System Parameter'!$AI4 -> -1 | AR66: ='System Parameter'!$AI4 -> -1 | AS66: ='System Parameter'!$AI4 -> -1 | AT66: ='System Parameter'!$AI4 -> -1 | AU66: ='System Parameter'!$AI4 -> -1 | AV66: ='System Parameter'!$AI4 -> -1 | AW66: ='System Parameter'!$AI4 -> -1
A67: Out-of-band unwanted emissions attenuation (if EESS victim is located in an adjacent band) | B67: dB | C67: 10 | D67: 10 | E67: 0 | F67: 0 | G67: 0 | H67: 0 | I67: 0 | J67: 0 | K67: 0 | L67: 0 | M67: 0 | N67: 0 | O67: 0 | P67: 0 | Q67: 0 | R67: 0 | S67: 0 | T67: 0 | U67: 0 | V67: 0 | W67: 0 | X67: 0 | Y67: 0 | Z67: 0 | AA67: 0 | AB67: 0 | AC67: 0 | AD67: 0 | AE67: 0 | AF67: 0 | AG67: 0 | AH67: 0 | AI67: 0 | AJ67: 0 | AK67: 0 | AL67: 0 | AM67: 0 | AN67: 0 | AO67: 0 | AP67: 0 | AQ67: 0 | AR67: 0 | AS67: 0 | AT67: 0 | AU67: 0 | AV67: 0 | AW67: 0
A68: Tx e.i.r.p. of interferer | B68: dBm | C68: =C66-C67+C73 -> 9 | D68: 9 | E68: 9 | F68: 9 | G68: 9 | H68: 9 | I68: 9 | J68: 9 | K68: 9 | L68: 9 | M68: 9 | N68: 9 | O68: 9 | P68: 9 | Q68: 9 | R68: 9 | S68: 9 | T68: 9 | U68: 9 | V68: 9 | W68: 9 | X68: 9 | Y68: 9 | Z68: =Z66-Z67+Z73 -> 9 | AA68: 9 | AB68: 9 | AC68: 9 | AD68: 9 | AE68: 9 | AF68: 9 | AG68: 9 | AH68: =AH66-AH67+AH73 -> 9 | AI68: 9 | AJ68: 9 | AK68: 9 | AL68: 9 | AM68: 9 | AN68: 9 | AO68: 9 | AP68: 9 | AQ68: 9 | AR68: 9 | AS68: 9 | AT68: 9 | AU68: 9 | AV68: 9 | AW68: 9
A69: Bandwidth of interferer Tx signal | B69: GHz | C69: ='System Parameter'!$I8 -> 100 | D69: ='System Parameter'!I8 -> 100 | E69: ='System Parameter'!$O8 -> 100 | F69: ='System Parameter'!$O8 -> 100 | G69: ='System Parameter'!R8 -> 100 | H69: ='System Parameter'!$R8 -> 100 | I69: ='System Parameter'!$R8 -> 100 | J69: ='System Parameter'!$V8 -> 100 | K69: ='System Parameter'!$V8 -> 100 | L69: ='System Parameter'!$V8 -> 100 | M69: ='System Parameter'!$V8 -> 100 | N69: ='System Parameter'!$V8 -> 100 | O69: ='System Parameter'!$V8 -> 100 | P69: ='System Parameter'!$V8 -> 100 | Q69: ='System Parameter'!$V8 -> 100 | R69: ='System Parameter'!$X8 -> 100 | S69: ='System Parameter'!$X8 -> 100 | T69: ='System Parameter'!$X8 -> 100 | U69: ='System Parameter'!$X8 -> 100 | V69: ='System Parameter'!$X8 -> 100 | W69: ='System Parameter'!$X8 -> 100 | X69: ='System Parameter'!$X8 -> 100 | Y69: ='System Parameter'!$X8 -> 100 | Z69: ='System Parameter'!$Z8 -> 100 | AA69: ='System Parameter'!$Z8 -> 100 | AB69: ='System Parameter'!$Z8 -> 100 | AC69: ='System Parameter'!$Z8 -> 100 | AD69: ='System Parameter'!$Z8 -> 100 | AE69: ='System Parameter'!$Z8 -> 100 | AF69: ='System Parameter'!$Z8 -> 100 | AG69: ='System Parameter'!$Z8 -> 100 | AH69: ='System Parameter'!$AB8 -> 100 | AI69: ='System Parameter'!$AB8 -> 100 | AJ69: ='System Parameter'!$AB8 -> 100 | AK69: ='System Parameter'!$AB8 -> 100 | AL69: ='System Parameter'!$AB8 -> 100 | AM69: ='System Parameter'!$AB8 -> 100 | AN69: ='System Parameter'!$AB8 -> 100 | AO69: ='System Parameter'!$AB8 -> 100 | AP69: ='System Parameter'!$AI8 -> 100 | AQ69: ='System Parameter'!$AI8 -> 100 | AR69: ='System Parameter'!$AI8 -> 100 | AS69: ='System Parameter'!$AI8 -> 100 | AT69: ='System Parameter'!$AI8 -> 100 | AU69: ='System Parameter'!$AI8 -> 100 | AV69: ='System Parameter'!$AI8 -> 100 | AW69: ='System Parameter'!$AI8 -> 100
A70: Tx e.i.r.p. spectral density of interferer | B70: dBm/MHz | C70: =C68-10*LOG(C69*1000) -> -41 | D70: -41 | E70: -41 | F70: -41 | G70: -41 | H70: -41 | I70: -41 | J70: -41 | K70: -41 | L70: -41 | M70: -41 | N70: -41 | O70: -41 | P70: -41 | Q70: -41 | R70: -41 | S70: -41 | T70: -41 | U70: -41 | V70: -41 | W70: -41 | X70: -41 | Y70: -41 | Z70: =Z68-10*LOG(Z69*1000) -> -41 | AA70: -41 | AB70: -41 | AC70: -41 | AD70: -41 | AE70: -41 | AF70: -41 | AG70: -41 | AH70: =AH68-10*LOG(AH69*1000) -> -41 | AI70: -41 | AJ70: -41 | AK70: -41 | AL70: -41 | AM70: -41 | AN70: -41 | AO70: -41 | AP70: -41 | AQ70: -41 | AR70: -41 | AS70: -41 | AT70: -41 | AU70: -41 | AV70: -41 | AW70: -41
A71: Tx e.i.r.p. spectral density of interferer | B71: dBW/MHz | C71: =C70-30 -> -71 | D71: -71 | E71: -71 | F71: -71 | G71: -71 | H71: -71 | I71: -71 | J71: -71 | K71: -71 | L71: -71 | M71: -71 | N71: -71 | O71: -71 | P71: -71 | Q71: -71 | R71: -71 | S71: -71 | T71: -71 | U71: -71 | V71: -71 | W71: -71 | X71: -71 | Y71: -71 | Z71: =Z70-30 -> -71 | AA71: -71 | AB71: -71 | AC71: -71 | AD71: -71 | AE71: -71 | AF71: -71 | AG71: -71 | AH71: =AH70-30 -> -71 | AI71: -71 | AJ71: -71 | AK71: -71 | AL71: -71 | AM71: -71 | AN71: -71 | AO71: -71 | AP71: -71 | AQ71: -71 | AR71: -71 | AS71: -71 | AT71: -71 | AU71: -71 | AV71: -71 | AW71: -71
A72: Mitigation technique (e.g. duty cycle, adaptive power control) | B72: dB | C72: ='System Parameter'!$H62 -> 0 | D72: ='System Parameter'!H64 -> 0 | E72: ='System Parameter'!$U64 -> 0 | F72: ='System Parameter'!$U64 -> 0 | G72: ='System Parameter'!R64 -> 0 | H72: ='System Parameter'!$R64 -> 0 | I72: ='System Parameter'!$R64 -> 0 | J72: ='System Parameter'!$V64 -> 0 | K72: ='System Parameter'!$V64 -> 0 | L72: ='System Parameter'!$V64 -> 0 | M72: ='System Parameter'!$V64 -> 0 | N72: ='System Parameter'!$V64 -> 0 | O72: ='System Parameter'!$V64 -> 0 | P72: ='System Parameter'!$V64 -> 0 | Q72: ='System Parameter'!$V64 -> 0 | R72: ='System Parameter'!$X64 -> 0 | S72: ='System Parameter'!$X64 -> 0 | T72: ='System Parameter'!$X64 -> 0 | U72: ='System Parameter'!$X64 -> 0 | V72: ='System Parameter'!$X64 -> 0 | W72: ='System Parameter'!$X64 -> 0 | X72: ='System Parameter'!$X64 -> 0 | Y72: ='System Parameter'!$X64 -> 0 | Z72: ='System Parameter'!$Z64 -> 0 | AA72: ='System Parameter'!$Z64 -> 0 | AB72: ='System Parameter'!$Z64 -> 0 | AC72: ='System Parameter'!$Z64 -> 0 | AD72: ='System Parameter'!$Z64 -> 0 | AE72: ='System Parameter'!$Z64 -> 0 | AF72: ='System Parameter'!$Z64 -> 0 | AG72: ='System Parameter'!$Z64 -> 0 | AH72: ='System Parameter'!$AB64 -> 0 | AI72: ='System Parameter'!$AB64 -> 0 | AJ72: ='System Parameter'!$AB64 -> 0 | AK72: ='System Parameter'!$AB64 -> 0 | AL72: ='System Parameter'!$AB64 -> 0 | AM72: ='System Parameter'!$AB64 -> 0 | AN72: ='System Parameter'!$AB64 -> 0 | AO72: ='System Parameter'!$AB64 -> 0 | AP72: ='System Parameter'!$AI64 -> 0 | AQ72: ='System Parameter'!$AI64 -> 0 | AR72: ='System Parameter'!$AI64 -> 0 | AS72: ='System Parameter'!$AI64 -> 0 | AT72: ='System Parameter'!$AI64 -> 0 | AU72: ='System Parameter'!$AI64 -> 0 | AV72: ='System Parameter'!$AI64 -> 0 | AW72: ='System Parameter'!$AI64 -> 0
A73: Average gain of the interferer antenna in the direction of the victim EESS system | B73: dBi | C73: ='System Parameter'!$C$39 -> 10 | D73: ='System Parameter'!$C$39 -> 10 | E73: ='System Parameter'!$C$39 -> 10 | F73: ='System Parameter'!$C$39 -> 10 | G73: ='System Parameter'!$C$39 -> 10 | H73: ='System Parameter'!$C$39 -> 10 | I73: ='System Parameter'!$C$39 -> 10 | J73: ='System Parameter'!$C$39 -> 10 | K73: ='System Parameter'!$C$39 -> 10 | L73: ='System Parameter'!$C$39 -> 10 | M73: ='System Parameter'!$C$39 -> 10 | N73: ='System Parameter'!$C$39 -> 10 | O73: ='System Parameter'!$C$39 -> 10 | P73: ='System Parameter'!$C$39 -> 10 | Q73: ='System Parameter'!$C$39 -> 10 | R73: ='System Parameter'!$C$39 -> 10 | S73: ='System Parameter'!$C$39 -> 10 | T73: ='System Parameter'!$C$39 -> 10 | U73: ='System Parameter'!$C$39 -> 10 | V73: ='System Parameter'!$C$39 -> 10 | W73: ='System Parameter'!$C$39 -> 10 | X73: ='System Parameter'!$C$39 -> 10 | Y73: ='System Parameter'!$C$39 -> 10 | Z73: ='System Parameter'!$C$39 -> 10 | AA73: ='System Parameter'!$C$39 -> 10 | AB73: ='System Parameter'!$C$39 -> 10 | AC73: ='System Parameter'!$C$39 -> 10 | AD73: ='System Parameter'!$C$39 -> 10 | AE73: ='System Parameter'!$C$39 -> 10 | AF73: ='System Parameter'!$C$39 -> 10 | AG73: ='System Parameter'!$C$39 -> 10 | AH73: ='System Parameter'!$C$39 -> 10 | AI73: ='System Parameter'!$C$39 -> 10 | AJ73: ='System Parameter'!$C$39 -> 10 | AK73: ='System Parameter'!$C$39 -> 10 | AL73: ='System Parameter'!$C$39 -> 10 | AM73: ='System Parameter'!$C$39 -> 10 | AN73: ='System Parameter'!$C$39 -> 10 | AO73: ='System Parameter'!$C$39 -> 10 | AP73: ='System Parameter'!$C$39 -> 10 | AQ73: ='System Parameter'!$C$39 -> 10 | AR73: ='System Parameter'!$C$39 -> 10 | AS73: ='System Parameter'!$C$39 -> 10 | AT73: ='System Parameter'!$C$39 -> 10 | AU73: ='System Parameter'!$C$39 -> 10 | AV73: ='System Parameter'!$C$39 -> 10 | AW73: ='System Parameter'!$C$39 -> 10
A75: Free space loss between interferer and EESS | B75: dB | C75: =20*LOG10(4*PI()*C59*1000/C53) -> 195.7343659 | D75: 195.3912138 | E75: 192.9333907 | F75: 197.3092286 | G75: 199.2131062 | H75: 195.1422874 | I75: 200.7060646 | J75: 196.0179409 | K75: 200.6443552 | L75: 199.7836944 | M75: 196.1020664 | N75: 200.6325694 | O75: 199.7836944 | P75: 193.2835296 | Q75: 197.5527405 | R75: 196.3613381 | S75: 200.9877524 | T75: 200.1270916 | U75: 196.4454636 | V75: 200.9759666 | W75: 200.1270916 | X75: 193.6269268 | Y75: 197.8961377 | Z75: =20*LOG10(4*PI()*Z59*1000/Z53) -> 196.9590858 | AA75: 201.5855001 | AB75: 200.7248393 | AC75: 197.0432113 | AD75: 201.5737143 | AE75: 200.7248393 | AF75: 194.2246745 | AG75: 198.4938854 | AH75: =20*LOG10(4*PI()*AH59*1000/AH53) -> 197.9324416 | AI75: 202.5588559 | AJ75: 201.6981951 | AK75: 198.0165671 | AL75: 202.5470701 | AM75: 201.6981951 | AN75: 195.1980303 | AO75: 199.4672412 | AP75: 198.738694 | AQ75: 203.3651083 | AR75: 202.5044474 | AS75: 198.8228195 | AT75: 203.3533225 | AU75: 202.5044474 | AV75: 196.0042827 | AW75: 200.2734936
A76: Direct e.i.r.p. spectral density at the EESS antenna | B76: dBW/MHz | C76: =C71-C75+C72 -> -266.7343659 | D76: -266.3912138 | E76: =E71-E75+E72 -> -263.9333907 | F76: -268.3092286 | G76: -270.2131062 | H76: -266.1422874 | I76: -271.7060646 | J76: -267.0179409 | K76: -271.6443552 | L76: -270.7836944 | M76: -267.1020664 | N76: -271.6325694 | O76: -270.7836944 | P76: -264.2835296 | Q76: =Q71-Q75+Q72 -> -268.5527405 | R76: -267.3613381 | S76: -271.9877524 | T76: -271.1270916 | U76: -267.4454636 | V76: -271.9759666 | W76: -271.1270916 | X76: -264.6269268 | Y76: -268.8961377 | Z76: =Z71-Z75+Z72 -> -267.9590858 | AA76: -272.5855001 | AB76: -271.7248393 | AC76: -268.0432113 | AD76: -272.5737143 | AE76: -271.7248393 | AF76: -265.2246745 | AG76: -269.4938854 | AH76: =AH71-AH75+AH72 -> -268.9324416 | AI76: -273.5588559 | AJ76: -272.6981951 | AK76: -269.0165671 | AL76: -273.5470701 | AM76: -272.6981951 | AN76: -266.1980303 | AO76: -270.4672412 | AP76: -269.738694 | AQ76: -274.3651083 | AR76: -273.5044474 | AS76: -269.8228195 | AT76: -274.3533225 | AU76: -273.5044474 | AV76: -267.0042827 | AW76: -271.2734936
A77: Atmospheric loss (according to contribution SE24(20)063_rev1 and SE24(20)WI71#9-03) | B77: dB | C77: 3.2 | D77: 3.2 | E77: 2 | F77: 3.8 | G77: 5.7 | H77: 3.2 | I77: 7.4 | J77: 8.3 | K77: 16 | L77: 13.8 | M77: 8.3 | N77: 15.8 | O77: 13.8 | P77: 8.3 | Q77: 14.7 | R77: 8.3 | S77: 16 | T77: 13.8 | U77: 8.3 | V77: 15.8 | W77: 13.8 | X77: 8.3 | Y77: 14.7 | Z77: ='System Parameter'!$Z25 -> 5 | AA77: ='System Parameter'!$Z25 -> 5 | AB77: ='System Parameter'!$Z25 -> 5 | AC77: ='System Parameter'!$Z25 -> 5 | AD77: ='System Parameter'!$Z25 -> 5 | AE77: ='System Parameter'!$Z25 -> 5 | AF77: ='System Parameter'!$Z25 -> 5 | AG77: ='System Parameter'!$Z25 -> 5 | AH77: ='System Parameter'!$AB25 -> 4.5 | AI77: ='System Parameter'!$AB25 -> 4.5 | AJ77: ='System Parameter'!$AB25 -> 4.5 | AK77: ='System Parameter'!$AB25 -> 4.5 | AL77: ='System Parameter'!$AB25 -> 4.5 | AM77: ='System Parameter'!$AB25 -> 4.5 | AN77: 4.8 | AO77: 8.5 | AP77: ='System Parameter'!$AI25 -> 5.5 | AQ77: ='System Parameter'!$AI25 -> 5.5 | AR77: ='System Parameter'!$AI25 -> 5.5 | AS77: ='System Parameter'!$AI25 -> 5.5 | AT77: ='System Parameter'!$AI25 -> 5.5 | AU77: ='System Parameter'!$AI25 -> 5.5 | AV77: ='System Parameter'!$AI25 -> 5.5 | AW77: ='System Parameter'!$AI25 -> 5.5
A78: Polarisation mismatch loss | B78: dB | C78: 3 | D78: 3 | E78: 3 | F78: 3 | G78: 3 | H78: 3 | I78: 3 | J78: 3 | K78: 3 | L78: 3 | M78: 3 | N78: 3 | O78: 3 | P78: 3 | Q78: 3 | R78: 3 | S78: 3 | T78: 3 | U78: 3 | V78: 3 | W78: 3 | X78: 3 | Y78: 3 | Z78: 3 | AA78: 3 | AB78: 3 | AC78: 3 | AD78: 3 | AE78: 3 | AF78: 3 | AG78: 3 | AH78: 3 | AI78: 3 | AJ78: 3 | AK78: 3 | AL78: 3 | AM78: 3 | AN78: 3 | AO78: 3 | AP78: 3 | AQ78: 3 | AR78: 3 | AS78: 3 | AT78: 3 | AU78: 3 | AV78: 3 | AW78: 3
A79: Indoor-outdoor attenuation (according to clause 2.3 in the Report) | B79: dB | C79: =VLOOKUP(C57,'EESS Shielding Table'!data_1,9) -> 22.31623389 | D79: =VLOOKUP(D57,'EESS Shielding Table'!data_1,9) -> 22.31318879 | E79: =VLOOKUP(E57,'EESS Shielding Table'!data_1,9) -> 26.61562776 | F79: =VLOOKUP(F57,'EESS Shielding Table'!data_1,9) -> 22.41623389 | G79: =VLOOKUP(G57,'EESS Shielding Table'!data_1,9) -> 22.41623389 | H79: =VLOOKUP(H57,'EESS Shielding Table'!data_1,9) -> 26.61562776 | I79: =VLOOKUP(I57,'EESS Shielding Table'!data_1,9) -> 22.92497143 | J79: =VLOOKUP(J57,'EESS Shielding Table'!data_1,9) -> 26.61562776 | K79: =VLOOKUP(K57,'EESS Shielding Table'!data_1,9) -> 22.52212379 | L79: =VLOOKUP(L57,'EESS Shielding Table'!data_1,9) -> 22.31623389 | M79: =VLOOKUP(M57,'EESS Shielding Table'!data_1,9) -> 26.61562776 | N79: =VLOOKUP(N57,'EESS Shielding Table'!data_1,9) -> 22.52212379 | O79: =VLOOKUP(O57,'EESS Shielding Table'!data_1,9) -> 22.31623389 | P79: =VLOOKUP(P57,'EESS Shielding Table'!data_1,9) -> 26.61562776 | Q79: =VLOOKUP(Q57,'EESS Shielding Table'!data_1,9) -> 22.41623389 | R79: =VLOOKUP(R57,'EESS Shielding Table'!data_1,9) -> 26.61562776 | S79: =VLOOKUP(S57,'EESS Shielding Table'!data_1,9) -> 22.52212379 | T79: =VLOOKUP(T57,'EESS Shielding Table'!data_1,9) -> 22.31623389 | U79: =VLOOKUP(U57,'EESS Shielding Table'!data_1,9) -> 26.61562776 | V79: =VLOOKUP(V57,'EESS Shielding Table'!data_1,9) -> 22.52212379 | W79: =VLOOKUP(W57,'EESS Shielding Table'!data_1,9) -> 22.31623389 | X79: =VLOOKUP(X57,'EESS Shielding Table'!data_1,9) -> 26.61562776 | Y79: =VLOOKUP(Y57,'EESS Shielding Table'!data_1,9) -> 22.41623389 | Z79: =VLOOKUP(Z57,'EESS Shielding Table'!data_1,9) -> 26.61562776 | AA79: =VLOOKUP(AA57,'EESS Shielding Table'!data_1,9) -> 22.52212379 | AB79: =VLOOKUP(AB57,'EESS Shielding Table'!data_1,9) -> 22.31623389 | AC79: =VLOOKUP(AC57,'EESS Shielding Table'!data_1,9) -> 26.61562776 | AD79: =VLOOKUP(AD57,'EESS Shielding Table'!data_1,9) -> 22.52212379 | AE79: =VLOOKUP(AE57,'EESS Shielding Table'!data_1,9) -> 22.31623389 | AF79: =VLOOKUP(AF57,'EESS Shielding Table'!data_1,9) -> 26.61562776 | AG79: =VLOOKUP(AG57,'EESS Shielding Table'!data_1,9) -> 22.41623389 | AH79: =VLOOKUP(AH57,'EESS Shielding Table'!data_1,9) -> 26.61562776 | AI79: =VLOOKUP(AI57,'EESS Shielding Table'!data_1,9) -> 22.52212379 | AJ79: =VLOOKUP(AJ57,'EESS Shielding Table'!data_1,9) -> 22.31623389 | AK79: =VLOOKUP(AK57,'EESS Shielding Table'!data_1,9) -> 26.61562776 | AL79: =VLOOKUP(AL57,'EESS Shielding Table'!data_1,9) -> 22.52212379 | AM79: =VLOOKUP(AM57,'EESS Shielding Table'!data_1,9) -> 22.31623389 | AN79: =VLOOKUP(AN57,'EESS Shielding Table'!data_1,9) -> 26.61562776 | AO79: =VLOOKUP(AO57,'EESS Shielding Table'!data_1,9) -> 22.41623389 | AP79: =VLOOKUP(AP57,'EESS Shielding Table'!data_1,9) -> 26.61562776 | AQ79: =VLOOKUP(AQ57,'EESS Shielding Table'!data_1,9) -> 22.52212379 | AR79: =VLOOKUP(AR57,'EESS Shielding Table'!data_1,9) -> 22.31623389 | AS79: =VLOOKUP(AS57,'EESS Shielding Table'!data_1,9) -> 26.61562776 | AT79: =VLOOKUP(AT57,'EESS Shielding Table'!data_1,9) -> 22.52212379 | AU79: =VLOOKUP(AU57,'EESS Shielding Table'!data_1,9) -> 22.31623389 | AV79: =VLOOKUP(AV57,'EESS Shielding Table'!data_1,9) -> 26.61562776 | AW79: =VLOOKUP(AW57,'EESS Shielding Table'!data_1,9) -> 22.41623389
A80: Power spectral density at the EESS receiver in a 1 MHz bandwidth | B80: dBW/MHz | C80: =C76+C60-C77-C78-C79 -> -239.7505998 | D80: =D76+D60-D77-D78-D79 -> -239.9044026 | E80: -250.5490185 | F80: -252.5254625 | G80: -247.3293401 | H80: -255.0579152 | I80: -261.1310361 | J80: -260.1335687 | K80: -268.366479 | L80: -252.9999283 | M80: -262.0176942 | N80: -269.9546932 | O80: -257.8999283 | P80: -252.1991574 | Q80: -258.6689744 | R80: -260.4769659 | S80: -268.7098762 | T80: -253.3433255 | U80: -262.3610914 | V80: -270.2980904 | W80: -258.2433255 | X80: -252.5425546 | Y80: -259.0123716 | Z80: -257.7747136 | AA80: -258.3076239 | AB80: -245.1410732 | AC80: -259.6588391 | AD80: -260.0958381 | AE80: -250.0410732 | AF80: -249.8403022 | AG80: -249.9101193 | AH80: -258.2480694 | AI80: -258.7809797 | AJ80: -245.614429 | AK80: -260.1321949 | AL80: -260.5691939 | AM80: -250.514429 | AN80: -250.613658 | AO80: -254.3834751 | AP80: -260.0543218 | AQ80: -260.5872321 | AR80: -247.4206813 | AS80: -261.9384473 | AT80: -262.3754463 | AU80: -252.3206813 | AV80: -252.1199104 | AW80: -252.1897275
A81: Corresponding power at the EESS receiver in the reference bandwidth for a single interferer | B81: dBW | C81: =C80+10*LOG10(C54) -> -216.7402998 | D81: -216.8941026 | E81: =E80+10*LOG10(E54) -> -223.5593185 | F81: -225.5357624 | G81: -224.3190401 | H81: -232.0476152 | I81: -238.1207361 | J81: -237.1232687 | K81: -245.3561791 | L81: -229.9896283 | M81: -239.0073942 | N81: -246.9443932 | O81: -234.8896283 | P81: -229.1888574 | Q81: =Q80+10*LOG10(Q54) -> -235.6586745 | R81: -237.4666659 | S81: -245.6995763 | T81: -230.3330255 | U81: -239.3507914 | V81: -247.2877904 | W81: -235.2330255 | X81: -229.5322546 | Y81: -236.0020717 | Z81: =Z80+10*LOG10(Z54) -> -234.7644136 | AA81: -235.2973239 | AB81: -222.1307732 | AC81: -236.6485391 | AD81: -237.0855381 | AE81: -227.0307732 | AF81: -226.8300023 | AG81: -226.8998193 | AH81: =AH80+10*LOG10(AH54) -> -235.2377694 | AI81: -235.7706798 | AJ81: -222.604129 | AK81: -237.1218949 | AL81: -237.5588939 | AM81: -227.504129 | AN81: -227.6033581 | AO81: -231.3731751 | AP81: -237.0440218 | AQ81: -237.5769321 | AR81: -224.4103814 | AS81: -238.9281473 | AT81: -239.3651463 | AU81: -229.3103814 | AV81: -229.1096105 | AW81: -229.1794275
A82: Number of RDI-S devices per square kilometre with uniform distribution over Europe | B82: 1/km² | C82: ='Market Size'!H24 -> 0.007602394754 | D82: ='Market Size'!H22 -> 0.007602394754 | E82: ='Market Size'!H23 -> 0.007602394754 | F82: ='Market Size'!H23 -> 0.007602394754 | G82: ='Market Size'!H24 -> 0.007602394754 | H82: ='Market Size'!H24 -> 0.007602394754 | I82: ='Market Size'!H24 -> 0.007602394754 | J82: ='Market Size'!H25 -> 0.007602394754 | K82: ='Market Size'!H25 -> 0.007602394754 | L82: ='Market Size'!H25 -> 0.007602394754 | M82: ='Market Size'!H25 -> 0.007602394754 | N82: ='Market Size'!H25 -> 0.007602394754 | O82: ='Market Size'!H25 -> 0.007602394754 | P82: ='Market Size'!H25 -> 0.007602394754 | Q82: ='Market Size'!H25 -> 0.007602394754 | R82: ='Market Size'!H25 -> 0.007602394754 | S82: ='Market Size'!H25 -> 0.007602394754 | T82: ='Market Size'!H25 -> 0.007602394754 | U82: ='Market Size'!H25 -> 0.007602394754 | V82: ='Market Size'!H25 -> 0.007602394754 | W82: ='Market Size'!H25 -> 0.007602394754 | X82: ='Market Size'!H25 -> 0.007602394754 | Y82: ='Market Size'!$H$25 -> 0.007602394754 | Z82: ='Market Size'!$H$25 -> 0.007602394754 | AA82: ='Market Size'!$H$25 -> 0.007602394754 | AB82: ='Market Size'!$H$25 -> 0.007602394754 | AC82: ='Market Size'!$H$25 -> 0.007602394754 | AD82: ='Market Size'!$H$25 -> 0.007602394754 | AE82: ='Market Size'!$H$25 -> 0.007602394754 | AF82: ='Market Size'!$H$25 -> 0.007602394754 | AG82: ='Market Size'!$H$25 -> 0.007602394754 | AH82: ='Market Size'!$H$25 -> 0.007602394754 | AI82: ='Market Size'!$H$25 -> 0.007602394754 | AJ82: ='Market Size'!$H$25 -> 0.007602394754 | AK82: ='Market Size'!$H$25 -> 0.007602394754 | AL82: ='Market Size'!$H$25 -> 0.007602394754 | AM82: ='Market Size'!$H$25 -> 0.007602394754 | AN82: ='Market Size'!$H$25 -> 0.007602394754 | AO82: ='Market Size'!$H$25 -> 0.007602394754 | AP82: ='Market Size'!$H$25 -> 0.007602394754 | AQ82: ='Market Size'!$H$25 -> 0.007602394754 | AR82: ='Market Size'!$H$25 -> 0.007602394754 | AS82: ='Market Size'!$H$25 -> 0.007602394754 | AT82: ='Market Size'!$H$25 -> 0.007602394754 | AU82: ='Market Size'!$H$25 -> 0.007602394754 | AV82: ='Market Size'!$H$25 -> 0.007602394754 | AW82: ='Market Size'!$H$25 -> 0.007602394754
A83: Aggregate RDI-S device density (uniform distribution weighted with factor 75; acc. to contribution SE24(20)117) | B83: 1/km² | C83: ='System Parameter'!$H29 -> 0.5701796066 | D83: ='System Parameter'!$H29 -> 0.5701796066 | E83: ='System Parameter'!O29 -> 0.5701796066 | F83: ='System Parameter'!O29 -> 0.5701796066 | G83: ='System Parameter'!$R29 -> 0.5701796066 | H83: ='System Parameter'!$R29 -> 0.5701796066 | I83: ='System Parameter'!$R29 -> 0.5701796066 | J83: ='System Parameter'!$V29 -> 0.5701796066 | K83: ='System Parameter'!$V29 -> 0.5701796066 | L83: ='System Parameter'!$V29 -> 0.5701796066 | M83: ='System Parameter'!$V29 -> 0.5701796066 | N83: ='System Parameter'!$V29 -> 0.5701796066 | O83: ='System Parameter'!$V29 -> 0.5701796066 | P83: ='System Parameter'!$V29 -> 0.5701796066 | Q83: ='System Parameter'!$V29 -> 0.5701796066 | R83: ='System Parameter'!$X29 -> 0.5701796066 | S83: ='System Parameter'!$X29 -> 0.5701796066 | T83: ='System Parameter'!$X29 -> 0.5701796066 | U83: ='System Parameter'!$X29 -> 0.5701796066 | V83: ='System Parameter'!$X29 -> 0.5701796066 | W83: ='System Parameter'!$X29 -> 0.5701796066 | X83: ='System Parameter'!$X29 -> 0.5701796066 | Y83: ='System Parameter'!$X29 -> 0.5701796066 | Z83: ='System Parameter'!$Z29 -> 0.5701796066 | AA83: ='System Parameter'!$Z29 -> 0.5701796066 | AB83: ='System Parameter'!$Z29 -> 0.5701796066 | AC83: ='System Parameter'!$Z29 -> 0.5701796066 | AD83: ='System Parameter'!$Z29 -> 0.5701796066 | AE83: ='System Parameter'!$Z29 -> 0.5701796066 | AF83: ='System Parameter'!$Z29 -> 0.5701796066 | AG83: ='System Parameter'!$Z29 -> 0.5701796066 | AH83: ='System Parameter'!$AB29 -> 0.5701796066 | AI83: ='System Parameter'!$AB29 -> 0.5701796066 | AJ83: ='System Parameter'!$AB29 -> 0.5701796066 | AK83: ='System Parameter'!$AB29 -> 0.5701796066 | AL83: ='System Parameter'!$AB29 -> 0.5701796066 | AM83: ='System Parameter'!$AB29 -> 0.5701796066 | AN83: ='System Parameter'!$AB29 -> 0.5701796066 | AO83: ='System Parameter'!$AB29 -> 0.5701796066 | AP83: ='System Parameter'!$AI29 -> 0.5701796066 | AQ83: ='System Parameter'!$AI29 -> 0.5701796066 | AR83: ='System Parameter'!$AI29 -> 0.5701796066 | AS83: ='System Parameter'!$AI29 -> 0.5701796066 | AT83: ='System Parameter'!$AI29 -> 0.5701796066 | AU83: ='System Parameter'!$AI29 -> 0.5701796066 | AV83: ='System Parameter'!$AI29 -> 0.5701796066 | AW83: ='System Parameter'!$AI29 -> 0.5701796066
A84: Number of aggregate RDI-S devices in the IFOV and active in the reference BW of the satellite | C84: =ROUNDUP(C83*C61,0) -> 47 | D84: =ROUNDUP(D83*D61,0) -> 47 | E84: 88 | F84: 433 | G84: 65 | H84: 145 | I84: 1188 | J84: 115 | K84: 629 | L84: 35 | M84: 180 | N84: 1005 | O84: 94 | P84: 16 | Q84: 81 | R84: 115 | S84: 629 | T84: 35 | U84: 180 | V84: 1005 | W84: 94 | X84: 16 | Y84: 81 | Z84: 115 | AA84: 629 | AB84: 35 | AC84: 180 | AD84: 1005 | AE84: 94 | AF84: 16 | AG84: 81 | AH84: 115 | AI84: 629 | AJ84: 35 | AK84: 180 | AL84: 1005 | AM84: 94 | AN84: 16 | AO84: 81 | AP84: 115 | AQ84: 629 | AR84: 35 | AS84: 180 | AT84: 1005 | AU84: 94 | AV84: 16 | AW84: 81
A85: Corresponding received power at the EESS in the reference bandwidth within the EESS's FOV | B85: dBW | C85: =C81+10*LOG10(C84) -> -200.0193212 | D85: -200.173124 | E85: -204.1144917 | F85: -199.1708835 | G85: -206.1899066 | H85: -210.4339352 | I85: -207.3725717 | J85: -216.5162903 | K85: -217.3696726 | L85: -214.5489479 | M85: -216.4546692 | N85: -216.9227326 | O85: -215.1583498 | P85: -217.1476576 | Q85: -216.5738243 | R85: -216.8596875 | S85: -217.7130698 | T85: -214.8923451 | U85: -216.7980664 | V85: -217.2661298 | W85: -215.501747 | X85: -217.4910548 | Y85: -216.9172215 | Z85: -214.1574352 | AA85: -207.3108175 | AB85: -206.6900928 | AC85: -214.0958141 | AD85: -207.0638775 | AE85: -207.2994947 | AF85: -214.7888024 | AG85: -207.8149691 | AH85: -214.630791 | AI85: -207.7841733 | AJ85: -207.1634486 | AK85: -214.5691699 | AL85: -207.5372333 | AM85: -207.7728505 | AN85: -215.5621583 | AO85: -212.288325 | AP85: -216.4370434 | AQ85: -209.5904257 | AR85: -208.9697009 | AS85: -216.3754222 | AT85: -209.3434857 | AU85: -209.5791028 | AV85: -217.0684106 | AW85: -210.0945773
A86: Margin with reference to ITU-R RS.2017-0 | B86: dB | C86: =C62-C63-C85 -> 22.01932123 | D86: 22.17312404 | E86: 33.11449173 | F86: 28.17088346 | G86: 31.18990657 | H86: 35.4339352 | I86: 32.3725717 | J86: 41.51629034 | K86: 42.36967262 | L86: 39.54894788 | M86: 41.45466919 | N86: 41.92273263 | O86: 40.15834979 | P86: 42.14765757 | Q86: 41.57382427 | R86: 41.85968754 | S86: 42.71306981 | T86: 39.89234507 | U86: 41.79806639 | V86: 42.26612982 | W86: 40.50174698 | X86: 42.49105477 | Y86: 41.91722147 | Z86: 39.15743522 | AA86: 32.31081749 | AB86: 31.69009275 | AC86: 39.09581406 | AD86: 32.0638775 | AE86: 32.29949466 | AF86: 39.78880245 | AG86: 32.81496915 | AH86: 42.63079102 | AI86: 35.7841733 | AJ86: 35.16344856 | AK86: 42.56916987 | AL86: 35.53723331 | AM86: 35.77285047 | AN86: 43.56215826 | AO86: 40.28832496 | AP86: 44.4370434 | AQ86: 37.59042568 | AR86: 36.96970094 | AS86: 44.37542225 | AT86: 37.34348568 | AU86: 37.57910284 | AV86: 45.06841063 | AW86: 38.09457733

Sheet RAS
A1: Compatibility analysis between radiodetermination systems for industry automation in shielded environments and RAS
A5: Victim RAS system | C5: Band of RAS system: 111,8-116 GHz | E5: Band of RAS system: 123-158,5 GHz (lower) | G5: Band of RAS system: 123-158,5 GHz (upper) | I5: Band of RAS system: 164-174,5 GHz | K5: Band of RAS system: 190-231,5 GHz | M5: Band of RAS system: 235-238 GHz | O5: Band of RAS system: 241-275 GHz
A6: Sensor type | C6: Continuum observation | D6: Spectral-line observation | E6: Continuum observation | F6: Spectral-line observation | G6: Continuum observation | H6: Spectral-line observation | I6: Continuum observation | J6: Spectral-line observation | K6: Continuum observation | L6: Spectral-line observation | M6: Continuum observation | N6: Spectral-line observation | O6: Continuum observation | P6: Spectral-line observation
A7: RAS: | B7: Units
A8: Assumed centre frequency of RAS | B8: GHz | C8: 113.9 | D8: 113.9 | E8: 126.5 | F8: 126.5 | G8: 137.5 | H8: 137.5 | I8: 169.25 | J8: 169.25 | K8: 210.75 | L8: 210.75 | M8: 236.5 | N8: 236.5 | O8: 245.5 | P8: 245.5
A9: Wavelength of RAS | B9: m | C9: =2.99792458/C8/10 -> 0.002632067234 | D9: 0.002632067234 | E9: =2.99792458/E8/10 -> 0.002369900854 | F9: 0.002369900854 | G9: 0.002180308785 | H9: 0.002180308785 | I9: =2.99792458/I8/10 -> 0.001771299604 | J9: =2.99792458/J8/10 -> 0.001771299604 | K9: =2.99792458/K8/10 -> 0.001422502766 | L9: 0.001422502766 | M9: 0.001267621387 | N9: 0.001267621387 | O9: 0.001221150542 | P9: 0.001221150542
A10: Bandwidth (ITU-R RA.769-2 ) | B10: MHz | C10: 8000 | D10: 1 | E10: 8000 | F10: 1 | G10: 8000 | H10: 1 | I10: 8000 | J10: 1 | K10: 8000 | L10: 1 | M10: 8000 | N10: 1 | O10: 8000 | P10: 1
A11: Antenna gain in the direction of interferer (ITU-R RA.769-2 ) | B11: dBi | C11: 0 | D11: 0 | E11: 0 | F11: 0 | G11: 0 | H11: 0 | I11: 0 | J11: 0 | K11: 0 | L11: 0 | M11: 0 | N11: 0 | O11: 0 | P11: 0
A12: Feeder (insertion) loss | B12: dB | C12: 0 | D12: 0 | E12: 0 | F12: 0 | G12: 0 | H12: 0 | I12: 0 | J12: 0 | K12: 0 | L12: 0 | M12: 0 | N12: 0 | O12: 0 | P12: 0
A13: Threshold Interference level at receiver input (ITU-R RA.769-2 ) | B13: dBW | C13: -189 | D13: -209 | E13: -189.3 | F13: -209 | G13: -189.5 | H13: -209 | I13: -189.1 | J13: -209 | K13: -187.7 | L13: -207 | M13: -187.8 | N13: -207 | O13: -186.8 | P13: -207
A14: Threshold Interference level at receiver input | B14: dBm | C14: =C13+30 -> -159 | D14: =D13+30 -> -179 | E14: =E13+30 -> -159.3 | F14: -179 | G14: -159.5 | H14: -179 | I14: =I13+30 -> -159.1 | J14: =J13+30 -> -179 | K14: =K13+30 -> -157.7 | L14: -177 | M14: -157.8 | N14: -177 | O14: -156.8 | P14: -177
A16: Radiodetermination system (interferer):
A17: Conducted Tx power of interferer | B17: dBm | C17: ='System Parameter'!$I4 -> 9 | D17: ='System Parameter'!$I4 -> 9 | E17: ='System Parameter'!$K4 -> 24 | F17: ='System Parameter'!$K4 -> 24 | G17: ='System Parameter'!$N4 -> 9 | H17: ='System Parameter'!$N4 -> 9 | I17: ='System Parameter'!$R4 -> -1 | J17: ='System Parameter'!$R4 -> -1 | K17: ='System Parameter'!$Z4 -> -1 | L17: ='System Parameter'!$Z4 -> -1 | M17: ='System Parameter'!$AD4 -> 9 | N17: ='System Parameter'!$AD4 -> 9 | O17: ='System Parameter'!$AF4 -> 9 | P17: ='System Parameter'!$AF4 -> 9
A18: Out-of-band unwanted emissions attenuation (if RAS victim is located in an adjacent band) | B18: dB | C18: 10 | D18: 10 | E18: 0 | F18: 0 | G18: 0 | H18: 0 | I18: 0 | J18: 0 | K18: 0 | L18: 0 | M18: 0 | N18: 0 | O18: 0 | P18: 0
A19: Tx e.i.r.p. of interferer | B19: dBm | C19: =C17-C18+C25 -> 35 | D19: 35 | E19: =E17-E18+E25 -> 60 | F19: 60 | G19: 45 | H19: 45 | I19: 35 | J19: 35 | K19: =K17-K18+K25 -> 35 | L19: 35 | M19: 45 | N19: 45 | O19: 45 | P19: 45
A20: Bandwidth of interferer Tx signal | B20: GHz | C20: ='System Parameter'!$I8 -> 100 | D20: ='System Parameter'!$I8 -> 100 | E20: ='System Parameter'!$K8 -> 100 | F20: ='System Parameter'!$K8 -> 100 | G20: ='System Parameter'!$N8 -> 100 | H20: ='System Parameter'!$N8 -> 100 | I20: ='System Parameter'!$R8 -> 100 | J20: ='System Parameter'!$R8 -> 100 | K20: ='System Parameter'!$Z8 -> 100 | L20: ='System Parameter'!$Z8 -> 100 | M20: ='System Parameter'!$AD8 -> 100 | N20: ='System Parameter'!$AD8 -> 100 | O20: ='System Parameter'!$AF8 -> 100 | P20: ='System Parameter'!$AF8 -> 100
A21: Mitigation technique (e.g. duty cycle, adaptive power control) | B21: dB | C21: ='System Parameter'!$I17 -> 0 | D21: ='System Parameter'!$I17 -> 0 | E21: ='System Parameter'!$K17 -> 0 | F21: ='System Parameter'!$K17 -> 0 | G21: ='System Parameter'!$N17 -> 0 | H21: ='System Parameter'!$N17 -> 0 | I21: ='System Parameter'!$R17 -> 0 | J21: ='System Parameter'!$R17 -> 0 | K21: ='System Parameter'!Z17 -> 0 | L21: ='System Parameter'!$Z17 -> 0 | M21: ='System Parameter'!$AD17 -> 0 | N21: ='System Parameter'!$AD17 -> 0 | O21: ='System Parameter'!$AF17 -> 0 | P21: ='System Parameter'!$AF17 -> 0
A22: Tx e.i.r.p. spectral density of interferer | B22: dBm/MHz | C22: =C19-10*LOG(C20*1000) -> -15 | D22: -15 | E22: 10 | F22: =F19-10*LOG(F20*1000) -> 10 | G22: -5 | H22: -5 | I22: =I19-10*LOG(I20*1000) -> -15 | J22: =J19-10*LOG(J20*1000) -> -15 | K22: =K19-10*LOG(K20*1000) -> -15 | L22: -15 | M22: -5 | N22: -5 | O22: -5 | P22: -5
A23: Tx e.i.r.p. spectral density of interferer with mitigation | B23: dBm/MHz | C23: =C19+C21-10*LOG(C20*1000) -> -15 | D23: -15 | E23: 10 | F23: =F19+F21-10*LOG(F20*1000) -> 10 | G23: -5 | H23: -5 | I23: =I19+I21-10*LOG(I20*1000) -> -15 | J23: =J19+J21-10*LOG(J20*1000) -> -15 | K23: =K19+K21-10*LOG(K20*1000) -> -15 | L23: -15 | M23: -5 | N23: -5 | O23: -5 | P23: -5
A24: Tx e.i.r.p. of interferer with mitigation | B24: dBm | C24: =C19+C21 -> 35 | D24: 35 | E24: =E19+E21 -> 60 | F24: 60 | G24: 45 | H24: 45 | I24: 35 | J24: 35 | K24: =K19+K21 -> 35 | L24: 35 | M24: 45 | N24: 45 | O24: 45 | P24: 45
A25: Gain of interferer antenna in the direction of main radiation | B25: dBi | C25: ='System Parameter'!$I5 -> 36 | D25: ='System Parameter'!$I5 -> 36 | E25: ='System Parameter'!$K5 -> 36 | F25: ='System Parameter'!$K5 -> 36 | G25: ='System Parameter'!$N5 -> 36 | H25: ='System Parameter'!$N5 -> 36 | I25: ='System Parameter'!$R5 -> 36 | J25: ='System Parameter'!$R5 -> 36 | K25: ='System Parameter'!$Z5 -> 36 | L25: ='System Parameter'!$Z5 -> 36 | M25: ='System Parameter'!$AD5 -> 36 | N25: ='System Parameter'!$AD5 -> 36 | O25: ='System Parameter'!$AF5 -> 36 | P25: ='System Parameter'!$AF5 -> 36
A27: Indoor-outdoor attenuation (according to clause 2.3 in the Report) | B27: dB | C27: ='System Parameter'!$I22 -> 50 | D27: ='System Parameter'!$I22 -> 50 | E27: ='System Parameter'!$K22 -> 50 | F27: ='System Parameter'!$K22 -> 50 | G27: ='System Parameter'!$N22 -> 50 | H27: ='System Parameter'!$N22 -> 50 | I27: ='System Parameter'!$R22 -> 50 | J27: ='System Parameter'!$R22 -> 50 | K27: ='System Parameter'!$Z22 -> 50 | L27: ='System Parameter'!$Z22 -> 50 | M27: ='System Parameter'!$AD22 -> 50 | N27: ='System Parameter'!$AD22 -> 50 | O27: ='System Parameter'!$AF22 -> 50 | P27: ='System Parameter'!$AF22 -> 50
A28: Total e.i.r.p. towards RAS | B28: dBm | C28: =C24-C27 -> -15 | D28: -15 | E28: =E24-E27 -> 10 | F28: 10 | G28: -5 | H28: -5 | I28: -15 | J28: -15 | K28: -15 | L28: -15 | M28: =M24-M27 -> -5 | N28: -5 | O28: -5 | P28: -5
A29: BWCF | B29: dB | C29: =IF(C20*1000<=C10, 0, 10*LOG10(C10/C20/1000)) -> -10.96910013 | D29: -50 | E29: -10.96910013 | F29: -50 | G29: -10.96910013 | H29: -50 | I29: -10.96910013 | J29: -50 | K29: -10.96910013 | L29: -50 | M29: -10.96910013 | N29: -50 | O29: -10.96910013 | P29: -50
A32: Separation distance calculation:
A33: Minimum coupling loss (MCL) | B33: dB | C33: =C28-(C14-C11+C12)+C29 -> 133.0308999 | D33: 114 | E33: =E28-(E14-E11+E12)+E29 -> 158.3308999 | F33: 139 | G33: 143.5308999 | H33: 124 | I33: 133.1308999 | J33: 114 | K33: =K28-(K14-K11+K12)+K29 -> 131.7308999 | L33: 112 | M33: 141.8308999 | N33: 122 | O33: 140.8308999 | P33: 122
A34: Separation distance with FSL model | B34: km | C34: =10^((C33-32.44-20*LOG10(C8*1000))/20) -> 0.9397693343 | D34: 0.1050694057 | E34: =10^((E33-32.44-20*LOG10(E8*1000))/20) -> 15.57594726 | F34: 1.682323357 | G34: 2.607607943 | H34: 0.2752309707 | I34: 0.6397588703 | J34: 0.07070845089 | K34: =10^((K33-32.44-20*LOG10(K8*1000))/20) -> 0.4372979186 | L34: 0.04510580278 | M34: 1.246561898 | N34: 0.1271068204 | O34: 1.070270357 | P34: 0.1224470999
A35: Specific attenuation due to atmospheric gases (acc. to ITU-R P.835-6 winter high latitude model) | B35: dB/km | C35: ='System Parameter'!I26 -> 0.31 | D35: ='System Parameter'!I26 -> 0.31 | E35: ='System Parameter'!K26 -> 0.11 | F35: ='System Parameter'!K26 -> 0.11 | G35: ='System Parameter'!N26 -> 0.1 | H35: ='System Parameter'!N26 -> 0.1 | I35: ='System Parameter'!R26 -> 0.18 | J35: ='System Parameter'!R26 -> 0.18 | K35: ='System Parameter'!Z26 -> 0.25 | L35: ='System Parameter'!Z26 -> 0.25 | M35: ='System Parameter'!AD26 -> 0.27 | N35: ='System Parameter'!AD26 -> 0.27 | O35: ='System Parameter'!AF26 -> 0.29 | P35: ='System Parameter'!AF26 -> 0.29
A36: Separation distance adjusted for attenuation due to atmospheric gases | B36: km | C36: 0.9097454754 | D36: 0.1046774831 | E36: 13.18082336 | F36: 1.647583325 | G36: 2.532670061 | H36: 0.2743626447 | I36: 0.6314411986 | J36: 0.07060498343 | K36: 0.4318951085 | L36: 0.04504730372 | M36: 1.200885522 | N36: 0.1266074183 | O36: 1.033953188 | P36: 0.1219494192
A37: Balance check (should be close to zero) | B37: dB | C37: =C33-20*LOG10(C36)-C36*C35-32.44-20*LOG10(C8*1000) -> 6.204474161e-06 | D37: 1.006598764e-05 | E37: =E33-20*LOG10(E36)-E36*E35-32.44-20*LOG10(E8*1000) -> 0.0003479890105 | F37: 7.567571004e-06 | G37: 6.569236106e-06 | H37: 1.016166952e-05 | I37: 8.624092359e-06 | J37: 1.044743875e-05 | K37: =K33-20*LOG10(K36)-K36*K35-32.44-20*LOG10(K8*1000) -> 8.718692783e-06 | L37: 1.047590129e-05 | M37: 5.701288487e-06 | N37: 1.003308417e-05 | O37: 5.987435031e-06 | P37: 1.001072272e-05

Sheet RAS 5.340 bands
A1: Compatibility analysis between radiodetermination systems for industry automation in shielded environments and RAS in protected bands by Article 5.340 in the Radio Regulations
C4: Protected bands assigned to RAS
A5: Victim RAS system | C5: 114,25-116 GHz | E5: 148,5-151,5 GHz | G5: 164-167 GHz | I5: 182-185 GHz | K5: 190-191,8 GHz | M5: 200-209 GHz | O5: 226-231,5 GHz | Q5: 250-252 GHz
A6: Sensor type | C6: Continuum observation | D6: Spectral-line observation | E6: Continuum observation | F6: Spectral-line observation | G6: Continuum observation | H6: Spectral-line observation | I6: Continuum observation | J6: Spectral-line observation | K6: Continuum observation | L6: Spectral-line observation | M6: Continuum observation | N6: Spectral-line observation | O6: Continuum observation | P6: Spectral-line observation | Q6: Continuum observation | R6: Spectral-line observation
A7: RAS: | B7: Units
A8: Assumed centre frequency of RAS | B8: GHz | C8: 115.125 | D8: 115.125 | E8: 150 | F8: 150 | G8: 165.5 | H8: 165.5 | I8: 183.5 | J8: 183.5 | K8: 190.9 | L8: 190.9 | M8: 204.5 | N8: 204.5 | O8: 228.25 | P8: 228.25 | Q8: 251 | R8: 251
A9: Wavelength of RAS | B9: m | C9: =2.99792458/C8/10 -> 0.002604060439 | D9: 0.002604060439 | E9: =2.99792458/E8/10 -> 0.001998616387 | F9: 0.001998616387 | G9: 0.001811434792 | H9: 0.001811434792 | I9: =2.99792458/I8/10 -> 0.001633746365 | J9: 0.001633746365 | K9: 0.001570416228 | L9: 0.001570416228 | M9: =2.99792458/M8/10 -> 0.00146597779 | N9: 0.00146597779 | O9: =2.99792458/O8/10 -> 0.001313439027 | P9: 0.001313439027 | Q9: =2.99792458/Q8/10 -> 0.001194392263 | R9: 0.001194392263
A10: Bandwidth (ITU-R RA.769-2 ) | B10: MHz | C10: 8000 | D10: 1 | E10: 8000 | F10: 1 | G10: 8000 | H10: 1 | I10: 8000 | J10: 1 | K10: 8000 | L10: 1 | M10: 8000 | N10: 1 | O10: 8000 | P10: 1 | Q10: 8000 | R10: 1
A11: Antenna gain in the direction of interferer (ITU-R RA.769-2 ) | B11: dBi | C11: 0 | D11: 0 | E11: 0 | F11: 0 | G11: 0 | H11: 0 | I11: 0 | J11: 0 | K11: 0 | L11: 0 | M11: 0 | N11: 0 | O11: 0 | P11: 0 | Q11: 0 | R11: 0
A12: Feeder (insertion) loss | B12: dB | C12: 0 | D12: 0 | E12: 0 | F12: 0 | G12: 0 | H12: 0 | I12: 0 | J12: 0 | K12: 0 | L12: 0 | M12: 0 | N12: 0 | O12: 0 | P12: 0 | Q12: 0 | R12: 0
A13: Threshold Interference level at receiver input (ITU-R RA.769-2 ) | B13: dBW | C13: -189 | D13: -209 | E13: -189 | F13: -209 | G13: -189 | H13: -209 | I13: -189 | J13: -209 | K13: -189 | L13: -209 | M13: -189 | N13: -208 | O13: -188 | P13: -207 | Q13: -188 | R13: -207
A14: Threshold Interference level at receiver input | B14: dBm | C14: =C13+30 -> -159 | D14: =D13+30 -> -179 | E14: =E13+30 -> -159 | F14: -179 | G14: -159 | H14: -179 | I14: =I13+30 -> -159 | J14: -179 | K14: -159 | L14: -179 | M14: =M13+30 -> -159 | N14: -178 | O14: =O13+30 -> -158 | P14: -177 | Q14: =Q13+30 -> -158 | R14: -177
A16: Radiodetermination system (interferer):
A17: Conducted Tx power of interferer | B17: dBm | C17: ='System Parameter'!$I4 -> 9 | D17: ='System Parameter'!$I4 -> 9 | E17: ='System Parameter'!$O4 -> -1 | F17: ='System Parameter'!$O4 -> -1 | G17: ='System Parameter'!$R4 -> -1 | H17: ='System Parameter'!$R4 -> -1 | I17: ='System Parameter'!$V4 -> -1 | J17: ='System Parameter'!$V4 -> -1 | K17: ='System Parameter'!$X4 -> -1 | L17: ='System Parameter'!$X4 -> -1 | M17: ='System Parameter'!$Z4 -> -1 | N17: ='System Parameter'!$Z4 -> -1 | O17: ='System Parameter'!$AB4 -> -1 | P17: ='System Parameter'!$AB4 -> -1 | Q17: ='System Parameter'!$AI4 -> -1 | R17: ='System Parameter'!$AI4 -> -1
A18: Out-of-band unwanted emissions attenuation (if RAS victim is located in an adjacent band) | B18: dB | C18: 10 | D18: 10 | E18: 0 | F18: 0 | G18: 0 | H18: 0 | I18: 0 | J18: 0 | K18: 0 | L18: 0 | M18: 0 | N18: 0 | O18: 0 | P18: 0 | Q18: 0 | R18: 0
A19: Tx e.i.r.p. of interferer | B19: dBm | C19: =C17-C18+C25 -> 35 | D19: 35 | E19: =E17-E18+E25 -> 35 | F19: 35 | G19: 35 | H19: 35 | I19: 35 | J19: 35 | K19: 35 | L19: 35 | M19: =M17-M18+M25 -> 35 | N19: 35 | O19: =O17-O18+O25 -> 35 | P19: 35 | Q19: =Q17-Q18+Q25 -> 35 | R19: 35
A20: Bandwidth of interferer Tx signal | B20: GHz | C20: ='System Parameter'!$I8 -> 100 | D20: ='System Parameter'!$I8 -> 100 | E20: ='System Parameter'!$O8 -> 100 | F20: ='System Parameter'!$O8 -> 100 | G20: ='System Parameter'!$R8 -> 100 | H20: ='System Parameter'!$R8 -> 100 | I20: ='System Parameter'!$V8 -> 100 | J20: ='System Parameter'!$V8 -> 100 | K20: ='System Parameter'!$X8 -> 100 | L20: ='System Parameter'!$X8 -> 100 | M20: ='System Parameter'!$Z8 -> 100 | N20: ='System Parameter'!$Z8 -> 100 | O20: ='System Parameter'!$AB8 -> 100 | P20: ='System Parameter'!$AB8 -> 100 | Q20: ='System Parameter'!$AI8 -> 100 | R20: ='System Parameter'!$AI8 -> 100
A21: Mitigation technique (e.g. duty cycle, adaptive power control) | B21: dB | C21: ='System Parameter'!$I17 -> 0 | D21: ='System Parameter'!$I17 -> 0 | E21: 0 | F21: 0 | G21: 0 | H21: 0 | I21: 0 | J21: 0 | K21: 0 | L21: 0 | M21: 0 | N21: 0 | O21: 0 | P21: 0 | Q21: 0 | R21: 0
A22: Tx e.i.r.p. spectral density of interferer | B22: dBm/MHz | C22: =C19-10*LOG(C20*1000) -> -15 | D22: -15 | E22: =E19-10*LOG(E20*1000) -> -15 | F22: -15 | G22: -15 | H22: -15 | I22: =I19-10*LOG(I20*1000) -> -15 | J22: -15 | K22: -15 | L22: -15 | M22: =M19-10*LOG(M20*1000) -> -15 | N22: -15 | O22: =O19-10*LOG(O20*1000) -> -15 | P22: -15 | Q22: =Q19-10*LOG(Q20*1000) -> -15 | R22: -15
A23: Tx e.i.r.p. spectral density of interferer with mitigation | B23: dBm/MHz | C23: =C19+C21-10*LOG(C20*1000) -> -15 | D23: -15 | E23: =E19+E21-10*LOG(E20*1000) -> -15 | F23: -15 | G23: -15 | H23: -15 | I23: =I19+I21-10*LOG(I20*1000) -> -15 | J23: -15 | K23: -15 | L23: -15 | M23: =M19+M21-10*LOG(M20*1000) -> -15 | N23: -15 | O23: =O19+O21-10*LOG(O20*1000) -> -15 | P23: -15 | Q23: =Q19+Q21-10*LOG(Q20*1000) -> -15 | R23: -15
A24: Tx e.i.r.p. of interferer with mitigation | B24: dBm | C24: =C19+C21 -> 35 | D24: 35 | E24: =E19+E21 -> 35 | F24: 35 | G24: 35 | H24: 35 | I24: 35 | J24: 35 | K24: 35 | L24: 35 | M24: =M19+M21 -> 35 | N24: 35 | O24: =O19+O21 -> 35 | P24: 35 | Q24: =Q19+Q21 -> 35 | R24: 35
A25: Gain of interferer antenna in the direction of main radiation | B25: dBi | C25: ='System Parameter'!$I5 -> 36 | D25: ='System Parameter'!$I5 -> 36 | E25: ='System Parameter'!$O5 -> 36 | F25: ='System Parameter'!$O5 -> 36 | G25: ='System Parameter'!$R5 -> 36 | H25: ='System Parameter'!$R5 -> 36 | I25: ='System Parameter'!$V5 -> 36 | J25: ='System Parameter'!$V5 -> 36 | K25: ='System Parameter'!$X5 -> 36 | L25: ='System Parameter'!$X5 -> 36 | M25: ='System Parameter'!$Z5 -> 36 | N25: ='System Parameter'!$Z5 -> 36 | O25: ='System Parameter'!$AB5 -> 36 | P25: ='System Parameter'!$AB5 -> 36 | Q25: ='System Parameter'!$AI5 -> 36 | R25: ='System Parameter'!$AI5 -> 36
A27: Indoor-outdoor attenuation (according to clause 2.3 in the Report) | B27: dB | C27: ='System Parameter'!$I22 -> 50 | D27: ='System Parameter'!$I22 -> 50 | E27: ='System Parameter'!$O22 -> 50 | F27: ='System Parameter'!$O22 -> 50 | G27: ='System Parameter'!$R22 -> 50 | H27: ='System Parameter'!$R22 -> 50 | I27: ='System Parameter'!$V22 -> 50 | J27: ='System Parameter'!$V22 -> 50 | K27: ='System Parameter'!$X22 -> 50 | L27: ='System Parameter'!$X22 -> 50 | M27: ='System Parameter'!$Z22 -> 50 | N27: ='System Parameter'!$Z22 -> 50 | O27: ='System Parameter'!$AB22 -> 50 | P27: ='System Parameter'!$AB22 -> 50 | Q27: ='System Parameter'!$AI22 -> 50 | R27: ='System Parameter'!$AI22 -> 50
A28: Total e.i.r.p. towards RAS | B28: dBm | C28: =C24-C27 -> -15 | D28: -15 | E28: =E24-E27 -> -15 | F28: -15 | G28: -15 | H28: -15 | I28: -15 | J28: -15 | K28: -15 | L28: -15 | M28: =M24-M27 -> -15 | N28: -15 | O28: =O24-O27 -> -15 | P28: -15 | Q28: =Q24-Q27 -> -15 | R28: -15
A29: BWCF | B29: dB | C29: =IF(C20*1000<=C10, 0, 10*LOG10(C10/C20/1000)) -> -10.96910013 | D29: -50 | E29: -10.96910013 | F29: -50 | G29: -10.96910013 | H29: -50 | I29: -10.96910013 | J29: -50 | K29: -10.96910013 | L29: -50 | M29: -10.96910013 | N29: -50 | O29: -10.96910013 | P29: -50 | Q29: -10.96910013 | R29: -50
A32: Separation distance calculation:
A33: Minimum coupling loss (MCL) | B33: dB | C33: =C28-(C14-C11+C12)+C29 -> 133.0308999 | D33: 114 | E33: =E28-(E14-E11+E12)+E29 -> 133.0308999 | F33: 114 | G33: 133.0308999 | H33: 114 | I33: 133.0308999 | J33: 114 | K33: 133.0308999 | L33: 114 | M33: =M28-(M14-M11+M12)+M29 -> 133.0308999 | N33: 113 | O33: =O28-(O14-O11+O12)+O29 -> 132.0308999 | P33: 112 | Q33: =Q28-(Q14-Q11+Q12)+Q29 -> 132.0308999 | R33: 112
A34: Separation distance with FSL model | B34: km | C34: =10^((C33-32.44-20*LOG10(C8*1000))/20) -> 0.9297696172 | D34: 0.1039514034 | E34: =10^((E33-32.44-20*LOG10(E8*1000))/20) -> 0.7135981812 | F34: 0.07978270209 | G34: 0.6467657231 | H34: 0.07231060612 | I34: 0.5833227639 | J34: 0.06521746765 | K34: 0.5607109857 | L34: 0.06268939399 | M34: =10^((M33-32.44-20*LOG10(M8*1000))/20) -> 0.5234216488 | N34: 0.05215628955 | O34: =10^((O33-32.44-20*LOG10(O8*1000))/20) -> 0.4179595061 | P34: 0.04164752656 | Q34: =10^((Q33-32.44-20*LOG10(Q8*1000))/20) -> 0.3800767222 | R34: 0.03787270094
A35: Specific attenuation due to atmospheric gases (acc. to ITU-R P.835-6 winter high latitude model) | B35: dB/km | C35: ='System Parameter'!I26 -> 0.31 | D35: ='System Parameter'!I26 -> 0.31 | E35: ='System Parameter'!$O26 -> 0.12 | F35: ='System Parameter'!$O26 -> 0.12 | G35: ='System Parameter'!$R26 -> 0.18 | H35: ='System Parameter'!$R26 -> 0.18 | I35: ='System Parameter'!$V26 -> 3.55 | J35: ='System Parameter'!$V26 -> 3.55 | K35: ='System Parameter'!$X26 -> 0.58 | L35: ='System Parameter'!$X26 -> 0.58 | M35: ='System Parameter'!$X26 -> 0.58 | N35: ='System Parameter'!$X26 -> 0.58 | O35: ='System Parameter'!$X26 -> 0.58 | P35: ='System Parameter'!$X26 -> 0.58 | Q35: ='System Parameter'!$X26 -> 0.58 | R35: ='System Parameter'!$X26 -> 0.58
A36: Separation distance adjusted for attenuation due to atmospheric gases | B36: km | C36: 0.9003665597 | D36: 0.1035677528 | E36: 0.7066645276 | F36: 0.07969481129 | G36: 0.6382666683 | H36: 0.07220240406 | I36: 0.4794987789 | J36: 0.06354542256 | K36: 0.5408227044 | L36: 0.06242853512 | M36: 0.5060302741 | N36: 0.05197552585 | O36: 0.406759625 | P36: 0.04153213629 | Q36: 0.3707816644 | R36: 0.03777723999
A37: Balance check (should be close to zero) | B37: dB | C37: =C33-20*LOG10(C36)-C36*C35-32.44-20*LOG10(C8*1000) -> 6.240525821e-06 | D37: 1.007252705e-05 | E37: =E33-20*LOG10(E36)-E36*E35-32.44-20*LOG10(E8*1000) -> 9.113898528e-06 | F37: 1.050939653e-05 | G37: 8.603770965e-06 | H37: 1.044179146e-05 | I37: 0.0002077231941 | J37: 6.938153888e-06 | K37: 5.823674371e-06 | L37: 9.994788599e-06 | M37: =M33-20*LOG10(M36)-M36*M35-32.44-20*LOG10(M8*1000) -> 6.063957528e-06 | N37: 1.010986065e-05 | O37: =O33-20*LOG10(O36)-O36*O35-32.44-20*LOG10(O8*1000) -> 6.798333288e-06 | P37: 1.02260064e-05 | Q37: =Q33-20*LOG10(Q36)-Q36*Q35-32.44-20*LOG10(Q8*1000) -> 7.083273374e-06 | R37: 1.026805657e-05

Sheet FS
A1: Compatibility analysis between radiodetermination systems for industry automation in shielded environments and fixed service (FS) systems
A4: Scenario 1: Light pole connected to a building by means of an FS link – FS Rx on building (RDI-S main beam points exactly towards FS receiver). See Report figure 60.
A6: Victim Fixed Service (FS) system | C6: Band of FS system: 111,8-114,25 GHz | E6: Band of FS system: 130-134 GHz | G6: Band of FS system: 141-148,5 GHz | I6: Band of FS system: 151,5-164 GHz | K6: Band of FS system: 167-174,8 GHz
A7: Sensor type | C7: Point-to-point (PP) | D7: Point-to-point (PP) | E7: Point-to-point (PP) | F7: Point-to-point (PP) | G7: Point-to-point (PP) | H7: Point-to-point (PP) | I7: Point-to-point (PP) | J7: Point-to-point (PP) | K7: Point-to-point (PP) | L7: Point-to-point (PP)
A8: FS: | B8: Units
A9: Assumed centre frequency of FS system | B9: GHz | C9: 113.025 | D9: 113.025 | E9: 132 | F9: 132 | G9: 144.75 | H9: 144.75 | I9: 157.75 | J9: 157.75 | K9: 170.75 | L9: 170.75
A10: Wavelength of FS system | B10: m | C10: =2.99792458/C9/10 -> 0.002652443778 | D10: 0.002652443778 | E10: 0.002271154985 | F10: 0.002271154985 | G10: 0.002071105064 | H10: 0.002071105064 | I10: 0.001900427626 | J10: 0.001900427626 | K10: 0.001755739139 | L10: 0.001755739139
A11: Receiver noise bandwidth (ITU-R-F.758-6) | B11: MHz | C11: 1000 | D11: 1000 | E11: 1000 | F11: 1000 | G11: 1000 | H11: 1000 | I11: 1000 | J11: 1000 | K11: 1000 | L11: 1000
A12: Receiver noise figure (ITU-R-F.758-6) | B12: dB | C12: 12 | D12: 12 | E12: 14 | F12: 14 | G12: 14 | H12: 14 | I12: 14 | J12: 14 | K12: 14 | L12: 14
A13: Misalignment of antenna main beam towards Interferer (figure 60 in the Report) | B13: ° | C13: 0.95 | D13: 0.95 | E13: 0.95 | F13: 0.95 | G13: 0.95 | H13: 0.95 | I13: 0.95 | J13: 0.95 | K13: 0.95 | L13: 0.95
A14: Antenna gain in the direction of interferer (ITU-R-F.758-6) | B14: dBi | C14: 37.5 | D14: 37.5 | E14: 37.5 | F14: 37.5 | G14: 37.5 | H14: 37.5 | I14: 37.5 | J14: 37.5 | K14: 37.5 | L14: 37.5
A15: Feeder (insertion) loss (ITU-R-F.758-6) | B15: dB | C15: 0 | D15: 0 | E15: 0 | F15: 0 | G15: 0 | H15: 0 | I15: 0 | J15: 0 | K15: 0 | L15: 0
A16: I/N criterion (ITU-R F.758-6 ) | B16: dB | C16: -20 | D16: 5 | E16: -20 | F16: 5 | G16: -20 | H16: 5 | I16: -20 | J16: 5 | K16: -20 | L16: 5
A17: Receiver noise power density typical (ITU-R-F.758-6) | B17: dBW/MHz | C17: -132 | D17: -132 | E17: -130 | F17: -130 | G17: -130 | H17: -130 | I17: -130 | J17: -130 | K17: -130 | L17: -130
A18: Nominal long-term interference power density threshold (ITU-R-F.758-6) | B18: dBW/MHz | C18: =C17+C16 -> -152 | D18: -127 | E18: -150 | F18: -125 | G18: -150 | H18: -125 | I18: -150 | J18: -125 | K18: -150 | L18: -125
A19: Interference threshold at receiver input within IF bandwidth | B19: dBm | C19: =C18+10*LOG10(C11)+30 -> -92 | D19: -67 | E19: -90 | F19: -65 | G19: -90 | H19: -65 | I19: -90 | J19: -65 | K19: -90 | L19: -65
A20: (Receiver noise power density calculated over NF) | B20: dBW/MHz | C20: =-113.83+C12-30 -> -131.83 | D20: -131.83 | E20: -129.83 | F20: -129.83 | G20: -129.83 | H20: -129.83 | I20: -129.83 | J20: -129.83 | K20: -129.83 | L20: -129.83
A22: Radiodetermination system (interferer):
A23: Conducted Tx power of interferer | B23: dBm | C23: ='System Parameter'!$I4 -> 9 | D23: ='System Parameter'!$I4 -> 9 | E23: ='System Parameter'!$L4 -> 9 | F23: ='System Parameter'!$L4 -> 9 | G23: ='System Parameter'!$N4 -> 9 | H23: ='System Parameter'!$N4 -> 9 | I23: ='System Parameter'!$P4 -> 9 | J23: ='System Parameter'!$P4 -> 9 | K23: ='System Parameter'!$S4 -> 9 | L23: ='System Parameter'!$S4 -> 9
A24: Out-of-band unwanted emissions attenuation (if FS victim is located in an adjacent band) | B24: dB | C24: 10 | D24: 10 | E24: 0 | F24: 0 | G24: 0 | H24: 0 | I24: 0 | J24: 0 | K24: 0 | L24: 0
A25: Tx e.i.r.p. of interferer | B25: dBm | C25: =C23-C24+C31 -> 35 | D25: 35 | E25: 45 | F25: 45 | G25: 45 | H25: 45 | I25: 45 | J25: 45 | K25: 45 | L25: 45
A26: Bandwidth of interferer Tx signal | B26: GHz | C26: ='System Parameter'!$I8 -> 100 | D26: ='System Parameter'!$I8 -> 100 | E26: ='System Parameter'!$L8 -> 100 | F26: ='System Parameter'!$L8 -> 100 | G26: ='System Parameter'!$N8 -> 100 | H26: ='System Parameter'!$N8 -> 100 | I26: ='System Parameter'!$P8 -> 100 | J26: ='System Parameter'!$P8 -> 100 | K26: ='System Parameter'!$S8 -> 100 | L26: ='System Parameter'!$S8 -> 100
A27: Mitigation technique (e.g. duty cycle, adaptive power control) | B27: dB | C27: ='System Parameter'!$G17 -> 0 | D27: ='System Parameter'!$G17 -> 0 | E27: ='System Parameter'!$L17 -> 0 | F27: ='System Parameter'!$L17 -> 0 | G27: ='System Parameter'!$N17 -> 0 | H27: ='System Parameter'!$N17 -> 0 | I27: ='System Parameter'!$P17 -> 0 | J27: ='System Parameter'!$P17 -> 0 | K27: ='System Parameter'!S17 -> 0 | L27: ='System Parameter'!S17 -> 0
A28: Tx e.i.r.p. spectral density of interferer | B28: dBm/MHz | C28: =C25-10*LOG(C26*1000) -> -15 | D28: -15 | E28: -5 | F28: -5 | G28: -5 | H28: -5 | I28: -5 | J28: -5 | K28: -5 | L28: -5
A29: Tx e.i.r.p. spectral density of interferer with mitigation | B29: dBm/MHz | C29: =C25+C27-10*LOG(C26*1000) -> -15 | D29: -15 | E29: -5 | F29: -5 | G29: -5 | H29: -5 | I29: -5 | J29: -5 | K29: -5 | L29: -5
A30: Tx e.i.r.p. of interferer with mitigation | B30: dBm | C30: =C25+C27 -> 35 | D30: 35 | E30: 45 | F30: 45 | G30: 45 | H30: 45 | I30: 45 | J30: 45 | K30: 45 | L30: 45
A31: Gain of interferer antenna in the direction of main radiation | B31: dBi | C31: ='System Parameter'!$I5 -> 36 | D31: ='System Parameter'!$I5 -> 36 | E31: ='System Parameter'!$L5 -> 36 | F31: ='System Parameter'!$L5 -> 36 | G31: ='System Parameter'!$N5 -> 36 | H31: ='System Parameter'!$N5 -> 36 | I31: ='System Parameter'!$Q5 -> 36 | J31: ='System Parameter'!$Q5 -> 36 | K31: ='System Parameter'!$T5 -> 36 | L31: ='System Parameter'!$T5 -> 36
A33: Indoor-outdoor attenuation (according to clause 2.3 in the Report) | B33: dB | C33: ='System Parameter'!G22 -> 50 | D33: ='System Parameter'!G22 -> 50 | E33: ='System Parameter'!L22 -> 50 | F33: ='System Parameter'!L22 -> 50 | G33: ='System Parameter'!N22 -> 50 | H33: ='System Parameter'!N22 -> 50 | I33: ='System Parameter'!P22 -> 50 | J33: ='System Parameter'!P22 -> 50 | K33: ='System Parameter'!S22 -> 50 | L33: ='System Parameter'!S22 -> 50
A34: Total e.i.r.p. towards FS system | B34: dBm | C34: =C30-C33 -> -15 | D34: -15 | E34: -5 | F34: -5 | G34: -5 | H34: -5 | I34: -5 | J34: -5 | K34: -5 | L34: -5
A35: BWCF | B35: dB | C35: =IF(C26*1000<=C11, 0, 10*LOG10(C11/C26/1000)) -> -20 | D35: 0 | E35: =IF(E26*1000<=E11, 0, 10*LOG10(E11/E26/1000)) -> -20 | F35: 0 | G35: =IF(G26*1000<=G11, 0, 10*LOG10(G11/G26/1000)) -> -20 | H35: 0 | I35: =IF(I26*1000<=I11, 0, 10*LOG10(I11/I26/1000)) -> -20 | J35: 0 | K35: =IF(K26*1000<=K11, 0, 10*LOG10(K11/K26/1000)) -> -20 | L35: 0
A38: Separation distance calculation:
A39: Minimum coupling loss (MCL) | B39: dB | C39: =C34-(C19-C14+C15)+C35 -> 94.5 | D39: 89.5 | E39: 102.5 | F39: 97.5 | G39: 102.5 | H39: 97.5 | I39: 102.5 | J39: 97.5 | K39: 102.5 | L39: 97.5
A40: Separation distance with FSL model | B40: km | C40: =10^((C39-32.44-20*LOG10(C9*1000))/20) -> 0.01121567676 | D40: 0.006307038532 | E40: 0.0241227085 | F40: 0.01356519586 | G40: 0.02199791034 | H40: 0.01237033405 | I40: 0.0201850873 | J40: 0.01135090874 | K40: 0.01864830174 | L40: 0.01048671071
A41: Specific attenuation due to atmospheric gases (ITU-R P.676-11 figure 5) | B41: dB/km | C41: 0.4 | D41: 0.4 | E41: 0.8 | F41: 0.8 | G41: 1 | H41: 1 | I41: 1.2 | J41: 1.2 | K41: 2 | L41: 2
A42: Separation distance adjusted for attenuation due to atmospheric gases | B42: km | C42: 0.01120987465 | D42: 0.006305199709 | E42: 0.02406926244 | F42: 0.01354826283 | G42: 0.02194238319 | H42: 0.01235273904 | I42: 0.02012900837 | J42: 0.01133313655 | K42: 0.01856871784 | L42: 0.01046146787
A43: Balance check (should be close to zero) | B43: dB | C43: =C39-20*LOG10(C42)-C42*C41-32.44-20*LOG10(C9*1000) -> 1.061014008e-05 | D43: 1.066900323e-05 | E43: 1.031953627e-05 | F43: 1.050480171e-05 | G43: 1.026744565e-05 | H43: 1.047501613e-05 | I43: 1.022473113e-05 | J43: 1.045054175e-05 | K43: 9.977261783e-06 | L43: 1.030784779e-05
C44: Long term interference criterion | D44: Peak power objective | E44: Long term interference criterion | F44: Peak power objective | G44: Long term interference criterion | H44: Peak power objective | I44: Long term interference criterion | J44: Peak power objective | K44: Long term interference criterion | L44: Peak power objective
A48: Scenario 2: Light pole connected to a building by means of an FS link – FS Rx at light pole (RDI-S main beam points exactly towards FS receiver). See Report figure 61.
A50: Victim Fixed Service (FS) system | C50: Band of FS system: 111,8-114,25 GHz | E50: Band of FS system: 130-134 GHz | G50: Band of FS system: 141-148,5 GHz | I50: Band of FS system: 151,5-164 GHz | K50: Band of FS system: 167-174,8 GHz
A51: Sensor type | C51: Point-to-point (PP) | D51: Point-to-point (PP) | E51: Point-to-point (PP) | F51: Point-to-point (PP) | G51: Point-to-point (PP) | H51: Point-to-point (PP) | I51: Point-to-point (PP) | J51: Point-to-point (PP) | K51: Point-to-point (PP) | L51: Point-to-point (PP)
A52: FS: | B52: Units
A53: Assumed centre frequency of FS system | B53: GHz | C53: 113.025 | D53: 113.025 | E53: 132 | F53: 132 | G53: 144.75 | H53: 144.75 | I53: 157.75 | J53: 157.75 | K53: 170.75 | L53: 170.75
A54: Wavelength of FS system | B54: m | C54: =2.99792458/C53/10 -> 0.002652443778 | D54: 0.002652443778 | E54: 0.002271154985 | F54: 0.002271154985 | G54: 0.002071105064 | H54: 0.002071105064 | I54: 0.001900427626 | J54: 0.001900427626 | K54: 0.001755739139 | L54: 0.001755739139
A55: Receiver noise bandwidth (ITU-R-F.758-6) | B55: MHz | C55: 1000 | D55: 1000 | E55: 1000 | F55: 1000 | G55: 1000 | H55: 1000 | I55: 1000 | J55: 1000 | K55: 1000 | L55: 1000
A56: Receiver noise figure (ITU-R-F.758-6) | B56: dB | C56: 12 | D56: 12 | E56: 14 | F56: 14 | G56: 14 | H56: 14 | I56: 14 | J56: 14 | K56: 14 | L56: 14
A57: Misalignment of antenna main beam towards RDI (figure 61 in the Report) | B57: ° | C57: 4.57 | D57: 4.57 | E57: 4.57 | F57: 4.57 | G57: 4.57 | H57: 4.57 | I57: 4.57 | J57: 4.57 | K57: 4.57 | L57: 4.57
A58: Antenna gain in the direction of interferer (ITU-R-F.758-6) | B58: dBi | C58: 18 | D58: 18 | E58: 18 | F58: 18 | G58: 18 | H58: 18 | I58: 18 | J58: 18 | K58: 18 | L58: 18
A59: Feeder (insertion) loss (ITU-R-F.758-6) | B59: dB | C59: 0 | D59: 0 | E59: 0 | F59: 0 | G59: 0 | H59: 0 | I59: 0 | J59: 0 | K59: 0 | L59: 0
A60: I/N criterion (ITU-R F.758-6 ) | B60: dB | C60: -20 | D60: 5 | E60: -20 | F60: 5 | G60: -20 | H60: 5 | I60: -20 | J60: 5 | K60: -20 | L60: 5
A61: Receiver noise power density typical (ITU-R-F.758-6) | B61: dBW/MHz | C61: -132 | D61: -132 | E61: -130 | F61: -130 | G61: -130 | H61: -130 | I61: -130 | J61: -130 | K61: -130 | L61: -130
A62: Nominal long-term interference power density threshold (ITU-R-F.758-6) | B62: dBW/MHz | C62: =C61+C60 -> -152 | D62: -127 | E62: -150 | F62: -125 | G62: -150 | H62: -125 | I62: -150 | J62: -125 | K62: -150 | L62: -125
A63: Interference threshold at receiver input within IF bandwidth | B63: dBm | C63: =C62+10*LOG10(C55)+30 -> -92 | D63: -67 | E63: -90 | F63: -65 | G63: -90 | H63: -65 | I63: -90 | J63: -65 | K63: -90 | L63: -65
A64: (Receiver noise power density calculated over NF) | B64: dBW/MHz | C64: =-113.83+C56-30 -> -131.83 | D64: -131.83 | E64: -129.83 | F64: -129.83 | G64: -129.83 | H64: -129.83 | I64: -129.83 | J64: -129.83 | K64: -129.83 | L64: -129.83
A66: Radiodetermination system (interferer):
A67: Conducted Tx power of interferer | B67: dBm | C67: ='System Parameter'!$I4 -> 9 | D67: ='System Parameter'!$I4 -> 9 | E67: ='System Parameter'!$L4 -> 9 | F67: ='System Parameter'!$L4 -> 9 | G67: ='System Parameter'!$N4 -> 9 | H67: ='System Parameter'!$N4 -> 9 | I67: ='System Parameter'!$P4 -> 9 | J67: ='System Parameter'!$P4 -> 9 | K67: ='System Parameter'!$S4 -> 9 | L67: ='System Parameter'!$S4 -> 9
A68: Out-of-band unwanted emissions attenuation (if FS victim is located in an adjacent band) | B68: dB | C68: 10 | D68: 10 | E68: 0 | F68: 0 | G68: 0 | H68: 0 | I68: 0 | J68: 0 | K68: 0 | L68: 0
A69: Tx e.i.r.p. of interferer | B69: dBm | C69: =C67-C68+C75 -> 35 | D69: 35 | E69: 45 | F69: 45 | G69: 45 | H69: 45 | I69: 45 | J69: 45 | K69: 45 | L69: 45
A70: Bandwidth of interferer Tx signal | B70: GHz | C70: ='System Parameter'!$I8 -> 100 | D70: ='System Parameter'!$I8 -> 100 | E70: ='System Parameter'!$L8 -> 100 | F70: ='System Parameter'!$L8 -> 100 | G70: ='System Parameter'!$N8 -> 100 | H70: ='System Parameter'!$N8 -> 100 | I70: ='System Parameter'!$P8 -> 100 | J70: ='System Parameter'!$P8 -> 100 | K70: ='System Parameter'!$S8 -> 100 | L70: ='System Parameter'!$S8 -> 100
A71: Mitigation technique (e.g. duty cycle, adaptive power control) | B71: dB | C71: ='System Parameter'!$G61 -> 0 | D71: ='System Parameter'!$G61 -> 0 | E71: ='System Parameter'!$L61 -> 0 | F71: ='System Parameter'!$L61 -> 0 | G71: ='System Parameter'!$N61 -> 0 | H71: ='System Parameter'!$N61 -> 0 | I71: ='System Parameter'!$P61 -> 0 | J71: ='System Parameter'!$P61 -> 0 | K71: ='System Parameter'!S61 -> 0 | L71: ='System Parameter'!S61 -> 0
A72: Tx e.i.r.p. spectral density of interferer | B72: dBm/MHz | C72: =C69-10*LOG(C70*1000) -> -15 | D72: -15 | E72: -5 | F72: -5 | G72: -5 | H72: -5 | I72: -5 | J72: -5 | K72: -5 | L72: -5
A73: Tx e.i.r.p. spectral density of interferer with mitigation | B73: dBm/MHz | C73: =C69+C71-10*LOG(C70*1000) -> -15 | D73: -15 | E73: -5 | F73: -5 | G73: -5 | H73: -5 | I73: -5 | J73: -5 | K73: -5 | L73: -5
A74: Tx e.i.r.p. of interferer with mitigation | B74: dBm | C74: =C69+C71 -> 35 | D74: 35 | E74: 45 | F74: 45 | G74: 45 | H74: 45 | I74: 45 | J74: 45 | K74: 45 | L74: 45
A75: Gain of interferer antenna in the direction of main radiation | B75: dBi | C75: ='System Parameter'!$I5 -> 36 | D75: ='System Parameter'!$I5 -> 36 | E75: ='System Parameter'!$L5 -> 36 | F75: ='System Parameter'!$L5 -> 36 | G75: ='System Parameter'!$N5 -> 36 | H75: ='System Parameter'!$N5 -> 36 | I75: ='System Parameter'!$Q5 -> 36 | J75: ='System Parameter'!$Q5 -> 36 | K75: ='System Parameter'!$T5 -> 36 | L75: ='System Parameter'!$T5 -> 36
A77: Indoor-outdoor attenuation (according to clause 2.3 in the Report) | B77: dB | C77: ='System Parameter'!G22 -> 50 | D77: ='System Parameter'!G22 -> 50 | E77: ='System Parameter'!L22 -> 50 | F77: ='System Parameter'!L22 -> 50 | G77: ='System Parameter'!N22 -> 50 | H77: ='System Parameter'!N22 -> 50 | I77: ='System Parameter'!P22 -> 50 | J77: ='System Parameter'!P22 -> 50 | K77: ='System Parameter'!S22 -> 50 | L77: ='System Parameter'!S22 -> 50
A78: Total e.i.r.p. towards FS system | B78: dBm | C78: =C74-C77 -> -15 | D78: -15 | E78: -5 | F78: -5 | G78: -5 | H78: -5 | I78: -5 | J78: -5 | K78: -5 | L78: -5
A79: BWCF | B79: dB | C79: =IF(C70*1000<=C55, 0, 10*LOG10(C55/C70/1000)) -> -20 | D79: 0 | E79: =IF(E70*1000<=E55, 0, 10*LOG10(E55/E70/1000)) -> -20 | F79: 0 | G79: =IF(G70*1000<=G55, 0, 10*LOG10(G55/G70/1000)) -> -20 | H79: 0 | I79: =IF(I70*1000<=I55, 0, 10*LOG10(I55/I70/1000)) -> -20 | J79: 0 | K79: =IF(K70*1000<=K55, 0, 10*LOG10(K55/K70/1000)) -> -20 | L79: 0
A82: Separation distance calculation:
A83: Minimum coupling loss (MCL) | B83: dB | C83: =C78-(C63-C58+C59)+C79 -> 75 | D83: 70 | E83: 83 | F83: 78 | G83: 83 | H83: 78 | I83: 83 | J83: 78 | K83: 83 | L83: 78
A84: Separation distance with FSL model | B84: km | C84: =10^((C83-32.44-20*LOG10(C53*1000))/20) -> 0.001188024739 | D84: 0.000668075406 | E84: 0.002555206884 | F84: 0.001436898425 | G84: 0.002330136847 | H84: 0.001310332243 | I84: 0.002138112892 | J84: 0.001202349237 | K84: 0.001975328308 | L84: 0.001110808739
A85: Specific attenuation due to atmospheric gases (ITU-R P.676-11 figure 5) | B85: dB/km | C85: 0.4 | D85: 0.4 | E85: 0.8 | F85: 0.8 | G85: 1 | H85: 1 | I85: 1.2 | J85: 1.2 | K85: 2 | L85: 2
A86: Separation distance adjusted for attenuation due to atmospheric gases | B86: km | C86: 0.001187958285 | D86: 0.0006680540289 | E86: 0.002554700112 | F86: 0.00143670653 | G86: 0.002329509144 | H86: 0.001310133001 | I86: 0.002137478972 | J86: 0.001202148084 | K86: 0.001974428057 | L86: 0.001110523368
A87: Balance check (should be close to zero) | B87: dB | C87: =C83-20*LOG10(C86)-C86*C85-32.44-20*LOG10(C53*1000) -> 1.069025687e-05 | D87: 1.071412196e-05 | E87: -0.0003209232322 | F87: 1.06972069e-05 | G87: 1.065313049e-05 | H87: 1.069398883e-05 | I87: 1.064842435e-05 | J87: 1.06913384e-05 | K87: 1.062080304e-05 | L87: 1.06757748e-05
C88: Long term interference criterion | D88: Peak power objective | E88: Long term interference criterion | F88: Peak power objective | G88: Long term interference criterion | H88: Peak power objective | I88: Long term interference criterion | J88: Peak power objective | K88: Long term interference criterion | L88: Peak power objective

Sheet Amateur
A1: Compatibility analysis between radiodetermination systems for industry automation in shielded environments and amateur systems
A5: Victim Amateur system | C5: Band of amateur system: 122,25-123 GHz | G5: Band of amateur system: 134-141 GHz | K5: Band of amateur system: 241-250 GHz
A6: Sensor type | C6: Morse on-off keying | D6: Analogue voice | E6: Data, digital voice and multimedia | F6: Earth-moon-earth (EME) systems | G6: Morse on-off keying | H6: Analogue voice | I6: Data, digital voice and multimedia | J6: Earth-moon-earth (EME) systems | K6: Morse on-off keying | L6: Analogue voice | M6: Data, digital voice and multimedia | N6: Earth-moon-earth (EME) systems
A7: Amateur system: | B7: Units
A8: Assumed centre frequency of Amateur system | B8: GHz | C8: 122.625 | D8: 122.625 | E8: 122.625 | F8: 122.625 | G8: 137.5 | H8: 137.5 | I8: 137.5 | J8: 137.5 | K8: 245.5 | L8: 245.5 | M8: 245.5 | N8: 245.5
A9: Wavelength of Amateur system | B9: m | C9: =2.99792458/C8/10 -> 0.002444790687 | D9: 0.002444790687 | E9: 0.002444790687 | F9: 0.002444790687 | G9: 0.002180308785 | H9: 0.002180308785 | I9: 0.002180308785 | J9: 0.002180308785 | K9: 0.001221150542 | L9: 0.001221150542 | M9: 0.001221150542 | N9: 0.001221150542
A10: Receiver IF bandwidth (ITU-R M.1732-2) | B10: MHz | C10: 0.0005 | D10: 0.0027 | E10: 0.0027 | F10: 0.0024 | G10: 0.0005 | H10: 0.0027 | I10: 0.0027 | J10: 0.0024 | K10: 0.0005 | L10: 0.0027 | M10: 0.0027 | N10: 0.0024
A11: Receiver noise figure (ITU-R M.1732-2) | B11: dB | C11: 3 | D11: 3 | E11: 3 | F11: 3 | G11: 3 | H11: 3 | I11: 3 | J11: 3 | K11: 5 | L11: 5 | M11: 5 | N11: 5
A12: Antenna gain in the direction of interferer (ITU-R M.1732-2) | B12: dBi | C12: 32 | D12: 32 | E12: 32 | F12: 32 | G12: 32 | H12: 32 | I12: 32 | J12: 32 | K12: 32 | L12: 32 | M12: 32 | N12: 32
A13: Feeder (insertion) loss (ITU-R M.1732-2) | B13: dB | C13: 2 | D13: 2 | E13: 2 | F13: 2 | G13: 2 | H13: 2 | I13: 2 | J13: 2 | K13: 3 | L13: 3 | M13: 3 | N13: 4
A14: I/N criterion (ITU-R M.1808) | B14: dB | C14: -10 | D14: -10 | E14: -10 | F14: -10 | G14: -10 | H14: -10 | I14: -10 | J14: -10 | K14: -10 | L14: -10 | M14: -10 | N14: -10
A15: Receiver noise power density | B15: dBW/MHz | C15: =-113.83+C11-30 -> -140.83 | D15: -140.83 | E15: -140.83 | F15: -140.83 | G15: -140.83 | H15: -140.83 | I15: -140.83 | J15: -140.83 | K15: -138.83 | L15: -138.83 | M15: -138.83 | N15: -138.83
A16: Interference power density threshold | B16: dBW/MHz | C16: =C15+C14 -> -150.83 | D16: -150.83 | E16: -150.83 | F16: -150.83 | G16: -150.83 | H16: -150.83 | I16: -150.83 | J16: -150.83 | K16: -148.83 | L16: -148.83 | M16: -148.83 | N16: -148.83
A17: Interference threshold at receiver input within IF bandwidth | B17: dBm | C17: =C16+10*LOG10(C10)+30 -> -153.8403 | D17: -146.5163624 | E17: -146.5163624 | F17: -147.0278876 | G17: -153.8403 | H17: -146.5163624 | I17: -146.5163624 | J17: -147.0278876 | K17: -151.8403 | L17: -144.5163624 | M17: -144.5163624 | N17: -145.0278876
A19: Radiodetermination system (interferer):
A20: Conducted Tx power of interferer | B20: dBm | C20: ='System Parameter'!$J4 -> 9 | D20: ='System Parameter'!$J4 -> 9 | E20: ='System Parameter'!$J4 -> 9 | F20: ='System Parameter'!$J4 -> 9 | G20: ='System Parameter'!$M4 -> 24 | H20: ='System Parameter'!$M4 -> 24 | I20: ='System Parameter'!$M4 -> 24 | J20: ='System Parameter'!$M4 -> 24 | K20: ='System Parameter'!$AF4 -> 9 | L20: ='System Parameter'!$AF4 -> 9 | M20: ='System Parameter'!$AF4 -> 9 | N20: ='System Parameter'!$AF4 -> 9
A21: Out-of-band unwanted emissions attenuation (if Amateur victim is located in an adjacent band) | B21: dB | C21: 0 | D21: 0 | E21: 0 | F21: 0 | G21: 0 | H21: 0 | I21: 0 | J21: 0 | K21: 0 | L21: 0 | M21: 0 | N21: 0
A22: Tx e.i.r.p. of interferer | B22: dBm | C22: =C20-C21+C28 -> 45 | D22: 45 | E22: 45 | F22: 45 | G22: 60 | H22: 60 | I22: 60 | J22: 60 | K22: 45 | L22: 45 | M22: 45 | N22: 45
A23: Bandwidth of interferer Tx signal | B23: GHz | C23: ='System Parameter'!J8 -> 100 | D23: ='System Parameter'!J8 -> 100 | E23: ='System Parameter'!J8 -> 100 | F23: ='System Parameter'!J8 -> 100 | G23: ='System Parameter'!$M8 -> 100 | H23: ='System Parameter'!$M8 -> 100 | I23: ='System Parameter'!$M8 -> 100 | J23: ='System Parameter'!$M8 -> 100 | K23: ='System Parameter'!$AF8 -> 100 | L23: ='System Parameter'!$AF8 -> 100 | M23: ='System Parameter'!$AF8 -> 100 | N23: ='System Parameter'!$AF8 -> 100
A24: Mitigation technique (e.g. duty cycle, adaptive power control) | B24: dB | C24: ='System Parameter'!$J17 -> 0 | D24: ='System Parameter'!$J17 -> 0 | E24: ='System Parameter'!$J17 -> 0 | F24: ='System Parameter'!$J17 -> 0 | G24: ='System Parameter'!$M17 -> 0 | H24: ='System Parameter'!$M17 -> 0 | I24: ='System Parameter'!$M17 -> 0 | J24: ='System Parameter'!$M17 -> 0 | K24: ='System Parameter'!$AF17 -> 0 | L24: ='System Parameter'!$AF17 -> 0 | M24: ='System Parameter'!$AF17 -> 0 | N24: ='System Parameter'!$AF17 -> 0
A25: Tx e.i.r.p. spectral density of interferer | B25: dBm/MHz | C25: =C22-10*LOG(C23*1000) -> -5 | D25: -5 | E25: -5 | F25: -5 | G25: 10 | H25: 10 | I25: 10 | J25: 10 | K25: -5 | L25: -5 | M25: -5 | N25: -5
A26: Tx e.i.r.p. spectral density of interferer with mitigation | B26: dBm/MHz | C26: =C22+C24-10*LOG(C23*1000) -> -5 | D26: -5 | E26: -5 | F26: -5 | G26: 10 | H26: 10 | I26: 10 | J26: 10 | K26: -5 | L26: -5 | M26: -5 | N26: -5
A27: Tx e.i.r.p. of interferer with mitigation | B27: dBm | C27: =C22+C24 -> 45 | D27: 45 | E27: 45 | F27: 45 | G27: 60 | H27: 60 | I27: 60 | J27: 60 | K27: 45 | L27: 45 | M27: 45 | N27: 45
A28: Gain of the interferer antenna in the direction of main radiation | B28: dBi | C28: ='System Parameter'!J5 -> 36 | D28: ='System Parameter'!$J5 -> 36 | E28: ='System Parameter'!$J5 -> 36 | F28: ='System Parameter'!$J5 -> 36 | G28: ='System Parameter'!M5 -> 36 | H28: ='System Parameter'!$M5 -> 36 | I28: ='System Parameter'!$M5 -> 36 | J28: ='System Parameter'!$M5 -> 36 | K28: ='System Parameter'!AF5 -> 36 | L28: ='System Parameter'!$AF5 -> 36 | M28: ='System Parameter'!$AF5 -> 36 | N28: ='System Parameter'!$AF5 -> 36
A30: Indoor-outdoor attenuation (according to clause 2.3 in the Report) | B30: dB | C30: ='System Parameter'!$J22 -> 50 | D30: ='System Parameter'!$J22 -> 50 | E30: ='System Parameter'!$J22 -> 50 | F30: ='System Parameter'!$J22 -> 50 | G30: ='System Parameter'!$M22 -> 50 | H30: ='System Parameter'!$M22 -> 50 | I30: ='System Parameter'!$M22 -> 50 | J30: ='System Parameter'!$M22 -> 50 | K30: ='System Parameter'!$AF22 -> 50 | L30: ='System Parameter'!$AF22 -> 50 | M30: ='System Parameter'!$AF22 -> 50 | N30: ='System Parameter'!$AF22 -> 50
A31: Total e.i.r.p. towards Amateur system | B31: dBm | C31: =C27-C30 -> -5 | D31: -5 | E31: -5 | F31: -5 | G31: 10 | H31: 10 | I31: 10 | J31: 10 | K31: -5 | L31: -5 | M31: -5 | N31: -5
A32: BWCF | B32: dB | C32: =IF(C23*1000<=C10, 0, 10*LOG10(C10/C23/1000)) -> -83.01029996 | D32: -75.68636236 | E32: -75.68636236 | F32: -76.19788758 | G32: -83.01029996 | H32: -75.68636236 | I32: -75.68636236 | J32: -76.19788758 | K32: -83.01029996 | L32: -75.68636236 | M32: -75.68636236 | N32: -76.19788758
A35: Separation distance calculation:
A36: Minimum coupling loss (MCL) | B36: dB | C36: =C31-(C17-C12+C13)+C32 -> 95.83 | D36: 95.83 | E36: 95.83 | F36: 95.83 | G36: 110.83 | H36: 110.83 | I36: 110.83 | J36: 110.83 | K36: 92.83 | L36: 92.83 | M36: 92.83 | N36: 91.83
A37: Separation distance with FSL model | B37: km | C37: =10^((C36-32.44-20*LOG10(C8*1000))/20) -> 0.01204816703 | D37: 0.01204816703 | E37: 0.01204816703 | F37: 0.01204816703 | G37: 0.06042230681 | H37: 0.06042230681 | I37: 0.06042230681 | J37: 0.06042230681 | K37: 0.004260381631 | L37: 0.004260381631 | M37: 0.004260381631 | N37: 0.003797069126
A38: Specific attenuation due to atmospheric gases (ITU-R P.676-11 figure 5) | B38: dB/km | C38: 0.4 | D38: 0.4 | E38: 0.4 | F38: 0.4 | G38: 0.8 | H38: 0.8 | I38: 0.8 | J38: 0.8 | K38: 3 | L38: 3 | M38: 3 | N38: 3
A39: Separation distance adjusted for attenuation due to atmospheric gases | B39: km | C39: 0.01204193546 | D39: 0.01204193546 | E39: 0.01204193546 | F39: 0.01204193546 | G39: 0.06008876287 | H39: 0.06008876287 | I39: 0.06008876287 | J39: 0.06008876287 | K39: 0.004254121241 | L39: 0.004254121241 | M39: 0.004254121241 | N39: 0.003792094623
A40: Balance check (should be close to zero) | B40: dB | C40: =C36-20*LOG10(C39)-C39*C38-32.44-20*LOG10(C8*1000) -> -0.0003230884385 | D40: -0.0003230884385 | E40: -0.0003230884385 | F40: -0.0003230884385 | G40: 9.77301211e-06 | H40: 9.773012081e-06 | I40: 9.773012081e-06 | J40: 9.773012081e-06 | K40: 1.044638844e-05 | L40: 1.044638844e-05 | M40: 1.044638844e-05 | N40: 1.047364748e-05

Sheet EESS Shielding Table
B2: Azimuth Elevation | C2: Avg. BEL Traditional | D2: Avg. BEL Efficient | E2: 70/30 BEL omni | F2: BEL High-Gain Comp | G2: Clutter | H2: Transm./Refl. Loss | I2: Inherent Dev. Shielding | J2: Total
B3: deg | C3: dB | D3: dB | F3: dB | G3: dB | H3: dB | I3: dB | J3: dB
B4: 0 | C4: 13.6 | D4: 26.1 | E4: =(-10*LOG10(0.7*10^(-$C4/10)+0.3*10^(-$D4/10))) -> 15.04559449 | F4: ='System Parameter'!C40 -> 0 | G4: 18.1 | H4: ='System Parameter'!C41 -> 0 | I4: ='System Parameter'!C42 -> 0 | J4: =SUM(E4:I4) -> 33.14559449
B5: 1 | C5: 13.7 | D5: 26.2 | E5: =(-10*LOG10(0.7*10^(-$C5/10)+0.3*10^(-$D5/10))) -> 15.14559449 | F5: =F4 -> 0 | G5: 16.8 | H5: =H4 -> 0 | I5: =I4 -> 0 | J5: 31.94559449
B6: 2 | C6: 13.8 | D6: 26.2 | E6: 15.24321452 | F6: =F5 -> 0 | G6: 15.7 | H6: =H5 -> 0 | I6: =I5 -> 0 | J6: 30.94321452
B7: 3 | C7: 13.9 | D7: 26.3 | E7: 15.34321452 | F7: 0 | G7: 14.8 | H7: 0 | I7: 0 | J7: 30.14321452
B8: 4 | C8: 14 | D8: 26.4 | E8: 15.44321452 | F8: 0 | G8: 14 | H8: 0 | I8: 0 | J8: 29.44321452
B9: 5 | C9: 14.1 | D9: 26.5 | E9: 15.54321452 | F9: 0 | G9: 13.2 | H9: 0 | I9: 0 | J9: 28.74321452
B10: 6 | C10: 14.2 | D10: 26.5 | E10: 15.64078046 | F10: 0 | G10: 12.6 | H10: 0 | I10: 0 | J10: 28.24078046
B11: 7 | C11: 14.3 | D11: 26.6 | E11: 15.74078046 | F11: 0 | G11: 12 | H11: 0 | I11: 0 | J11: 27.74078046
B12: 8 | C12: 14.4 | D12: 26.7 | E12: 15.84078046 | F12: 0 | G12: 11.4 | H12: 0 | I12: 0 | J12: 27.24078046
B13: 9 | C13: 14.5 | D13: 26.8 | E13: 15.94078046 | F13: 0 | G13: 10.9 | H13: 0 | I13: 0 | J13: 26.84078046
B14: 10 | C14: 14.6 | D14: 26.8 | E14: 16.03829112 | F14: 0 | G14: 10.4 | H14: 0 | I14: 0 | J14: 26.43829112
B15: 11 | C15: 14.7 | D15: 26.9 | E15: 16.13829112 | F15: 0 | G15: 10 | H15: 0 | I15: 0 | J15: 26.13829112
B16: 12 | C16: 14.8 | D16: 27 | E16: 16.23829112 | F16: 0 | G16: 9.5 | H16: 0 | I16: 0 | J16: 25.73829112
B17: 13 | C17: 14.9 | D17: 27.1 | E17: 16.33829112 | F17: 0 | G17: 9.1 | H17: 0 | I17: 0 | J17: 25.43829112
B18: 14 | C18: 15.1 | D18: 27.2 | E18: 16.53574527 | F18: 0 | G18: 8.7 | H18: 0 | I18: 0 | J18: 25.23574527
B19: 15 | C19: 15.2 | D19: 27.2 | E19: 16.63314167 | F19: 0 | G19: 8.3 | H19: 0 | I19: 0 | J19: 24.93314167
B20: 16 | C20: 15.3 | D20: 27.3 | E20: 16.73314167 | F20: 0 | G20: 8 | H20: 0 | I20: 0 | J20: 24.73314167
B21: 17 | C21: 15.4 | D21: 27.4 | E21: 16.83314167 | F21: 0 | G21: 7.6 | H21: 0 | I21: 0 | J21: 24.43314167
B22: 18 | C22: 15.5 | D22: 27.5 | E22: 16.93314167 | F22: 0 | G22: 7.3 | H22: 0 | I22: 0 | J22: 24.23314167
B23: 19 | C23: 15.6 | D23: 27.6 | E23: 17.03314167 | F23: 0 | G23: 7 | H23: 0 | I23: 0 | J23: 24.03314167
B24: 20 | C24: 15.7 | D24: 27.6 | E24: 17.13047903 | F24: 0 | G24: 6.7 | H24: 0 | I24: 0 | J24: 23.83047903
B25: 21 | C25: 15.8 | D25: 27.7 | E25: 17.23047903 | F25: 0 | G25: 6.4 | H25: 0 | I25: 0 | J25: 23.63047903
B26: 22 | C26: 16 | D26: 27.8 | E26: 17.42775606 | F26: 0 | G26: 6.1 | H26: 0 | I26: 0 | J26: 23.52775606
B27: 23 | C27: 16.1 | D27: 27.9 | E27: 17.52775606 | F27: 0 | G27: 5.9 | H27: 0 | I27: 0 | J27: 23.42775606
B28: 24 | C28: 16.2 | D28: 28 | E28: 17.62775606 | F28: 0 | G28: 5.6 | H28: 0 | I28: 0 | J28: 23.22775606
B29: 25 | C29: 16.3 | D29: 28.1 | E29: 17.72775606 | F29: 0 | G29: 5.4 | H29: 0 | I29: 0 | J29: 23.12775606
B30: 26 | C30: 16.4 | D30: 28.1 | E30: 17.82497143 | F30: 0 | G30: 5.1 | H30: 0 | I30: 0 | J30: 22.92497143
B31: 27 | C31: 16.6 | D31: 28.2 | E31: 18.02212379 | F31: 0 | G31: 4.9 | H31: 0 | I31: 0 | J31: 22.92212379
B32: 28 | C32: 16.7 | D32: 28.3 | E32: 18.12212379 | F32: 0 | G32: 4.7 | H32: 0 | I32: 0 | J32: 22.82212379
B33: 29 | C33: 16.8 | D33: 28.4 | E33: 18.22212379 | F33: 0 | G33: 4.5 | H33: 0 | I33: 0 | J33: 22.72212379
B34: 30 | C34: 16.9 | D34: 28.5 | E34: 18.32212379 | F34: 0 | G34: 4.3 | H34: 0 | I34: 0 | J34: 22.62212379
B35: 31 | C35: 17 | D35: 28.6 | E35: 18.42212379 | F35: 0 | G35: 4.1 | H35: 0 | I35: 0 | J35: 22.52212379
B36: 32 | C36: 17.2 | D36: 28.6 | E36: 18.61623389 | F36: 0 | G36: 3.9 | H36: 0 | I36: 0 | J36: =SUM(E36:I36) -> 22.51623389
B37: 33 | C37: 17.3 | D37: 28.7 | E37: 18.71623389 | F37: 0 | G37: 3.7 | H37: 0 | I37: 0 | J37: 22.41623389
B38: 34 | C38: 17.4 | D38: 28.8 | E38: 18.81623389 | F38: 0 | G38: 3.6 | H38: 0 | I38: 0 | J38: 22.41623389
B39: 35 | C39: 17.5 | D39: 28.9 | E39: 18.91623389 | F39: 0 | G39: 3.4 | H39: 0 | I39: 0 | J39: 22.31623389
B40: 36 | C40: 17.6 | D40: 29 | E40: 19.01623389 | F40: 0 | G40: 3.3 | H40: 0 | I40: 0 | J40: 22.31623389
B41: 37 | C41: 17.8 | D41: 29.1 | E41: 19.21318879 | F41: 0 | G41: 3.1 | H41: 0 | I41: 0 | J41: 22.31318879
B42: 38 | C42: 17.9 | D42: 29.2 | E42: 19.31318879 | F42: 0 | G42: 3 | H42: 0 | I42: 0 | J42: 22.31318879
B43: 39 | C43: 18 | D43: 29.3 | E43: 19.41318879 | F43: 0 | G43: 2.8 | H43: 0 | I43: 0 | J43: 22.21318879
B44: 40 | C44: 18.2 | D44: 29.4 | E44: 19.61007497 | F44: 0 | G44: 2.7 | H44: 0 | I44: 0 | J44: 22.31007497
B45: 41 | C45: 18.3 | D45: 29.4 | E45: 19.70689092 | F45: 0 | G45: 2.6 | H45: 0 | I45: 0 | J45: 22.30689092
B46: 42 | C46: 18.4 | D46: 29.5 | E46: 19.80689092 | F46: 0 | G46: 2.5 | H46: 0 | I46: 0 | J46: 22.30689092
B47: 43 | C47: 18.5 | D47: 29.6 | E47: 19.90689092 | F47: 0 | G47: 2.3 | H47: 0 | I47: 0 | J47: 22.20689092
B48: 44 | C48: 18.7 | D48: 29.7 | E48: 20.10363513 | F48: 0 | G48: 2.2 | H48: 0 | I48: 0 | J48: 22.30363513
B49: 45 | C49: 18.8 | D49: 29.8 | E49: 20.20363513 | F49: 0 | G49: 2.1 | H49: 0 | I49: 0 | J49: 22.30363513
B50: 46 | C50: 18.9 | D50: 29.9 | E50: 20.30363513 | F50: 0 | G50: 2 | H50: 0 | I50: 0 | J50: 22.30363513
B51: 47 | C51: 19.1 | D51: 30 | E51: 20.50030602 | F51: 0 | G51: 1.9 | H51: 0 | I51: 0 | J51: 22.40030602
B52: 48 | C52: 19.2 | D52: 30.1 | E52: 20.60030602 | F52: 0 | G52: 1.8 | H52: 0 | I52: 0 | J52: 22.40030602
B53: 49 | C53: 19.3 | D53: 30.2 | E53: 20.70030602 | F53: 0 | G53: 1.7 | H53: 0 | I53: 0 | J53: 22.40030602
B54: 50 | C54: 19.5 | D54: 30.3 | E54: 20.89690201 | F54: 0 | G54: 1.6 | H54: 0 | I54: 0 | J54: 22.49690201
B55: 51 | C55: 19.6 | D55: 30.4 | E55: 20.99690201 | F55: 0 | G55: 1.6 | H55: 0 | I55: 0 | J55: 22.59690201
B56: 52 | C56: 19.7 | D56: 30.5 | E56: 21.09690201 | F56: 0 | G56: 1.5 | H56: 0 | I56: 0 | J56: 22.59690201
B57: 53 | C57: 19.9 | D57: 30.5 | E57: 21.28986273 | F57: 0 | G57: 1.4 | H57: 0 | I57: 0 | J57: 22.68986273
B58: 54 | C58: 20 | D58: 30.6 | E58: 21.38986273 | F58: 0 | G58: 1.3 | H58: 0 | I58: 0 | J58: 22.68986273
B59: 55 | C59: 20.1 | D59: 30.7 | E59: 21.48986273 | F59: 0 | G59: 1.3 | H59: 0 | I59: 0 | J59: 22.78986273
B60: 56 | C60: 20.3 | D60: 30.8 | E60: 21.68622413 | F60: 0 | G60: 1.2 | H60: 0 | I60: 0 | J60: 22.88622413
B61: 57 | C61: 20.4 | D61: 30.9 | E61: 21.78622413 | F61: 0 | G61: 1.1 | H61: 0 | I61: 0 | J61: 22.88622413
B62: 58 | C62: 20.5 | D62: 31 | E62: 21.88622413 | F62: 0 | G62: 1.1 | H62: 0 | I62: 0 | J62: 22.98622413
B63: 59 | C63: 20.7 | D63: 31.1 | E63: 22.08250392 | F63: 0 | G63: 1 | H63: 0 | I63: 0 | J63: 23.08250392
B64: 60 | C64: 20.8 | D64: 31.2 | E64: 22.18250392 | F64: 0 | G64: 0.9 | H64: 0 | I64: 0 | J64: 23.08250392
B65: 61 | C65: 21 | D65: 31.3 | E65: 22.37870035 | F65: 0 | G65: 0.9 | H65: 0 | I65: 0 | J65: 23.27870035
B66: 62 | C66: 21.1 | D66: 31.4 | E66: 22.47870035 | F66: 0 | G66: 0.8 | H66: 0 | I66: 0 | J66: 23.27870035
B67: 63 | C67: 21.2 | D67: 31.5 | E67: 22.57870035 | F67: 0 | G67: 0.8 | H67: 0 | I67: 0 | J67: 23.37870035
B68: 64 | C68: 21.4 | D68: 31.6 | E68: 22.77481163 | F68: 0 | G68: 0.7 | H68: 0 | I68: 0 | J68: =SUM(E68:I68) -> 23.47481163
B69: 65 | C69: 21.5 | D69: 31.7 | E69: =(-10*LOG10(0.7*10^(-$C69/10)+0.3*10^(-$D69/10))) -> 22.87481163 | F69: 0 | G69: 0.7 | H69: 0 | I69: 0 | J69: 23.57481163
B70: 66 | C70: 21.7 | D70: 31.8 | E70: 23.07083594 | F70: =F69 -> 0 | G70: 0.6 | H70: =H69 -> 0 | I70: =I69 -> 0 | J70: 23.67083594
B71: 67 | C71: 21.8 | D71: 31.9 | E71: 23.17083594 | F71: 0 | G71: 0.6 | H71: 0 | I71: 0 | J71: 23.77083594
B72: 68 | C72: 22 | D72: 32 | E72: 23.3667714 | F72: 0 | G72: 0.5 | H72: 0 | I72: 0 | J72: 23.8667714
B73: 69 | C73: 22.1 | D73: 32.1 | E73: 23.4667714 | F73: 0 | G73: 0.5 | H73: 0 | I73: 0 | J73: 23.9667714
B74: 70 | C74: 22.2 | D74: 32.2 | E74: 23.5667714 | F74: 0 | G74: 0.5 | H74: 0 | I74: 0 | J74: 24.0667714
B75: 71 | C75: 22.4 | D75: 32.3 | E75: 23.76261612 | F75: 0 | G75: 0.4 | H75: 0 | I75: 0 | J75: 24.16261612
B76: 72 | C76: 22.5 | D76: 32.4 | E76: 23.86261612 | F76: 0 | G76: 0.4 | H76: 0 | I76: 0 | J76: 24.26261612
B77: 73 | C77: 22.7 | D77: 32.5 | E77: 24.05836816 | F77: 0 | G77: 0.3 | H77: 0 | I77: 0 | J77: 24.35836816
B78: 74 | C78: 22.8 | D78: 32.6 | E78: 24.15836816 | F78: 0 | G78: 0.3 | H78: 0 | I78: 0 | J78: 24.45836816
B79: 75 | C79: 23 | D79: 32.7 | E79: 24.35402556 | F79: 0 | G79: 0.3 | H79: 0 | I79: 0 | J79: 24.65402556
B80: 76 | C80: 23.1 | D80: 32.8 | E80: 24.45402556 | F80: 0 | G80: 0.2 | H80: 0 | I80: 0 | J80: 24.65402556
B81: 77 | C81: 23.3 | D81: 32.9 | E81: 24.64958629 | F81: 0 | G81: 0.2 | H81: 0 | I81: 0 | J81: 24.84958629
B82: 78 | C82: 23.4 | D82: 33 | E82: 24.74958629 | F82: 0 | G82: 0.2 | H82: 0 | I82: 0 | J82: 24.94958629
B83: 79 | C83: 23.6 | D83: 33.1 | E83: 24.94504831 | F83: 0 | G83: 0.2 | H83: 0 | I83: 0 | J83: 25.14504831
B84: 80 | C84: 23.7 | D84: 33.2 | E84: 25.04504831 | F84: 0 | G84: 0.1 | H84: 0 | I84: 0 | J84: 25.14504831
B85: 81 | C85: 23.9 | D85: 33.3 | E85: 25.24040953 | F85: 0 | G85: 0.1 | H85: 0 | I85: 0 | J85: 25.34040953
B86: 82 | C86: 24 | D86: 33.4 | E86: 25.34040953 | F86: 0 | G86: 0.1 | H86: 0 | I86: 0 | J86: 25.44040953
B87: 83 | C87: 24.2 | D87: 33.5 | E87: 25.53566782 | F87: 0 | G87: 0.1 | H87: 0 | I87: 0 | J87: 25.63566782
B88: 84 | C88: 24.3 | D88: 33.6 | E88: 25.63566782 | F88: 0 | G88: 0 | H88: 0 | I88: 0 | J88: 25.63566782
B89: 85 | C89: 24.5 | D89: 33.7 | E89: 25.83082102 | F89: 0 | G89: 0 | H89: 0 | I89: 0 | J89: 25.83082102
B90: 86 | C90: 24.6 | D90: 33.8 | E90: 25.93082102 | F90: 0 | G90: 0 | H90: 0 | I90: 0 | J90: 25.93082102
B91: 87 | C91: 24.8 | D91: 33.9 | E91: 26.12586691 | F91: 0 | G91: 0 | H91: 0 | I91: 0 | J91: 26.12586691
B92: 88 | C92: 24.9 | D92: 34 | E92: 26.22586691 | F92: 0 | G92: 0 | H92: 0 | I92: 0 | J92: 26.22586691
B93: 89 | C93: 25.1 | D93: 34.1 | E93: 26.42080326 | F93: 0 | G93: 0 | H93: 0 | I93: 0 | J93: 26.42080326
B94: 90 | C94: 25.3 | D94: 34.2 | E94: 26.61562776 | F94: 0 | G94: 0 | H94: 0 | I94: 0 | J94: 26.61562776
